Merchandising Type Category,Detailed Merchant Category,Supplier,Purchase Details,Transaction Date,Value,Department
Business To Business Eqpt/Furn,Stationery/Office Supplies,Www.Banneruk.Com,Supplies and Services related expenditure,01/04/2020,21.03,"Director of Housing, Neighbourhood and Building Services"
Business Services,Business Services - Default,Fast Key Services Limi,Supplies and Services related expenditure,01/04/2020,-2.17,Director of Children's Services and Education
Business Services,Business Services - Default,Indeed Tel+35312545907,Employees related expenditure,01/04/2020,1.72,Director of Children's Services and Education
Miscellaneous,Veterinary Service,Sanctuary Vets - Farli,Supplies and Services related expenditure,01/04/2020,235.77,"Director of Culture, Leisure & Regulatory Services"
Utility,Computer Network/Info Svcs,Siteground Hosting,Supplies and Services related expenditure,01/04/2020,15.6,Director of Corporate Services
Type of Retail Store,Grocery Stores/Supermarkets,Co-Op Group 070639,Supplies and Services related expenditure,01/04/2020,243.7,"Director of Culture, Leisure & Regulatory Services"
Facilities/Repair Services,Small Appliance Repair Def,Hooper Services Ltd,Supplies and Services related expenditure,01/04/2020,191.04,Director of Adult Services
Type of Retail Store,Misc Food Stores - Default,Nisa Local,Supplies and Services related expenditure,01/04/2020,7.6,Director of Children's Services and Education
Facilities/Repair Services,Small Appliance Repair Def,Hooper Services Ltd,Premises related expenditure,01/04/2020,166.95,Director of Finance & Resources
Facilities/Repair Services,Small Appliance Repair Def,Hooper Services Ltd,Premises related expenditure,01/04/2020,307.1,Director of Finance & Resources
Facilities/Repair Services,Small Appliance Repair Def,Hooper Services Ltd,Supplies and Services related expenditure,01/04/2020,327.92,Director of Finance & Resources
Type of Retail Store,Freezer/Meat Lockers,Dennis Edwards Food Serv,Supplies and Services related expenditure,01/04/2020,501.68,Director of Finance & Resources
Facilities/Repair Services,Small Appliance Repair Def,Hooper Services Ltd,Premises related expenditure,01/04/2020,1568,Director of Finance & Resources
Other Supplies,Misc Speciality Retail,Amznmktplace,Supplies and Services related expenditure,01/04/2020,34.95,"Director of Housing, Neighbourhood and Building Services"
Type of Retail Store,Grocery Stores/Supermarkets,Asda Stores,Supplies and Services related expenditure,01/04/2020,10.03,"Director of Housing, Neighbourhood and Building Services"
Business To Business Eqpt/Furn,Stationery/Office Supplies,Www.Banneruk.Com,Supplies and Services related expenditure,01/04/2020,5.02,"Director of Housing, Neighbourhood and Building Services"
Business To Business Eqpt/Furn,Stationery/Office Supplies,Www.Banneruk.Com,Supplies and Services related expenditure,01/04/2020,23.83,"Director of Housing, Neighbourhood and Building Services"
Business To Business Eqpt/Furn,Stationery/Office Supplies,Www.Banneruk.Com,Supplies and Services related expenditure,01/04/2020,125.35,"Director of Housing, Neighbourhood and Building Services"
Facilities/Repair Services,Small Appliance Repair Def,Hooper Services Ltd,Premises related expenditure,01/04/2020,84.6,Director of Adult Services
Other Supplies,Catalog Merchant,Www.Nisbets.Com,Supplies and Services related expenditure,01/04/2020,293.98,Director of Adult Services
Medical,Lab/Med/Hospital Equipment,Wightman & Parrish,Supplies and Services related expenditure,01/04/2020,90.47,Director of Adult Services
Medical,Lab/Med/Hospital Equipment,Wightman & Parrish,Supplies and Services related expenditure,01/04/2020,31,Director of Adult Services
Medical,Lab/Med/Hospital Equipment,Wightman & Parrish,Supplies and Services related expenditure,01/04/2020,40.27,Director of Adult Services
Medical,Lab/Med/Hospital Equipment,Wightman & Parrish,Premises related expenditure,01/04/2020,161.66,Director of Adult Services
Other Supplies,Misc Speciality Retail,Amznmktplace,Supplies and Services related expenditure,01/04/2020,26.58,"Director of Housing, Neighbourhood and Building Services"
Other Supplies,Misc Speciality Retail,Amznmktplace,Supplies and Services related expenditure,01/04/2020,127.6,"Director of Housing, Neighbourhood and Building Services"
Miscellaneous,Fines,Combined Court Cen,Supplies and Services related expenditure,01/04/2020,50,Director of Children's Services and Education
Type of Retail Store,Grocery Stores/Supermarkets,Fruit Basket Ltd,Premises related expenditure,01/04/2020,69.42,"Director of Culture, Leisure & Regulatory Services"
Type of Retail Store,Grocery Stores/Supermarkets,Tesco Stores 4611,Transport related expenditure,01/04/2020,83.33,Director of Adult Services
Business Expenses/Services,Postage Stamps,The Post Office,Supplies and Services related expenditure,01/04/2020,17.36,"Director of Housing, Neighbourhood and Building Services"
Other Supplies,Misc Speciality Retail,Amznmktplace,Supplies and Services related expenditure,01/04/2020,4.57,Director of Children's Services and Education
Other Supplies,Misc Speciality Retail,Www.Safetygloves.Co.Uk,Supplies and Services related expenditure,01/04/2020,83.2,Director of Corporate Services
Type of Retail Store,Grocery Stores/Supermarkets,Fruit Basket Ltd,Supplies and Services related expenditure,01/04/2020,1872.85,Director of Adult Services
Type of Retail Store,Drug Stores & Pharmacies,Lalys Chemist,Supplies and Services related expenditure,01/04/2020,38.04,Director of Adult Services
Automobile Rental,Automobile Rental Agency,Southern Motor Contrac,Supplies and Services related expenditure,01/04/2020,2984.1,Director of Children's Services and Education
Type of Retail Store,Record Shops,Amazon Music,Supplies and Services related expenditure,01/04/2020,12.49,Director of Adult Services
Hotels And Motels,Travelodge,Travelodge Gb0000,Agency and Third Party Payments related expenditure,01/04/2020,-36.75,"Director of Housing, Neighbourhood and Building Services"
Hotels And Motels,Travelodge,Travelodge Gb0000,Agency and Third Party Payments related expenditure,01/04/2020,-356.98,"Director of Housing, Neighbourhood and Building Services"
Hotels And Motels,Travelodge,Travelodge Gb0000,Agency and Third Party Payments related expenditure,01/04/2020,-147,"Director of Housing, Neighbourhood and Building Services"
Hotels And Motels,Travelodge,Travelodge Gb0000,Agency and Third Party Payments related expenditure,01/04/2020,-1588.64,"Director of Housing, Neighbourhood and Building Services"
Medical,Lab/Med/Hospital Equipment,Wightman & Parrish,Premises related expenditure,01/04/2020,37.75,"Director of Housing, Neighbourhood and Building Services"
Medical,Lab/Med/Hospital Equipment,Wightman & Parrish,Premises related expenditure,01/04/2020,159.26,"Director of Housing, Neighbourhood and Building Services"
Medical,Lab/Med/Hospital Equipment,Wightman & Parrish,Premises related expenditure,01/04/2020,168.45,"Director of Housing, Neighbourhood and Building Services"
Other Supplies,Misc Speciality Retail,Careshop,Supplies and Services related expenditure,01/04/2020,70,Director of Adult Services
Type of Retail Store,Grocery Stores/Supermarkets,Tesco Stores 5153,Supplies and Services related expenditure,01/04/2020,1.54,Director of Children's Services and Education
Type of Retail Store,Grocery Stores/Supermarkets,Tesco Stores 5153,Supplies and Services related expenditure,01/04/2020,4.5,Director of Children's Services and Education
Business Expenses/Services,Postage Stamps,Post Office Counter,Supplies and Services related expenditure,01/04/2020,7.6,Director of Regeneration
Business Expenses/Services,Postage Stamps,Post Office Counter,Supplies and Services related expenditure,01/04/2020,39.14,Director of Children's Services and Education
Other Supplies,Misc Speciality Retail,Amznmktplace,Supplies and Services related expenditure,01/04/2020,58.25,Director of Regeneration
Other Supplies,Wholesale Clubs,Www.Spandex.Com,Supplies and Services related expenditure,01/04/2020,291.35,Director of Regeneration
Type of Retail Store,Grocery Stores/Supermarkets,Tesco Stores 4579,Supplies and Services related expenditure,01/04/2020,6.5,Director of Children's Services and Education
Business To Business Eqpt/Furn,Stationery/Office Supplies,Www.Banneruk.Com,Supplies and Services related expenditure,01/04/2020,2322.8,Director of Corporate Services
Other Supplies,Misc Speciality Retail,Amznmktplace Amazon.Co.Uk,Supplies and Services related expenditure,01/04/2020,11.73,Director of Children's Services and Education
Facilities/Repair Supplies,Home Supply Warehouse Stores,Screwfix Direct,Supplies and Services related expenditure,02/04/2020,10.83,Director of Adult Services
Freight/Courier/Warehouse Svcs,Public Warehousing,Big Yellow S S Portsmout,Premises related expenditure,02/04/2020,30,"Director of Housing, Neighbourhood and Building Services"
Freight/Courier/Warehouse Svcs,Public Warehousing,Lok N Store,Premises related expenditure,02/04/2020,58.33,"Director of Housing, Neighbourhood and Building Services"
Freight/Courier/Warehouse Svcs,Public Warehousing,Big Yellow S S Portsmout,Premises related expenditure,02/04/2020,120,"Director of Housing, Neighbourhood and Building Services"
Other Supplies,Discount Stores,Argos Ltd,Supplies and Services related expenditure,02/04/2020,82.94,Director of Children's Services and Education
Miscellaneous,Fines,Combined Court Cen,Supplies and Services related expenditure,02/04/2020,50,Director of Children's Services and Education
Facilities/Repair Supplies,Lawn/Garden Supply/Nursery,Wwwtudorenvironmentalcou,Supplies and Services related expenditure,02/04/2020,177,"Director of Culture, Leisure & Regulatory Services"
Facilities/Repair Supplies,Lawn/Garden Supply/Nursery,Wwwtudorenvironmentalcou,Supplies and Services related expenditure,02/04/2020,15,"Director of Culture, Leisure & Regulatory Services"
Automobile Services & Supplies,Service Stations,Shell Fratton 178,Transport related expenditure,02/04/2020,45.85,Director of Regeneration
Other Supplies,Misc Speciality Retail,Careshop,Supplies and Services related expenditure,02/04/2020,84,Director of Adult Services
Other Supplies,Misc Speciality Retail,Amznmktplace,Supplies and Services related expenditure,02/04/2020,29.08,Director of Adult Services
Other Supplies,Misc Speciality Retail,Careshop,Supplies and Services related expenditure,02/04/2020,70,Director of Adult Services
Other Supplies,Department Stores,Southern Co-Op 0008,Agency and Third Party Payments related expenditure,02/04/2020,5,Director of Children's Services and Education
Other Supplies,Department Stores,Southern Co-Op 0008,Agency and Third Party Payments related expenditure,02/04/2020,20,Director of Children's Services and Education
Government Service,Colleges/Univ/Jc/Profession,Www.Port.Ac.Uk,Supplies and Services related expenditure,02/04/2020,-25,Director of Regeneration
Business Expenses/Services,Books/Periodicals/Newspapers,Www.Wheelersbooks.Co.N,Supplies and Services related expenditure,02/04/2020,348.38,"Director of Culture, Leisure & Regulatory Services"
Business Expenses/Services,Books/Periodicals/Newspapers,Www.Wheelersbooks.Co.N,Supplies and Services related expenditure,02/04/2020,608.49,"Director of Culture, Leisure & Regulatory Services"
Type of Retail Store,Grocery Stores/Supermarkets,Sainsburys S/mkt,Premises related expenditure,02/04/2020,20.21,Director of Children's Services and Education
Type of Retail Store,Grocery Stores/Supermarkets,Sainsburys S/mkt,Agency and Third Party Payments related expenditure,02/04/2020,22.92,Director of Children's Services and Education
Type of Retail Store,Grocery Stores/Supermarkets,Sainsburys S/mkts,Supplies and Services related expenditure,02/04/2020,25,Director of Children's Services and Education
Type of Retail Store,Grocery Stores/Supermarkets,Tesco Stores 4611,Supplies and Services related expenditure,02/04/2020,25,Director of Children's Services and Education
Type of Retail Store,Grocery Stores/Supermarkets,Tesco Stores 4611,Supplies and Services related expenditure,02/04/2020,25,Director of Children's Services and Education
Other Supplies,Misc Speciality Retail,Amznmktplace,Supplies and Services related expenditure,02/04/2020,11.73,Director of Children's Services and Education
Type of Retail Store,Freezer/Meat Lockers,Dennis Edwards Food Serv,Supplies and Services related expenditure,02/04/2020,154.25,Director of Finance & Resources
Type of Retail Store,Grocery Stores/Supermarkets,Wm Morrisons Store,Supplies and Services related expenditure,02/04/2020,3.25,Director of Children's Services and Education
Type of Retail Store,Grocery Stores/Supermarkets,Tesco Stores 4579,Agency and Third Party Payments related expenditure,02/04/2020,35.21,Director of Children's Services and Education
Type of Retail Store,Grocery Stores/Supermarkets,Tesco Stores 4579,Supplies and Services related expenditure,02/04/2020,2.65,Director of Children's Services and Education
Type of Retail Store,Grocery Stores/Supermarkets,Tesco Stores 4579,Supplies and Services related expenditure,02/04/2020,17.5,Director of Children's Services and Education
Type of Retail Store,Grocery Stores/Supermarkets,Tesco Stores 4579,Supplies and Services related expenditure,02/04/2020,6.2,Director of Children's Services and Education
Type of Retail Store,Grocery Stores/Supermarkets,Wm Morrisons Store,Supplies and Services related expenditure,02/04/2020,51.83,Director of Children's Services and Education
Type of Retail Store,Grocery Stores/Supermarkets,Wm Morrisons Store,Supplies and Services related expenditure,02/04/2020,127.33,Director of Children's Services and Education
Other Supplies,Misc Speciality Retail,Amazon.Co.Uk,Supplies and Services related expenditure,02/04/2020,73.38,"Director of Housing, Neighbourhood and Building Services"
Type of Retail Store,Grocery Stores/Supermarkets,Farmfoods 750,Supplies and Services related expenditure,02/04/2020,9.17,"Director of Housing, Neighbourhood and Building Services"
Type of Retail Store,Sporting Goods Stores,Jd Sports Internet,Agency and Third Party Payments related expenditure,02/04/2020,41.67,Director of Children's Services and Education
Transportation Conveyor,Travel Agencies,Lucketts Travel Lt,Supplies and Services related expenditure,02/04/2020,-98,Director of Adult Services
Business To Business Other Sup,Uniforms & Commercial Clothing,Alexandra Website,Supplies and Services related expenditure,02/04/2020,14.39,Director of Adult Services
Business Services,Business Services - Default,Fast Key Services Limi,Supplies and Services related expenditure,02/04/2020,19.73,Director of Finance & Resources
Business Services,Business Services - Default,Fast Key Services Limi,Supplies and Services related expenditure,02/04/2020,1.95,Director of Finance & Resources
Personal Service Provider,Legal Services Attorneys,Leonardcannings So,Supplies and Services related expenditure,02/04/2020,1330,Director of Children's Services and Education
Other Supplies,Misc Speciality Retail,Amznmktplace,Supplies and Services related expenditure,02/04/2020,4.98,Director of Children's Services and Education
Other Supplies,Misc Speciality Retail,Amznmktplace,Supplies and Services related expenditure,02/04/2020,12.48,Director of Children's Services and Education
Other Supplies,Misc Speciality Retail,Amznmktplace,Supplies and Services related expenditure,02/04/2020,20.37,Director of Children's Services and Education
Business To Business Other Sup,Uniforms & Commercial Clothing,Alexandra Website,Supplies and Services related expenditure,02/04/2020,38.97,"Director of Housing, Neighbourhood and Building Services"
Business To Business Eqpt/Furn,Stationery/Office Supplies,Www.Banneruk.Com,Premises related expenditure,02/04/2020,109.55,"Director of Housing, Neighbourhood and Building Services"
Medical,Lab/Med/Hospital Equipment,Wightman & Parrish,Premises related expenditure,02/04/2020,134.12,"Director of Housing, Neighbourhood and Building Services"
Utility,Phone Serv/Equip Utility,Mobiletopup.Co.Uk 7775844,Supplies and Services related expenditure,02/04/2020,9.58,Director of Children's Services and Education
Transportation Conveyor,Local Commuter Transport,Hovertravel Ltd,Supplies and Services related expenditure,02/04/2020,37.8,Director of Adult Services
Other Supplies,Misc Speciality Retail,Amznmktplace Amazon.Co.Uk,Supplies and Services related expenditure,02/04/2020,5.81,Director of Adult Services
Other Supplies,Misc Speciality Retail,Careshop,Supplies and Services related expenditure,02/04/2020,70,Director of Adult Services
Business To Business Eqpt/Furn,Stationery/Office Supplies,Www.Banneruk.Com,Supplies and Services related expenditure,02/04/2020,105.81,"Director of Culture, Leisure & Regulatory Services"
Type of Retail Store,Grocery Stores/Supermarkets,One Stop 1339,Supplies and Services related expenditure,02/04/2020,5.1,Director of Children's Services and Education
Other Supplies,Department Stores,The Range,Supplies and Services related expenditure,02/04/2020,10.23,Director of Adult Services
Business Expenses/Services,Postage Stamps,The Post Office,Supplies and Services related expenditure,02/04/2020,5.17,Director of Children's Services and Education
Business To Business Eqpt/Furn,Stationery/Office Supplies,Www.Banneruk.Com,Supplies and Services related expenditure,02/04/2020,269.36,Director of Children's Services and Education
Business Services,Business Services - Default,Eb *white Rose Maths M,Employees related expenditure,02/04/2020,-114.34,Director of Children's Services and Education
Other Supplies,Department Stores,Southern Co-Op 0007,Transport related expenditure,02/04/2020,40.83,Director of Children's Services and Education
Other Supplies,Department Stores,Southern Co-Op 0007,Supplies and Services related expenditure,02/04/2020,24.2,Director of Children's Services and Education
Government Service,Govt Serv - Default,Pcc Internet Payment,Supplies and Services related expenditure,02/04/2020,33,Director of Adult Services
Other Supplies,Misc Speciality Retail,Amznmktplace,Agency and Third Party Payments related expenditure,02/04/2020,52.48,Director of Children's Services and Education
Clothing Services,Mens/Womens Clothing Stores,Murray Uniforms Ltd,Supplies and Services related expenditure,02/04/2020,251.95,"Director of Culture, Leisure & Regulatory Services"
Type of Retail Store,Grocery Stores/Supermarkets,Tesco Store 3539,Supplies and Services related expenditure,03/04/2020,-3.5,Director of Children's Services and Education
Type of Retail Store,Grocery Stores/Supermarkets,Tesco Store 3539,Supplies and Services related expenditure,03/04/2020,-3.5,Director of Children's Services and Education
Business To Business Facility/,Industrial Supplies - Def,Www.Arco.Co.Uk,Supplies and Services related expenditure,02/04/2020,42.84,"Director of Housing, Neighbourhood and Building Services"
Other Supplies,Misc Speciality Retail,Amazon.Co.Uk,Premises related expenditure,02/04/2020,16.67,Director of Children's Services and Education
Other Supplies,Catalog Merchant,Www.Uk.Insight.Com,Supplies and Services related expenditure,02/04/2020,248.3,Director of Corporate Services
Type of Retail Store,Grocery Stores/Supermarkets,Asda Groceries Online,Supplies and Services related expenditure,03/04/2020,4.17,Director of Children's Services and Education
Business To Business Facility/,Industrial Supplies - Def,Www.Arco.Co.Uk,Supplies and Services related expenditure,03/04/2020,39.09,"Director of Housing, Neighbourhood and Building Services"
Medical,Lab/Med/Hospital Equipment,Wightman & Parrish Ltd,Premises related expenditure,03/04/2020,247.55,"Director of Housing, Neighbourhood and Building Services"
Other Supplies,Discount Stores,Argos Ltd,Supplies and Services related expenditure,03/04/2020,-82.94,Director of Children's Services and Education
Other Supplies,Discount Stores,Argos Ltd,Supplies and Services related expenditure,03/04/2020,90.94,Director of Children's Services and Education
Facilities/Repair Supplies,Lawn/Garden Supply/Nursery,Wwwtudorenvironmentalcou,Supplies and Services related expenditure,03/04/2020,181.52,"Director of Culture, Leisure & Regulatory Services"
Facilities/Repair Supplies,Lawn/Garden Supply/Nursery,Wwwtudorenvironmentalcou,Supplies and Services related expenditure,03/04/2020,411.98,"Director of Culture, Leisure & Regulatory Services"
Facilities/Repair Supplies,Lawn/Garden Supply/Nursery,Wwwtudorenvironmentalcou,Supplies and Services related expenditure,03/04/2020,272.35,"Director of Culture, Leisure & Regulatory Services"
Eating And Drinking Places,Eating Places/Restaurants,Www.Dominos.Co.Uk,Supplies and Services related expenditure,03/04/2020,50.97,"Director of Culture, Leisure & Regulatory Services"
Personal Service Provider,Commercial Photo/Art/Graph,Anton Drawing Office Su,Agency and Third Party Payments related expenditure,03/04/2020,660,"Director of Culture, Leisure & Regulatory Services"
Type of Retail Store,Misc Food Stores - Default,Gilletts Tangiers,Supplies and Services related expenditure,03/04/2020,8.33,Director of Children's Services and Education
Business To Business Eqpt/Furn,Stationery/Office Supplies,Www.Banneruk.Com,Supplies and Services related expenditure,03/04/2020,18.88,Director of Regeneration
Type of Retail Store,Grocery Stores/Supermarkets,Tesco Stores 2322,Supplies and Services related expenditure,03/04/2020,17.5,Director of Children's Services and Education
Business To Business Facility/,Industrial Supplies - Def,Www.Arco.Co.Uk,Supplies and Services related expenditure,03/04/2020,48.84,Director of Regeneration
Business Expenses/Services,Books/Periodicals/Newspapers,Www.Wheelersbooks.Co.N,Supplies and Services related expenditure,03/04/2020,525.86,"Director of Culture, Leisure & Regulatory Services"
Business Expenses/Services,Books/Periodicals/Newspapers,Www.Wheelersbooks.Co.N,Supplies and Services related expenditure,03/04/2020,573.46,"Director of Culture, Leisure & Regulatory Services"
Business To Business Services,Misc Publishing & Printing,Www.Solopress.Com,Supplies and Services related expenditure,03/04/2020,14.8,Director of Portsmouth International Port
Business To Business Eqpt/Furn,Stationery/Office Supplies,Www.Banneruk.Com,Supplies and Services related expenditure,03/04/2020,571.1,"Director of Housing, Neighbourhood and Building Services"
Business To Business Eqpt/Furn,Stationery/Office Supplies,Www.Banneruk.Com,Supplies and Services related expenditure,03/04/2020,2283.26,Director of Finance & Resources
Hotels And Motels,Lodging/Hotels/Motels/Resorts,Portsmouth Inns,Supplies and Services related expenditure,03/04/2020,435,Director of Children's Services and Education
Business To Business Eqpt/Furn,Stationery/Office Supplies,Www.Banneruk.Com,Supplies and Services related expenditure,03/04/2020,44,Director of Public Health
Miscellaneous,Fines,County Court,Supplies and Services related expenditure,03/04/2020,365,Director of Adult Services
Miscellaneous,Fines,Combined Court,Supplies and Services related expenditure,03/04/2020,408,Director of Adult Services
Type of Retail Store,Grocery Stores/Supermarkets,Tesco Store 3048,Supplies and Services related expenditure,03/04/2020,30,Director of Children's Services and Education
Type of Retail Store,Grocery Stores/Supermarkets,Tesco Store 3048,Supplies and Services related expenditure,03/04/2020,40,Director of Children's Services and Education
Type of Retail Store,Grocery Stores/Supermarkets,Tesco Store 3048,Supplies and Services related expenditure,03/04/2020,30,Director of Children's Services and Education
Business To Business Eqpt/Furn,Stationery/Office Supplies,Www.Banneruk.Com,Premises related expenditure,03/04/2020,94.4,"Director of Housing, Neighbourhood and Building Services"
Equipment And Furniture,Household Appliance Stores,Sgn Connections,Capital related expenditure,03/04/2020,1630,Capital - Housing General Fund
Business To Business Eqpt/Furn,Stationery/Office Supplies,Www.Banneruk.Com,Supplies and Services related expenditure,03/04/2020,70.59,"Director of Culture, Leisure & Regulatory Services"
Miscellaneous,Other Direct Marketers,Amazon.Co.Uk,Supplies and Services related expenditure,03/04/2020,10.4,Director of Children's Services and Education
Other Supplies,Misc Speciality Retail,Amznmktplace,Supplies and Services related expenditure,03/04/2020,8.56,Director of Children's Services and Education
Other Supplies,Misc Speciality Retail,Amznmktplace,Supplies and Services related expenditure,03/04/2020,20.37,Director of Children's Services and Education
Business Expenses/Services,Postage Stamps,The Post Office,Supplies and Services related expenditure,03/04/2020,13,"Director of Housing, Neighbourhood and Building Services"
Personal Service Provider,Professional Services - Def,Sq *lj Waste & Maintenanc,Supplies and Services related expenditure,03/04/2020,250,Director of Children's Services and Education
Hotels And Motels,Lodging/Hotels/Motels/Resorts,Portsmouth Inns,Supplies and Services related expenditure,03/04/2020,75,Director of Children's Services and Education
Other Supplies,Discount Stores,Argos Ltd,Supplies and Services related expenditure,03/04/2020,126.63,Director of Children's Services and Education
Equipment And Furniture,Furniture/Equip Stores,Wayfair #2679143778,Supplies and Services related expenditure,03/04/2020,164.16,Director of Children's Services and Education
Other Supplies,Misc Speciality Retail,Amazon.Co.Uk,Supplies and Services related expenditure,03/04/2020,15.23,Director of Children's Services and Education
Business Services,Business Services - Default,Cs* Tesco Stores Gc,Supplies and Services related expenditure,03/04/2020,180,Director of Children's Services and Education
Business Services,Business Services - Default,Cs* Tesco Stores Gc,Supplies and Services related expenditure,03/04/2020,180,Director of Children's Services and Education
Digital Goods,Digital Goods - Large Digital Goods Merchant,Siren Films Ltd.,Supplies and Services related expenditure,03/04/2020,99,Director of Children's Services and Education
Personal Service Provider,Architectural/Eng/Survey,Geocentrix Ltd,Supplies and Services related expenditure,03/04/2020,300,Director of Portsmouth International Port
Type of Retail Store,Grocery Stores/Supermarkets,Fruit Basket Ltd,Supplies and Services related expenditure,03/04/2020,78.74,Director of Adult Services
Medical,Lab/Med/Hospital Equipment,Wightman & Parrish Ltd,Supplies and Services related expenditure,03/04/2020,483.38,Director of Adult Services
Medical,Lab/Med/Hospital Equipment,Wightman & Parrish Ltd,Premises related expenditure,03/04/2020,239.1,Director of Adult Services
Medical,Lab/Med/Hospital Equipment,Wightman & Parrish Ltd,Supplies and Services related expenditure,03/04/2020,62.48,Director of Adult Services
Medical,Lab/Med/Hospital Equipment,Wightman & Parrish Ltd,Premises related expenditure,03/04/2020,73.26,Director of Adult Services
Medical,Lab/Med/Hospital Equipment,Wightman & Parrish Ltd,Supplies and Services related expenditure,03/04/2020,359.28,Director of Adult Services
Medical,Lab/Med/Hospital Equipment,Wightman & Parrish Ltd,Supplies and Services related expenditure,03/04/2020,58.9,Director of Adult Services
Medical,Lab/Med/Hospital Equipment,Wightman & Parrish Ltd,Premises related expenditure,03/04/2020,122.2,Director of Adult Services
Medical,Lab/Med/Hospital Equipment,Wightman & Parrish Ltd,Supplies and Services related expenditure,03/04/2020,58.9,Director of Adult Services
Medical,Lab/Med/Hospital Equipment,Wightman & Parrish Ltd,Supplies and Services related expenditure,03/04/2020,435.78,Director of Adult Services
Medical,Lab/Med/Hospital Equipment,Wightman & Parrish Ltd,Premises related expenditure,03/04/2020,-76.09,Director of Adult Services
Business To Business Eqpt/Furn,Stationery/Office Supplies,Www.Banneruk.Com,Supplies and Services related expenditure,03/04/2020,420.36,"Director of Housing, Neighbourhood and Building Services"
Auto/Vehicle Expenses,Automated Fuel Dispensers,Tesco Pay At Pump 3777,Supplies and Services related expenditure,03/04/2020,19.73,"Director of Housing, Neighbourhood and Building Services"
Type of Retail Store,Grocery Stores/Supermarkets,Tesco Stores 4579,Supplies and Services related expenditure,03/04/2020,34.67,Director of Children's Services and Education
Type of Retail Store,Grocery Stores/Supermarkets,Tesco Stores 4579,Supplies and Services related expenditure,03/04/2020,14.02,Director of Children's Services and Education
Type of Retail Store,Grocery Stores/Supermarkets,Tesco Stores 4579,Supplies and Services related expenditure,03/04/2020,195.09,Director of Children's Services and Education
Facilities Maintenance,Specialty Cleaning/Polishing,Cjs Portsmouth Limited,Premises related expenditure,03/04/2020,11.88,Director of Children's Services and Education
Type of Retail Store,Grocery Stores/Supermarkets,Bargain Booze 2631,Supplies and Services related expenditure,03/04/2020,6.1,Director of Children's Services and Education
Business Expenses/Services,Postage Stamps,The Post Office,Supplies and Services related expenditure,03/04/2020,12.92,Director of Children's Services and Education
Miscellaneous,Continuity/Subscription Mercht,Amazon Prime,Supplies and Services related expenditure,03/04/2020,79,Director of Children's Services and Education
Government Service,Govt Serv - Default,Hampshire County Counc,Premises related expenditure,03/04/2020,85.16,Director of Children's Services and Education
Facilities Maintenance,Specialty Cleaning/Polishing,Cjs Portsmouth Limited,Supplies and Services related expenditure,03/04/2020,104.93,Director of Children's Services and Education
Facilities Maintenance,Specialty Cleaning/Polishing,Cjs Portsmouth Limited,Supplies and Services related expenditure,03/04/2020,0.07,Director of Children's Services and Education
Facilities Maintenance,Specialty Cleaning/Polishing,Cjs Portsmouth Limited,Supplies and Services related expenditure,03/04/2020,25.21,Director of Children's Services and Education
Facilities Maintenance,Specialty Cleaning/Polishing,Cjs Portsmouth Limited,Premises related expenditure,03/04/2020,295,Director of Children's Services and Education
Business To Business Facility/,Electrical Parts/Equipment,Rs Components,Supplies and Services related expenditure,03/04/2020,114.11,Director of Regeneration
Type of Retail Store,Grocery Stores/Supermarkets,Sainsburys S/mkts,Supplies and Services related expenditure,03/04/2020,1.4,Director of Children's Services and Education
Type of Retail Store,Grocery Stores/Supermarkets,Wm Morrisons Store,Supplies and Services related expenditure,03/04/2020,1.8,Director of Children's Services and Education
Type of Retail Store,Drug Stores & Pharmacies,Boots 2148,Supplies and Services related expenditure,03/04/2020,4.66,Director of Children's Services and Education
Other Supplies,Discount Stores,B And M Retail,Supplies and Services related expenditure,03/04/2020,9.98,Director of Children's Services and Education
Type of Retail Store,Grocery Stores/Supermarkets,Wm Morrisons Store,Supplies and Services related expenditure,03/04/2020,4.58,Director of Children's Services and Education
Type of Retail Store,Grocery Stores/Supermarkets,Wm Morrisons Store,Supplies and Services related expenditure,03/04/2020,18.35,Director of Children's Services and Education
Type of Retail Store,Drug Stores & Pharmacies,Boots 2148,Supplies and Services related expenditure,03/04/2020,27.08,Director of Children's Services and Education
Other Supplies,Discount Stores,Poundland Ltd 1477,Supplies and Services related expenditure,03/04/2020,5,Director of Adult Services
Other Supplies,Misc Speciality Retail,Amznmktplace,Supplies and Services related expenditure,04/04/2020,15.97,Director of Children's Services and Education
Other Supplies,Misc Speciality Retail,Amznmktplace,Supplies and Services related expenditure,04/04/2020,15.97,Director of Children's Services and Education
Other Supplies,Misc Speciality Retail,Amznmktplace Amazon.Co.Uk,Supplies and Services related expenditure,04/04/2020,24.57,Director of Adult Services
Type of Retail Store,Pet Stores/Food & Supply,Sp * Puprepublicuk,Supplies and Services related expenditure,04/04/2020,17.92,"Director of Housing, Neighbourhood and Building Services"
Miscellaneous,Continuity/Subscription Mercht,Mailchimp,Supplies and Services related expenditure,04/04/2020,59.43,"Director of Culture, Leisure & Regulatory Services"
Other Supplies,Misc Speciality Retail,Amznmktplace Amazon.Co.Uk,Premises related expenditure,04/04/2020,52.46,Director of Adult Services
Type of Retail Store,Grocery Stores/Supermarkets,Asda Groceries Online,Supplies and Services related expenditure,04/04/2020,5,Director of Children's Services and Education
Business Services,Business Services - Default,Cs* Tesco Stores Gc,Supplies and Services related expenditure,04/04/2020,120,Director of Children's Services and Education
Business Services,Business Services - Default,Cs* Tesco Stores Gc,Supplies and Services related expenditure,04/04/2020,120,Director of Children's Services and Education
Business Services,Business Services - Default,Cs* Tesco Stores Gc,Supplies and Services related expenditure,04/04/2020,180,Director of Children's Services and Education
Type of Retail Store,Grocery Stores/Supermarkets,Tesco Store 3055,Supplies and Services related expenditure,04/04/2020,10.5,Director of Children's Services and Education
Type of Retail Store,Grocery Stores/Supermarkets,Tesco Store 3055,Supplies and Services related expenditure,04/04/2020,14.65,Director of Children's Services and Education
Other Supplies,Department Stores,Southern Co-Op 0008,Agency and Third Party Payments related expenditure,04/04/2020,20,Director of Children's Services and Education
Type of Retail Store,Sporting Goods Stores,Jd Sports Internet,Supplies and Services related expenditure,05/04/2020,28.99,Director of Children's Services and Education
Facilities/Repair Supplies,Lawn/Garden Supply/Nursery,Hedges Direct Limited,Premises related expenditure,05/04/2020,44.75,Director of Children's Services and Education
Business Expenses/Services,Florist Supplies/Nursery Stock,Jersey Plants Direct,Premises related expenditure,05/04/2020,59.96,Director of Children's Services and Education
Miscellaneous,Other Direct Marketers,Amazon.Co.Uk,Supplies and Services related expenditure,05/04/2020,30.83,"Director of Housing, Neighbourhood and Building Services"
Other Supplies,Misc Speciality Retail,Amznmktplace,Supplies and Services related expenditure,05/04/2020,16.9,Director of Adult Services
Other Supplies,Misc Speciality Retail,Amznmktplace,Supplies and Services related expenditure,05/04/2020,15.82,Director of Adult Services
Other Supplies,Misc Speciality Retail,Amznmktplace,Supplies and Services related expenditure,05/04/2020,67.43,Director of Children's Services and Education
Equipment And Furniture,Household Appliance Stores,Ao Retail Limited,Supplies and Services related expenditure,05/04/2020,199.17,Director of Children's Services and Education
Personal Service Provider,Professional Services - Def,Www.Ofcom.Org.Uk,Supplies and Services related expenditure,05/04/2020,150,Director of Regeneration
Other Supplies,Misc Speciality Retail,Amazon.Co.Uk,Supplies and Services related expenditure,05/04/2020,16.67,Director of Regeneration
Other Supplies,Misc Gen Merchandise - Def,Wilko Retail Limited,Supplies and Services related expenditure,05/04/2020,26.33,Director of Children's Services and Education
Type of Retail Store,Grocery Stores/Supermarkets,Wm Morrisons Store,Premises related expenditure,05/04/2020,3.75,Director of Children's Services and Education
Type of Retail Store,Grocery Stores/Supermarkets,Wm Morrisons Store,Supplies and Services related expenditure,05/04/2020,4.83,Director of Children's Services and Education
Type of Retail Store,Grocery Stores/Supermarkets,Wm Morrisons Store,Supplies and Services related expenditure,05/04/2020,15,Director of Children's Services and Education
Type of Retail Store,Grocery Stores/Supermarkets,Wm Morrisons Store,Supplies and Services related expenditure,05/04/2020,81.43,Director of Children's Services and Education
Other Supplies,Department Stores,Safetysuppl,Supplies and Services related expenditure,05/04/2020,37.75,Director of Regeneration
Business Services,Business Services - Default,Www.Planningportal.Co.,Supplies and Services related expenditure,06/04/2020,487,"Director of Housing, Neighbourhood and Building Services"
Automobile Services & Supplies,Service Stations,Milton Road Servic,Premises related expenditure,06/04/2020,0.83,Director of Children's Services and Education
Automobile Services & Supplies,Service Stations,Milton Road Servic,Supplies and Services related expenditure,06/04/2020,2.78,Director of Children's Services and Education
Type of Retail Store,Grocery Stores/Supermarkets,Asda Superstore,Supplies and Services related expenditure,06/04/2020,7.24,Director of Children's Services and Education
Auto/Vehicle Expenses,Tire Retread/Repair Shops,Setyres,Transport related expenditure,06/04/2020,91.67,"Director of Culture, Leisure & Regulatory Services"
Utility,Computer Network/Info Svcs,Siteground Hosting,Supplies and Services related expenditure,06/04/2020,14.95,"Director of Culture, Leisure & Regulatory Services"
Utility,Computer Network/Info Svcs,Siteground Hosting,Supplies and Services related expenditure,06/04/2020,14.95,"Director of Culture, Leisure & Regulatory Services"
Type of Retail Store,Grocery Stores/Supermarkets,Tesco Stores 4579,Supplies and Services related expenditure,06/04/2020,6,Director of Children's Services and Education
Type of Retail Store,Grocery Stores/Supermarkets,Tesco Stores 4579,Supplies and Services related expenditure,06/04/2020,23.48,Director of Children's Services and Education
Business Services,Advertising Services,Facebk 4ubb2sj8z2,Supplies and Services related expenditure,06/04/2020,6.5,Director of Corporate Services
Business Services,Advertising Services,Facebk 4ubb2sj8z2,Supplies and Services related expenditure,06/04/2020,293.5,Director of Corporate Services
Government Service,Govt Serv - Default,Pageone,Supplies and Services related expenditure,06/04/2020,31.14,"Director of Culture, Leisure & Regulatory Services"
Type of Retail Store,Grocery Stores/Supermarkets,Tesco Stores 4579,Supplies and Services related expenditure,06/04/2020,45.5,Director of Finance & Resources
Business To Business Eqpt/Furn,Stationery/Office Supplies,Www.Banneruk.Com,Supplies and Services related expenditure,06/04/2020,139.5,"Director of Housing, Neighbourhood and Building Services"
Business To Business Eqpt/Furn,Stationery/Office Supplies,Www.Banneruk.Com,Supplies and Services related expenditure,06/04/2020,218.56,Director of Finance & Resources
Type of Retail Store,Freezer/Meat Lockers,Dennis Edwards Food Serv,Supplies and Services related expenditure,06/04/2020,1089.1,Director of Finance & Resources
Business To Business Eqpt/Furn,Stationery/Office Supplies,Www.Banneruk.Com,Supplies and Services related expenditure,06/04/2020,1744.75,"Director of Housing, Neighbourhood and Building Services"
Government Service,Schools - Default,Off Road Driver,Agency and Third Party Payments related expenditure,06/04/2020,59,Director of Children's Services and Education
Type of Retail Store,Grocery Stores/Supermarkets,Tesco Store 3055,Supplies and Services related expenditure,06/04/2020,68.43,Director of Children's Services and Education
Transportation Conveyor,Taxicabs/Limousines,Aqua Cars,Supplies and Services related expenditure,06/04/2020,3.1,Director of Children's Services and Education
Hotels And Motels,Lodging/Hotels/Motels/Resorts,Portsmouth Inns,Supplies and Services related expenditure,06/04/2020,60,Director of Children's Services and Education
Type of Retail Store,Grocery Stores/Supermarkets,Tesco Store 3048,Supplies and Services related expenditure,06/04/2020,100,Director of Children's Services and Education
Type of Retail Store,Grocery Stores/Supermarkets,Fruit Basket Ltd,Premises related expenditure,06/04/2020,34.82,"Director of Culture, Leisure & Regulatory Services"
Facilities Maintenance,Clean/Maint/Janitoral Serv,Initial Washroom,Premises related expenditure,06/04/2020,74.28,Director of Regeneration
Other Supplies,Misc Speciality Retail,The Recycled Assets Co,Agency and Third Party Payments related expenditure,06/04/2020,425,Director of Children's Services and Education
Business Expenses/Services,Postage Stamps,The Post Office,Supplies and Services related expenditure,06/04/2020,19.5,"Director of Housing, Neighbourhood and Building Services"
Digital Goods,Digital Goods - Games,Cdkeys.Com,Agency and Third Party Payments related expenditure,06/04/2020,19.39,Director of Children's Services and Education
Other Supplies,Department Stores,Southern Co-Op 0002,Supplies and Services related expenditure,06/04/2020,15.6,Director of Adult Services
Business To Business Eqpt/Furn,Stationery/Office Supplies,Www.Banneruk.Com,Supplies and Services related expenditure,06/04/2020,102,Director of Regeneration
Other Supplies,Discount Stores,Argos Ltd,Supplies and Services related expenditure,06/04/2020,84.94,Director of Children's Services and Education
Government Service,Colleges/Univ/Jc/Profession,Www.Cimaglobal.Com,Employees related expenditure,06/04/2020,99,Director of Finance & Resources
Government Service,Colleges/Univ/Jc/Profession,Www.Cimaglobal.Com,Employees related expenditure,06/04/2020,99,Director of Finance & Resources
Equipment And Furniture,Household Appliance Stores,Machine Mart Ltd,Premises related expenditure,06/04/2020,19.96,"Director of Culture, Leisure & Regulatory Services"
Facilities/Repair Supplies,Home Supply Warehouse Stores,Screwfix Direct,Premises related expenditure,06/04/2020,77.09,"Director of Culture, Leisure & Regulatory Services"
Equipment And Furniture,Household Appliance Stores,Www.Thebarcodewarehous,Supplies and Services related expenditure,06/04/2020,384.93,Director of Regeneration
Business Expenses/Services,Florist Supplies/Nursery Stock,Palmstead Nurseries Lt,Premises related expenditure,06/04/2020,2340.36,"Director of Housing, Neighbourhood and Building Services"
Transportation Conveyor,Passenger Railways,Sw Railway App,Transport related expenditure,06/04/2020,-13.5,Director of Adult Services
Transportation Conveyor,Passenger Railways,Sw Railway App,Transport related expenditure,06/04/2020,-44.4,Director of Adult Services
Utility,Phone Serv/Equip Utility,O2,Supplies and Services related expenditure,06/04/2020,27.16,Director of Children's Services and Education
Auto/Vehicle Expenses,Auto Service Shops/Non Dealer,Hollies Engineering,Transport related expenditure,06/04/2020,68.4,"Director of Culture, Leisure & Regulatory Services"
Other Supplies,Department Stores,The Range,Supplies and Services related expenditure,06/04/2020,10.82,Director of Adult Services
Miscellaneous,Member Organizations - Def,Www.Haymarket.Com,Supplies and Services related expenditure,06/04/2020,245.03,Director of Portsmouth International Port
Other Supplies,Misc Speciality Retail,Careshop,Supplies and Services related expenditure,06/04/2020,190,Director of Adult Services
Miscellaneous,Continuity/Subscription Mercht,Zoom.Gbp,Supplies and Services related expenditure,06/04/2020,11.99,Director of Regeneration
Business Expenses/Services,Postage Stamps,Post Office Counter,Supplies and Services related expenditure,06/04/2020,1.72,Director of Regeneration
Business To Business Eqpt/Furn,Computer Software Stores,Mindomo,Supplies and Services related expenditure,06/04/2020,32.84,Director of Regeneration
Business Expenses/Services,Postage Stamps,Post Office Counter,Supplies and Services related expenditure,06/04/2020,13.63,Director of Children's Services and Education
Other Supplies,Misc Speciality Retail,Amznmktplace,Supplies and Services related expenditure,06/04/2020,16.5,"Director of Culture, Leisure & Regulatory Services"
Type of Retail Store,Grocery Stores/Supermarkets,Tesco Store 3055,Supplies and Services related expenditure,06/04/2020,6.91,Director of Children's Services and Education
Type of Retail Store,Grocery Stores/Supermarkets,Tesco Store 3055,Supplies and Services related expenditure,06/04/2020,32.31,Director of Children's Services and Education
Business To Business Facility/,Industrial Supplies - Def,Www.Arco.Co.Uk,Supplies and Services related expenditure,06/04/2020,1793.34,Director of Finance & Resources
Clothing Services,Misc Apparel/Access Shops,Www.Cclsouthmapton.Co.,Supplies and Services related expenditure,06/04/2020,2353.6,Director of Finance & Resources
Type of Retail Store,Grocery Stores/Supermarkets,Asda Superstore,Supplies and Services related expenditure,06/04/2020,0.75,Director of Children's Services and Education
Type of Retail Store,Grocery Stores/Supermarkets,Asda Superstore,Supplies and Services related expenditure,06/04/2020,12,Director of Children's Services and Education
Type of Retail Store,Grocery Stores/Supermarkets,Asda Superstore,Supplies and Services related expenditure,06/04/2020,18.84,Director of Children's Services and Education
Business To Business Facility/,Industrial Supplies - Def,Www.Arco.Co.Uk,Supplies and Services related expenditure,02/04/2020,61.32,"Director of Housing, Neighbourhood and Building Services"
Business To Business Eqpt/Furn,Computers/Peripherals/Software,Midland Computers Limited,Supplies and Services related expenditure,06/04/2020,30,Director of Children's Services and Education
Business To Business Eqpt/Furn,Computers/Peripherals/Software,Midland Computers Limited,Supplies and Services related expenditure,06/04/2020,30,Director of Children's Services and Education
Business Services,Business Services - Default,Apt Icc Ltd,Supplies and Services related expenditure,06/04/2020,344.63,Director of Adult Services
Business To Business Eqpt/Furn,Stationery/Office Supplies,Viking Uk,Supplies and Services related expenditure,06/04/2020,49.99,Director of Portsmouth International Port
Medical,Lab/Med/Hospital Equipment,Wightman & Parrish Ltd,Premises related expenditure,07/04/2020,303.61,"Director of Housing, Neighbourhood and Building Services"
Freight/Courier/Warehouse Svcs,Public Warehousing,Big Yellow S S Portsmout,Premises related expenditure,07/04/2020,40,"Director of Housing, Neighbourhood and Building Services"
Freight/Courier/Warehouse Svcs,Public Warehousing,Big Yellow S S Portsmout,Premises related expenditure,07/04/2020,102.16,"Director of Housing, Neighbourhood and Building Services"
Freight/Courier/Warehouse Svcs,Public Warehousing,Big Yellow S S Portsmout,Premises related expenditure,07/04/2020,15,"Director of Housing, Neighbourhood and Building Services"
Freight/Courier/Warehouse Svcs,Public Warehousing,Big Yellow S S Portsmout,Premises related expenditure,07/04/2020,127.5,"Director of Housing, Neighbourhood and Building Services"
Freight/Courier/Warehouse Svcs,Public Warehousing,Big Yellow S S Portsmout,Premises related expenditure,07/04/2020,263.67,"Director of Housing, Neighbourhood and Building Services"
Hotels And Motels,Travelodge,Travelodge Gb0000,Agency and Third Party Payments related expenditure,07/04/2020,-21,"Director of Housing, Neighbourhood and Building Services"
Hotels And Motels,Travelodge,Travelodge Gb0000,Agency and Third Party Payments related expenditure,07/04/2020,-288.13,"Director of Housing, Neighbourhood and Building Services"
Hotels And Motels,Travelodge,Travelodge Gb0000,Agency and Third Party Payments related expenditure,07/04/2020,-21,"Director of Housing, Neighbourhood and Building Services"
Hotels And Motels,Travelodge,Travelodge Gb0000,Agency and Third Party Payments related expenditure,07/04/2020,-288.13,"Director of Housing, Neighbourhood and Building Services"
Hotels And Motels,Travelodge,Travelodge Gb0000,Agency and Third Party Payments related expenditure,07/04/2020,-47.25,"Director of Housing, Neighbourhood and Building Services"
Hotels And Motels,Travelodge,Travelodge Gb0000,Agency and Third Party Payments related expenditure,07/04/2020,-288.88,"Director of Housing, Neighbourhood and Building Services"
Hotels And Motels,Travelodge,Travelodge Gb0000,Agency and Third Party Payments related expenditure,07/04/2020,-42,"Director of Housing, Neighbourhood and Building Services"
Hotels And Motels,Travelodge,Travelodge Gb0000,Agency and Third Party Payments related expenditure,07/04/2020,-319.8,"Director of Housing, Neighbourhood and Building Services"
Hotels And Motels,Travelodge,Travelodge Gb0000,Agency and Third Party Payments related expenditure,07/04/2020,-667.51,"Director of Housing, Neighbourhood and Building Services"
Hotels And Motels,Travelodge,Travelodge Gb0000,Agency and Third Party Payments related expenditure,07/04/2020,-675.11,"Director of Housing, Neighbourhood and Building Services"
Hotels And Motels,Travelodge,Travelodge Gb0000,Agency and Third Party Payments related expenditure,07/04/2020,-675.11,"Director of Housing, Neighbourhood and Building Services"
Hotels And Motels,Travelodge,Travelodge Gb0000,Agency and Third Party Payments related expenditure,07/04/2020,-679.79,"Director of Housing, Neighbourhood and Building Services"
Automobile Rental,Motor Home/Rv Rentals,Southsea Leisure Park,Agency and Third Party Payments related expenditure,07/04/2020,1303.33,"Director of Housing, Neighbourhood and Building Services"
Medical,Lab/Med/Hospital Equipment,Wightman & Parrish Ltd,Premises related expenditure,07/04/2020,134.6,"Director of Housing, Neighbourhood and Building Services"
Medical,Lab/Med/Hospital Equipment,Wightman & Parrish Ltd,Premises related expenditure,07/04/2020,273.03,"Director of Housing, Neighbourhood and Building Services"
Government Service,Tax Payments,Dvla Vehicle Tax,Transport related expenditure,07/04/2020,267.5,"Director of Culture, Leisure & Regulatory Services"
Government Service,Tax Payments,Dvla Vehicle Tax,Transport related expenditure,07/04/2020,267.5,"Director of Culture, Leisure & Regulatory Services"
Facilities/Repair Supplies,Lawn/Garden Supply/Nursery,Wwwtudorenvironmentalcou,Supplies and Services related expenditure,07/04/2020,398.4,"Director of Culture, Leisure & Regulatory Services"
Facilities/Repair Supplies,Lawn/Garden Supply/Nursery,Wwwtudorenvironmentalcou,Supplies and Services related expenditure,07/04/2020,59,"Director of Culture, Leisure & Regulatory Services"
Miscellaneous,Video Amusement Game Supply,365games.Co.Uk,Supplies and Services related expenditure,07/04/2020,37.88,Director of Children's Services and Education
Automobile Services & Supplies,Service Stations,Tesco Pfs 4274,Transport related expenditure,07/04/2020,39.76,Director of Regeneration
Hotels And Motels,Travelodge,Travelodge Gb0000,Agency and Third Party Payments related expenditure,07/04/2020,-341.11,"Director of Housing, Neighbourhood and Building Services"
Hotels And Motels,Travelodge,Travelodge Gb0000,Agency and Third Party Payments related expenditure,07/04/2020,-47.5,"Director of Housing, Neighbourhood and Building Services"
Hotels And Motels,Travelodge,Travelodge Gb0000,Agency and Third Party Payments related expenditure,07/04/2020,-520.63,"Director of Housing, Neighbourhood and Building Services"
Hotels And Motels,Travelodge,Travelodge Gb0000,Agency and Third Party Payments related expenditure,07/04/2020,-94.5,"Director of Housing, Neighbourhood and Building Services"
Hotels And Motels,Travelodge,Travelodge Gb0000,Agency and Third Party Payments related expenditure,07/04/2020,-634.05,"Director of Housing, Neighbourhood and Building Services"
Hotels And Motels,Travelodge,Travelodge Gb0000,Agency and Third Party Payments related expenditure,07/04/2020,-126,"Director of Housing, Neighbourhood and Building Services"
Hotels And Motels,Travelodge,Travelodge Gb0000,Agency and Third Party Payments related expenditure,07/04/2020,-1506.34,"Director of Housing, Neighbourhood and Building Services"
Hotels And Motels,Travelodge,Travelodge Gb0000,Agency and Third Party Payments related expenditure,07/04/2020,-21,"Director of Housing, Neighbourhood and Building Services"
Hotels And Motels,Travelodge,Travelodge Gb0000,Agency and Third Party Payments related expenditure,07/04/2020,-295.26,"Director of Housing, Neighbourhood and Building Services"
Hotels And Motels,Travelodge,Travelodge Gb0000,Agency and Third Party Payments related expenditure,07/04/2020,-26.2,"Director of Housing, Neighbourhood and Building Services"
Hotels And Motels,Travelodge,Travelodge Gb0000,Agency and Third Party Payments related expenditure,07/04/2020,-321.42,"Director of Housing, Neighbourhood and Building Services"
Hotels And Motels,Travelodge,Travelodge Gb0000,Agency and Third Party Payments related expenditure,07/04/2020,-26.25,"Director of Housing, Neighbourhood and Building Services"
Hotels And Motels,Travelodge,Travelodge Gb0000,Agency and Third Party Payments related expenditure,07/04/2020,-343.54,"Director of Housing, Neighbourhood and Building Services"
Hotels And Motels,Travelodge,Travelodge Gb0000,Agency and Third Party Payments related expenditure,07/04/2020,-26.25,"Director of Housing, Neighbourhood and Building Services"
Hotels And Motels,Travelodge,Travelodge Gb0000,Agency and Third Party Payments related expenditure,07/04/2020,-343.54,"Director of Housing, Neighbourhood and Building Services"
Hotels And Motels,Travelodge,Travelodge Gb0000,Agency and Third Party Payments related expenditure,07/04/2020,-31.5,"Director of Housing, Neighbourhood and Building Services"
Hotels And Motels,Travelodge,Travelodge Gb0000,Agency and Third Party Payments related expenditure,07/04/2020,-406.87,"Director of Housing, Neighbourhood and Building Services"
Hotels And Motels,Travelodge,Travelodge Gb0000,Agency and Third Party Payments related expenditure,07/04/2020,-63,"Director of Housing, Neighbourhood and Building Services"
Hotels And Motels,Travelodge,Travelodge Gb0000,Agency and Third Party Payments related expenditure,07/04/2020,-457.53,"Director of Housing, Neighbourhood and Building Services"
Type of Retail Store,Grocery Stores/Supermarkets,Asda Superstore,Supplies and Services related expenditure,07/04/2020,1.67,Director of Children's Services and Education
Type of Retail Store,Grocery Stores/Supermarkets,Asda Superstore,Supplies and Services related expenditure,07/04/2020,3.2,Director of Children's Services and Education
Hotels And Motels,Travelodge,Travelodge Gb0000,Agency and Third Party Payments related expenditure,07/04/2020,-275.87,"Director of Housing, Neighbourhood and Building Services"
Transportation Conveyor,Taxicabs/Limousines,Aqua Cars,Transport related expenditure,07/04/2020,7.5,Director of Children's Services and Education
Transportation Conveyor,Taxicabs/Limousines,Aqua Cars,Supplies and Services related expenditure,07/04/2020,7.5,Director of Children's Services and Education
Type of Retail Store,Grocery Stores/Supermarkets,Tesco Stores 4611,Supplies and Services related expenditure,07/04/2020,40,Director of Children's Services and Education
Type of Retail Store,Grocery Stores/Supermarkets,Tesco Stores 4611,Supplies and Services related expenditure,07/04/2020,20,Director of Children's Services and Education
Type of Retail Store,Grocery Stores/Supermarkets,Tesco Stores 4611,Supplies and Services related expenditure,07/04/2020,20,Director of Children's Services and Education
Hotels And Motels,Lodging/Hotels/Motels/Resorts,Portsmouth Inns,Supplies and Services related expenditure,07/04/2020,60,Director of Children's Services and Education
Business To Business Eqpt/Furn,Stationery/Office Supplies,Www.Banneruk.Com,Supplies and Services related expenditure,07/04/2020,186,"Director of Housing, Neighbourhood and Building Services"
Type of Retail Store,Grocery Stores/Supermarkets,Sainsburys S/mkt,Premises related expenditure,07/04/2020,3.75,Director of Children's Services and Education
Type of Retail Store,Grocery Stores/Supermarkets,Sainsburys S/mkt,Supplies and Services related expenditure,07/04/2020,4.17,Director of Children's Services and Education
Type of Retail Store,Grocery Stores/Supermarkets,Sainsburys S/mkt,Supplies and Services related expenditure,07/04/2020,47.13,Director of Children's Services and Education
Type of Retail Store,Grocery Stores/Supermarkets,Sainsburys S/mkt,Supplies and Services related expenditure,07/04/2020,29.25,Director of Children's Services and Education
Type of Retail Store,Electronics Sales,Currys Online,Supplies and Services related expenditure,07/04/2020,116.66,Director of Children's Services and Education
Eating And Drinking Places,Eating Places/Restaurants,Dominos Pizza,Supplies and Services related expenditure,07/04/2020,16.83,Director of Children's Services and Education
Facilities/Repair Supplies,Hardware Stores,Www.Sheetplastics.Co.U,Supplies and Services related expenditure,07/04/2020,123.63,Director of Portsmouth International Port
Business Services,Business Services - Default,Posturite Ltd,Supplies and Services related expenditure,07/04/2020,171.66,Director of Regeneration
Equipment And Furniture,Furniture/Equip Stores,Natural Living,Supplies and Services related expenditure,07/04/2020,329.17,Director of Regeneration
Automobile Services & Supplies,Service Stations,Shell A34 Winchester B,Supplies and Services related expenditure,07/04/2020,12.31,Director of Children's Services and Education
Facilities/Repair Services,Gen Contractors Residentl/Coml,Paypal,Premises related expenditure,07/04/2020,488,Director of Portsmouth International Port
Type of Retail Store,Grocery Stores/Supermarkets,Tesco Store 3048,Agency and Third Party Payments related expenditure,07/04/2020,140,Director of Children's Services and Education
Other Supplies,Misc Speciality Retail,Amznmktplace,Supplies and Services related expenditure,07/04/2020,31.67,Director of Children's Services and Education
Other Supplies,Misc Speciality Retail,Amznmktplace,Supplies and Services related expenditure,07/04/2020,168.56,Director of Children's Services and Education
Other Supplies,Discount Stores,Argos Ltd,Supplies and Services related expenditure,07/04/2020,78.94,Director of Children's Services and Education
Type of Retail Store,Grocery Stores/Supermarkets,Aldi Stores,Supplies and Services related expenditure,07/04/2020,7.92,Director of Adult Services
Type of Retail Store,Grocery Stores/Supermarkets,Lidl Gb Waterlooville,Supplies and Services related expenditure,07/04/2020,16.58,Director of Adult Services
Business Expenses/Services,Postage Stamps,Post Office Counter,Agency and Third Party Payments related expenditure,07/04/2020,3.78,"Director of Culture, Leisure & Regulatory Services"
Auto/Vehicle Expenses,Auto Service Shops/Non Dealer,Boarhunt Group-Vt,Transport related expenditure,07/04/2020,32.73,"Director of Housing, Neighbourhood and Building Services"
Auto/Vehicle Expenses,Auto Service Shops/Non Dealer,Boarhunt Group-Vt,Transport related expenditure,07/04/2020,59.85,Director of Portsmouth International Port
Auto/Vehicle Expenses,Auto Service Shops/Non Dealer,Boarhunt Group-Vt,Transport related expenditure,07/04/2020,31.05,"Director of Housing, Neighbourhood and Building Services"
Auto/Vehicle Expenses,Auto Service Shops/Non Dealer,Boarhunt Group-Vt,Transport related expenditure,07/04/2020,31.06,"Director of Housing, Neighbourhood and Building Services"
Auto/Vehicle Expenses,Auto Service Shops/Non Dealer,Boarhunt Group-Vt,Transport related expenditure,07/04/2020,65.88,Director of Children's Services and Education
Auto/Vehicle Expenses,Auto Service Shops/Non Dealer,Boarhunt Group-Vt,Transport related expenditure,07/04/2020,85.89,"Director of Housing, Neighbourhood and Building Services"
Auto/Vehicle Expenses,Auto Service Shops/Non Dealer,Boarhunt Group-Vt,Transport related expenditure,07/04/2020,97.98,Director of Children's Services and Education
Auto/Vehicle Expenses,Auto Service Shops/Non Dealer,Boarhunt Group-Vt,Transport related expenditure,07/04/2020,203.59,"Director of Housing, Neighbourhood and Building Services"
Auto/Vehicle Expenses,Auto Service Shops/Non Dealer,Boarhunt Group-Vt,Transport related expenditure,07/04/2020,256.91,"Director of Housing, Neighbourhood and Building Services"
Auto/Vehicle Expenses,Auto Service Shops/Non Dealer,Boarhunt Group-Vt,Transport related expenditure,07/04/2020,330.35,"Director of Housing, Neighbourhood and Building Services"
Other Supplies,Catalog Merchant,Www.Uk.Insight.Com,Supplies and Services related expenditure,07/04/2020,804.76,Director of Corporate Services
Type of Retail Store,Freezer/Meat Lockers,Dennis Edwards Food Serv,Supplies and Services related expenditure,07/04/2020,630.64,Director of Adult Services
Type of Retail Store,Freezer/Meat Lockers,Dennis Edwards Food Serv,Supplies and Services related expenditure,07/04/2020,154.14,Director of Adult Services
Transportation Conveyor,Passenger Railways,Sw Railway App,Transport related expenditure,07/04/2020,-79,Director of Children's Services and Education
Miscellaneous,Continuity/Subscription Mercht,Zoom.Gbp,Supplies and Services related expenditure,07/04/2020,11.99,Director of Corporate Services
Transportation Conveyor,Taxicabs/Limousines,Aqua Cars,Supplies and Services related expenditure,07/04/2020,6.9,Director of Children's Services and Education
Type of Retail Store,Drug Stores & Pharmacies,"Boots,fareham",Supplies and Services related expenditure,07/04/2020,8.33,Director of Children's Services and Education
Other Supplies,Discount Stores,Argos Ltd,Supplies and Services related expenditure,07/04/2020,152.95,Director of Children's Services and Education
Other Supplies,Discount Stores,Argos Ltd,Supplies and Services related expenditure,07/04/2020,529.97,Director of Children's Services and Education
Business Expenses/Services,Postage Stamps,Post Office Counter,Supplies and Services related expenditure,07/04/2020,260,Director of Children's Services and Education
Miscellaneous,Civic/Social/Fraternal Assc,Paypal,Premises related expenditure,07/04/2020,1000,Director of Adult Services
Equipment And Furniture,Household Appliance Stores,Ebuyer (UK) Ltd,Supplies and Services related expenditure,07/04/2020,686.18,Director of Corporate Services
Type of Retail Store,Electronics Sales,Currys Online,Supplies and Services related expenditure,08/04/2020,290.83,Director of Children's Services and Education
Business Services,Business Services - Default,Www.Eyfs.Info,Supplies and Services related expenditure,08/04/2020,85.83,Director of Children's Services and Education
Business Services,Employment/Temp Help Agen,Www.Reed.Co.Uk,Employees related expenditure,08/04/2020,29.17,Director of Children's Services and Education
Other Supplies,Misc Speciality Retail,Careshop,Supplies and Services related expenditure,08/04/2020,212.5,Director of Adult Services
Other Supplies,Misc Speciality Retail,Careshop,Supplies and Services related expenditure,08/04/2020,212.5,Director of Adult Services
Hotels And Motels,Travelodge,Travelodge Gb0000,Agency and Third Party Payments related expenditure,08/04/2020,-912.15,"Director of Housing, Neighbourhood and Building Services"
Hotels And Motels,Travelodge,Travelodge Gb0000,Agency and Third Party Payments related expenditure,08/04/2020,-734.5,"Director of Housing, Neighbourhood and Building Services"
Hotels And Motels,Travelodge,Travelodge Gb0000,Agency and Third Party Payments related expenditure,08/04/2020,-105,"Director of Housing, Neighbourhood and Building Services"
Hotels And Motels,Travelodge,Travelodge Gb0000,Agency and Third Party Payments related expenditure,08/04/2020,-703.71,"Director of Housing, Neighbourhood and Building Services"
Automobiles and Vehicles,Misc Auto Dealers - Default,Www.Agratech.Co.Uk,Supplies and Services related expenditure,08/04/2020,79.95,"Director of Housing, Neighbourhood and Building Services"
Miscellaneous,Agricultural Co-Operativ,Www.Nomixenviro.Co.Uk,Supplies and Services related expenditure,08/04/2020,179.5,"Director of Housing, Neighbourhood and Building Services"
Other Supplies,Misc Speciality Retail,Value Products Ltd,Supplies and Services related expenditure,08/04/2020,89,"Director of Housing, Neighbourhood and Building Services"
Business Expenses/Services,Books/Periodicals/Newspapers,Www.Wheelersbooks.Co.N,Supplies and Services related expenditure,08/04/2020,119.42,"Director of Culture, Leisure & Regulatory Services"
Business Expenses/Services,Books/Periodicals/Newspapers,Www.Wheelersbooks.Co.N,Supplies and Services related expenditure,08/04/2020,518.05,"Director of Culture, Leisure & Regulatory Services"
Facilities/Repair Supplies,Home Supply Warehouse Stores,Screwfix Direct,Premises related expenditure,08/04/2020,32.9,Director of Children's Services and Education
Type of Retail Store,Freezer/Meat Lockers,Dennis Edwards Food Serv,Supplies and Services related expenditure,08/04/2020,49.68,"Director of Housing, Neighbourhood and Building Services"
Medical,Lab/Med/Hospital Equipment,Wightman & Parrish,Supplies and Services related expenditure,08/04/2020,64.95,Director of Finance & Resources
Type of Retail Store,Freezer/Meat Lockers,Dennis Edwards Food Serv,Supplies and Services related expenditure,08/04/2020,151.2,Director of Finance & Resources
Medical,Lab/Med/Hospital Equipment,Wightman & Parrish Ltd,Premises related expenditure,08/04/2020,183.85,"Director of Housing, Neighbourhood and Building Services"
Medical,Lab/Med/Hospital Equipment,Wightman & Parrish Ltd,Premises related expenditure,08/04/2020,207.35,"Director of Housing, Neighbourhood and Building Services"
Other Supplies,Misc Speciality Retail,Tesco Online,Supplies and Services related expenditure,08/04/2020,37.5,Director of Children's Services and Education
Type of Retail Store,Grocery Stores/Supermarkets,Wm Morrisons Store,Supplies and Services related expenditure,08/04/2020,13.25,"Director of Housing, Neighbourhood and Building Services"
Type of Retail Store,Drug Stores & Pharmacies,H J Everett (Chemist),Supplies and Services related expenditure,08/04/2020,35.18,Director of Adult Services
Other Supplies,Combination Catalog & Retail,Telecommande-Express.C,Supplies and Services related expenditure,08/04/2020,20.81,"Director of Culture, Leisure & Regulatory Services"
Hotels And Motels,Lodging/Hotels/Motels/Resorts,Portsmouth Inns,Supplies and Services related expenditure,08/04/2020,362.5,Director of Children's Services and Education
Eating And Drinking Places,Eating Places/Restaurants,Dominos Pizza,Supplies and Services related expenditure,08/04/2020,14.32,Director of Children's Services and Education
Personal Service Provider,Computer Program/Sys Design,Transparent,Supplies and Services related expenditure,08/04/2020,353.8,Director of Regeneration
Other Supplies,Misc Speciality Retail,Amznmktplace,Supplies and Services related expenditure,08/04/2020,26.48,Director of Adult Services
Other Supplies,Misc Speciality Retail,Amznmktplace,Supplies and Services related expenditure,08/04/2020,33.8,Director of Adult Services
Type of Retail Store,Grocery Stores/Supermarkets,Www.Iceland.Co.Uk,Supplies and Services related expenditure,08/04/2020,72.28,Director of Adult Services
Other Supplies,Misc Speciality Retail,Amznmktplace Amazon.Co.Uk,Supplies and Services related expenditure,08/04/2020,4.66,"Director of Housing, Neighbourhood and Building Services"
Other Supplies,Misc Speciality Retail,Amznmktplace Amazon.Co.Uk,Supplies and Services related expenditure,08/04/2020,22.4,"Director of Housing, Neighbourhood and Building Services"
Other Supplies,Misc Speciality Retail,Amznmktplace,Supplies and Services related expenditure,08/04/2020,3.3,"Director of Housing, Neighbourhood and Building Services"
Other Supplies,Misc Speciality Retail,Amznmktplace,Supplies and Services related expenditure,08/04/2020,15.88,"Director of Housing, Neighbourhood and Building Services"
Other Supplies,Misc Speciality Retail,Amznmktplace,Supplies and Services related expenditure,08/04/2020,18.52,"Director of Housing, Neighbourhood and Building Services"
Other Supplies,Misc Speciality Retail,Amznmktplace,Supplies and Services related expenditure,08/04/2020,88.91,"Director of Housing, Neighbourhood and Building Services"
Other Supplies,Misc Speciality Retail,Amznmktplace,Supplies and Services related expenditure,08/04/2020,14.16,Director of Children's Services and Education
Hotels And Motels,Lodging/Hotels/Motels/Resorts,Portsmouth Inns,Supplies and Services related expenditure,08/04/2020,60,Director of Children's Services and Education
Miscellaneous,Fines,Combined Court Cen,Supplies and Services related expenditure,08/04/2020,55,Director of Finance & Resources
Equipment And Furniture,Phone Serv/Equip Non-Util,Media & Communications L,Supplies and Services related expenditure,08/04/2020,3894,Director of Corporate Services
Hotels And Motels,Lodging/Hotels/Motels/Resorts,Portsmouth Inns,Supplies and Services related expenditure,08/04/2020,430,Director of Children's Services and Education
Type of Retail Store,Grocery Stores/Supermarkets,Aldi Stores Ltd,Supplies and Services related expenditure,08/04/2020,13.96,Director of Adult Services
Utility,Phone Serv/Equip Utility,Textanywhere Ltd,Supplies and Services related expenditure,08/04/2020,402,Director of Adult Services
Other Supplies,Discount Stores,Argos Ltd,Supplies and Services related expenditure,08/04/2020,94.95,Director of Children's Services and Education
Business Expenses/Services,Postage Stamps,Post Office Counter,Supplies and Services related expenditure,08/04/2020,132.48,Director of Children's Services and Education
Medical,Lab/Med/Hospital Equipment,Wightman & Parrish Ltd,Premises related expenditure,08/04/2020,152.26,"Director of Housing, Neighbourhood and Building Services"
Automobile Rental,Automobile Rental Agency,Southern Motor Contrac,Supplies and Services related expenditure,08/04/2020,251.03,Director of Children's Services and Education
Automobile Rental,Automobile Rental Agency,Southern Motor Contrac,Transport related expenditure,08/04/2020,1327,Director of Regeneration
Type of Retail Store,Grocery Stores/Supermarkets,Tesco Store 2266,Supplies and Services related expenditure,08/04/2020,43.33,Director of Adult Services
Type of Retail Store,Grocery Stores/Supermarkets,Tesco Stores 4611,Supplies and Services related expenditure,08/04/2020,24.73,"Director of Culture, Leisure & Regulatory Services"
Facilities/Repair Supplies,Hardware Stores,Www.Toolstation.Com,Supplies and Services related expenditure,08/04/2020,12.07,Director of Adult Services
Facilities/Repair Supplies,Home Supply Warehouse Stores,B&q Direct,Supplies and Services related expenditure,08/04/2020,22.22,Director of Adult Services
Government Service,Tax Payments,Dvla Vehicle Tax,Transport related expenditure,08/04/2020,267.5,"Director of Housing, Neighbourhood and Building Services"
Business To Business Services,Misc Publishing & Printing,Festival Of Place,Supplies and Services related expenditure,08/04/2020,250,Director of Regeneration
Type of Retail Store,Grocery Stores/Supermarkets,Sainsburys S/mkts,Supplies and Services related expenditure,08/04/2020,6.33,Director of Children's Services and Education
Business Expenses/Services,Postage Stamps,Post Office Counter,Supplies and Services related expenditure,08/04/2020,7.8,Director of Children's Services and Education
Other Supplies,Misc Speciality Retail,Amznmktplace Amazon.Co.Uk,Supplies and Services related expenditure,08/04/2020,18.03,Director of Regeneration
Other Supplies,Department Stores,Southern Co-Op 0019,Supplies and Services related expenditure,08/04/2020,50,Director of Children's Services and Education
Other Supplies,Discount Stores,Argos Ltd,Supplies and Services related expenditure,08/04/2020,121.95,Director of Children's Services and Education
Other Supplies,Discount Stores,Argos Ltd,Supplies and Services related expenditure,08/04/2020,130,Director of Children's Services and Education
Type of Retail Store,Grocery Stores/Supermarkets,Tesco Stores 4579,Supplies and Services related expenditure,08/04/2020,2.58,Director of Children's Services and Education
Type of Retail Store,Grocery Stores/Supermarkets,Tesco Stores 4579,Supplies and Services related expenditure,08/04/2020,2.85,Director of Children's Services and Education
Government Service,Govt Serv - Default,Hampshire County Counc,Supplies and Services related expenditure,08/04/2020,221.49,Director of Children's Services and Education
Clothing Services,Misc Apparel/Access Shops,Www.Cclsouthmapton.Co.,Premises related expenditure,08/04/2020,60,Director of Finance & Resources
Business Services,Business Services - Default,Dhl Express UK Ltd,Supplies and Services related expenditure,08/04/2020,45.19,Director of Corporate Services
Type of Retail Store,Freezer/Meat Lockers,Dennis Edwards Food Serv,Supplies and Services related expenditure,08/04/2020,41.03,Director of Adult Services
Facilities Maintenance,Clean/Maint/Janitoral Serv,Suez Recycling&recover,Premises related expenditure,08/04/2020,45.6,Director of Adult Services
Type of Retail Store,Grocery Stores/Supermarkets,Fruit Basket Ltd,Supplies and Services related expenditure,08/04/2020,94.47,Director of Adult Services
Type of Retail Store,Misc Food Stores - Default,Bransbury Park Butchers,Supplies and Services related expenditure,08/04/2020,123,Director of Adult Services
Business To Business Eqpt/Furn,Computer Software Stores,Splashtop.Com,Supplies and Services related expenditure,09/04/2020,82.96,Director of Children's Services and Education
Business To Business Eqpt/Furn,Stationery/Office Supplies,Www.Banneruk.Com,Supplies and Services related expenditure,08/04/2020,15.3,"Director of Housing, Neighbourhood and Building Services"
Business To Business Facility/,Electrical Parts/Equipment,Premier Farnell,Supplies and Services related expenditure,08/04/2020,72.38,"Director of Housing, Neighbourhood and Building Services"
Facilities Maintenance,Specialty Cleaning/Polishing,Cjs Portsmouth Limited,Supplies and Services related expenditure,08/04/2020,166.06,Director of Children's Services and Education
Business To Business Eqpt/Furn,Stationery/Office Supplies,Www.Banneruk.Com,Supplies and Services related expenditure,08/04/2020,164.84,"Director of Housing, Neighbourhood and Building Services"
Other Supplies,Misc Speciality Retail,Amznmktplace Amazon.Co.Uk,Supplies and Services related expenditure,08/04/2020,8.48,"Director of Housing, Neighbourhood and Building Services"
Other Supplies,Misc Speciality Retail,Amznmktplace Amazon.Co.Uk,Supplies and Services related expenditure,08/04/2020,40.75,"Director of Housing, Neighbourhood and Building Services"
Business To Business Eqpt/Furn,Stationery/Office Supplies,Www.Banneruk.Com,Supplies and Services related expenditure,08/04/2020,4.29,"Director of Culture, Leisure & Regulatory Services"
Business To Business Eqpt/Furn,Stationery/Office Supplies,Www.Banneruk.Com,Supplies and Services related expenditure,08/04/2020,67.43,"Director of Culture, Leisure & Regulatory Services"
Business To Business Eqpt/Furn,Stationery/Office Supplies,Www.Banneruk.Com,Supplies and Services related expenditure,08/04/2020,454,Director of Adult Services
Business To Business Facility/,Industrial Supplies - Def,Www.Arco.Co.Uk,Supplies and Services related expenditure,08/04/2020,8.64,"Director of Housing, Neighbourhood and Building Services"
Equipment And Furniture,Household Appliance Stores,Ebuyer (UK) Ltd,Supplies and Services related expenditure,08/04/2020,459.08,Director of Corporate Services
Business To Business Facility/,Industrial Supplies - Def,Www.Arco.Co.Uk,Supplies and Services related expenditure,08/04/2020,16500,Director of Adult Services
Business To Business Eqpt/Furn,Stationery/Office Supplies,Www.Banneruk.Com,Supplies and Services related expenditure,09/04/2020,-8.17,"Director of Housing, Neighbourhood and Building Services"
Hotels And Motels,Travelodge,Travelodge Gb0000,Agency and Third Party Payments related expenditure,09/04/2020,-57.75,"Director of Housing, Neighbourhood and Building Services"
Hotels And Motels,Travelodge,Travelodge Gb0000,Agency and Third Party Payments related expenditure,09/04/2020,-597.62,"Director of Housing, Neighbourhood and Building Services"
Facilities/Repair Supplies,Lawn/Garden Supply/Nursery,Wwwtudorenvironmentalcou,Supplies and Services related expenditure,09/04/2020,143.6,"Director of Culture, Leisure & Regulatory Services"
Facilities/Repair Supplies,Lawn/Garden Supply/Nursery,Wwwtudorenvironmentalcou,Supplies and Services related expenditure,09/04/2020,300.16,"Director of Culture, Leisure & Regulatory Services"
Facilities/Repair Supplies,Lawn/Garden Supply/Nursery,Wwwtudorenvironmentalcou,Supplies and Services related expenditure,09/04/2020,59,"Director of Culture, Leisure & Regulatory Services"
Type of Retail Store,Grocery Stores/Supermarkets,Tesco Stores 6002,Supplies and Services related expenditure,09/04/2020,41.25,Director of Children's Services and Education
Medical,Doctors,The Trafalgar Medical,Supplies and Services related expenditure,09/04/2020,30,Director of Children's Services and Education
Type of Retail Store,Grocery Stores/Supermarkets,Shop Locally,Supplies and Services related expenditure,09/04/2020,121.15,Director of Children's Services and Education
Type of Retail Store,Grocery Stores/Supermarkets,Shop Locally,Supplies and Services related expenditure,09/04/2020,0.99,Director of Children's Services and Education
Hotels And Motels,Travelodge,Travelodge Gb0000,Agency and Third Party Payments related expenditure,09/04/2020,-115.5,"Director of Housing, Neighbourhood and Building Services"
Hotels And Motels,Travelodge,Travelodge Gb0000,Agency and Third Party Payments related expenditure,09/04/2020,-798.7,"Director of Housing, Neighbourhood and Building Services"
Hotels And Motels,Travelodge,Travelodge Gb0000,Agency and Third Party Payments related expenditure,09/04/2020,-231,"Director of Housing, Neighbourhood and Building Services"
Hotels And Motels,Travelodge,Travelodge Gb0000,Agency and Third Party Payments related expenditure,09/04/2020,-798.7,"Director of Housing, Neighbourhood and Building Services"
Hotels And Motels,Travelodge,Travelodge Gb0000,Agency and Third Party Payments related expenditure,09/04/2020,-57.75,"Director of Housing, Neighbourhood and Building Services"
Hotels And Motels,Travelodge,Travelodge Gb0000,Agency and Third Party Payments related expenditure,09/04/2020,-630.08,"Director of Housing, Neighbourhood and Building Services"
Type of Retail Store,Grocery Stores/Supermarkets,Tesco Stores 4579,Supplies and Services related expenditure,09/04/2020,16.67,Director of Children's Services and Education
Type of Retail Store,Grocery Stores/Supermarkets,Tesco Stores 4579,Supplies and Services related expenditure,09/04/2020,9.72,Director of Children's Services and Education
Type of Retail Store,Grocery Stores/Supermarkets,Tesco Stores 4579,Supplies and Services related expenditure,09/04/2020,9.72,Director of Children's Services and Education
Type of Retail Store,Grocery Stores/Supermarkets,Tesco Stores 4579,Supplies and Services related expenditure,09/04/2020,9.73,Director of Children's Services and Education
Facilities/Repair Supplies,Lawn/Garden Supply/Nursery,Wwwtudorenvironmentalcou,Supplies and Services related expenditure,09/04/2020,64.8,"Director of Housing, Neighbourhood and Building Services"
Business To Business Eqpt/Furn,Stationery/Office Supplies,Www.Banneruk.Com,Supplies and Services related expenditure,09/04/2020,22.8,"Director of Housing, Neighbourhood and Building Services"
Medical,Lab/Med/Hospital Equipment,Wightman & Parrish,Premises related expenditure,09/04/2020,78.64,Director of Finance & Resources
Business To Business Eqpt/Furn,Stationery/Office Supplies,Www.Banneruk.Com,Supplies and Services related expenditure,09/04/2020,117.91,"Director of Housing, Neighbourhood and Building Services"
Business To Business Eqpt/Furn,Stationery/Office Supplies,Www.Banneruk.Com,Supplies and Services related expenditure,09/04/2020,228.16,"Director of Housing, Neighbourhood and Building Services"
Facilities/Repair Services,Spec Contractors - Default,Www.Southwestsupplies.Co,Premises related expenditure,09/04/2020,354.68,"Director of Housing, Neighbourhood and Building Services"
Type of Retail Store,Misc Food Stores - Default,Martin Mccolls,Supplies and Services related expenditure,09/04/2020,3.32,"Director of Housing, Neighbourhood and Building Services"
Type of Retail Store,Grocery Stores/Supermarkets,Asda,Supplies and Services related expenditure,09/04/2020,90,Director of Children's Services and Education
Type of Retail Store,Grocery Stores/Supermarkets,Asda,Supplies and Services related expenditure,09/04/2020,90,Director of Children's Services and Education
Type of Retail Store,Grocery Stores/Supermarkets,Asda,Supplies and Services related expenditure,09/04/2020,90,Director of Children's Services and Education
Business Expenses/Services,Postage Stamps,The Post Office,Supplies and Services related expenditure,09/04/2020,17.36,"Director of Housing, Neighbourhood and Building Services"
Medical,Lab/Med/Hospital Equipment,Wightman & Parrish,Premises related expenditure,09/04/2020,94.97,"Director of Housing, Neighbourhood and Building Services"
Other Supplies,Discount Stores,Argos Ltd,Supplies and Services related expenditure,09/04/2020,404.96,Director of Children's Services and Education
Other Supplies,Department Stores,Southern Co-Op 0247,Supplies and Services related expenditure,09/04/2020,7.8,Director of Adult Services
Medical,Lab/Med/Hospital Equipment,Wightman & Parrish Ltd,Premises related expenditure,09/04/2020,76.79,Director of Adult Services
Medical,Lab/Med/Hospital Equipment,Wightman & Parrish Ltd,Supplies and Services related expenditure,09/04/2020,53.98,Director of Adult Services
Medical,Lab/Med/Hospital Equipment,Wightman & Parrish Ltd,Supplies and Services related expenditure,09/04/2020,39.98,Director of Adult Services
Medical,Lab/Med/Hospital Equipment,Wightman & Parrish Ltd,Premises related expenditure,09/04/2020,109.47,Director of Adult Services
Other Supplies,Misc Speciality Retail,Amznmktplace Amazon.Co.Uk,Supplies and Services related expenditure,09/04/2020,3.83,"Director of Housing, Neighbourhood and Building Services"
Other Supplies,Misc Speciality Retail,Amznmktplace Amazon.Co.Uk,Supplies and Services related expenditure,09/04/2020,18.4,"Director of Housing, Neighbourhood and Building Services"
Business To Business Facility/,Chemicals/Allied Prods - Def,Boc Gases,Premises related expenditure,09/04/2020,477.9,"Director of Housing, Neighbourhood and Building Services"
Other Supplies,Misc Speciality Retail,Amznmktplace,Supplies and Services related expenditure,09/04/2020,2.16,"Director of Housing, Neighbourhood and Building Services"
Other Supplies,Misc Speciality Retail,Amznmktplace,Supplies and Services related expenditure,09/04/2020,5,"Director of Housing, Neighbourhood and Building Services"
Other Supplies,Misc Speciality Retail,Amznmktplace,Supplies and Services related expenditure,09/04/2020,6.53,"Director of Housing, Neighbourhood and Building Services"
Other Supplies,Misc Speciality Retail,Amznmktplace,Supplies and Services related expenditure,09/04/2020,7.48,"Director of Housing, Neighbourhood and Building Services"
Caterers Food,Caterers,Bookerecomm,Supplies and Services related expenditure,09/04/2020,1.1,"Director of Housing, Neighbourhood and Building Services"
Caterers Food,Caterers,Bookerecomm,Supplies and Services related expenditure,09/04/2020,531.27,"Director of Housing, Neighbourhood and Building Services"
Equipment And Furniture,Phone Serv/Equip Non-Util,Media & Communications L,Supplies and Services related expenditure,09/04/2020,5560,Director of Corporate Services
Type of Retail Store,Grocery Stores/Supermarkets,Tesco Store 3055,Premises related expenditure,09/04/2020,24.17,Director of Children's Services and Education
Type of Retail Store,Grocery Stores/Supermarkets,Tesco Store 3055,Supplies and Services related expenditure,09/04/2020,22.37,Director of Children's Services and Education
Type of Retail Store,Grocery Stores/Supermarkets,Tesco Store 3055,Supplies and Services related expenditure,09/04/2020,40.8,Director of Children's Services and Education
Government Service,Govt Serv - Default,Pcc Moto Payment,Supplies and Services related expenditure,09/04/2020,82.05,Director of Children's Services and Education
Other Supplies,Discount Stores,Argos Ltd,Supplies and Services related expenditure,09/04/2020,140,Director of Children's Services and Education
Business To Business Eqpt/Furn,Stationery/Office Supplies,Www.Banneruk.Com,Supplies and Services related expenditure,09/04/2020,75.3,Director of Corporate Services
Business To Business Eqpt/Furn,Stationery/Office Supplies,Www.Banneruk.Com,Supplies and Services related expenditure,09/04/2020,12.85,Director of Adult Services
Business To Business Eqpt/Furn,Stationery/Office Supplies,Www.Banneruk.Com,Supplies and Services related expenditure,09/04/2020,20.66,Director of Adult Services
Auto/Vehicle Expenses,Auto Service Shops/Non Dealer,Boarhunt Group-Vt,Transport related expenditure,09/04/2020,45.54,Director of Children's Services and Education
Auto/Vehicle Expenses,Auto Service Shops/Non Dealer,Boarhunt Group-Vt,Transport related expenditure,09/04/2020,126.37,Director of Children's Services and Education
Auto/Vehicle Expenses,Auto Service Shops/Non Dealer,Boarhunt Group-Vt,Transport related expenditure,09/04/2020,239.27,"Director of Housing, Neighbourhood and Building Services"
Auto/Vehicle Expenses,Auto Service Shops/Non Dealer,Boarhunt Group-Vt,Transport related expenditure,09/04/2020,339.76,"Director of Housing, Neighbourhood and Building Services"
Personal Service Provider,Commercial Photo/Art/Graph,Stk*shutterstock,Supplies and Services related expenditure,09/04/2020,29,Director of Corporate Services
Type of Retail Store,Grocery Stores/Supermarkets,Asda,Supplies and Services related expenditure,09/04/2020,30,Director of Children's Services and Education
Type of Retail Store,Grocery Stores/Supermarkets,Asda,Supplies and Services related expenditure,09/04/2020,90,Director of Children's Services and Education
Type of Retail Store,Grocery Stores/Supermarkets,Asda,Supplies and Services related expenditure,09/04/2020,90,Director of Children's Services and Education
Type of Retail Store,Grocery Stores/Supermarkets,Co-Op Group Food,Supplies and Services related expenditure,09/04/2020,5.7,Director of Children's Services and Education
Business To Business Eqpt/Furn,Computer Software Stores,Www Anydesk De,Supplies and Services related expenditure,09/04/2020,359.17,Director of Portsmouth International Port
Equipment And Furniture,Phone Serv/Equip Non-Util,Paypal,Supplies and Services related expenditure,09/04/2020,477.6,Director of Corporate Services
Medical,Lab/Med/Hospital Equipment,Wightman & Parrish,Premises related expenditure,09/04/2020,67.6,Director of Adult Services
Business Services,Business Services - Default,Www.Phs.Co.Uk,Premises related expenditure,09/04/2020,320.27,Director of Adult Services
Medical,Lab/Med/Hospital Equipment,Wightman & Parrish Ltd,Supplies and Services related expenditure,09/04/2020,331.19,Director of Adult Services
Medical,Lab/Med/Hospital Equipment,Wightman & Parrish,Premises related expenditure,09/04/2020,459.73,Director of Adult Services
Medical,Lab/Med/Hospital Equipment,Wightman & Parrish,Supplies and Services related expenditure,09/04/2020,258.58,Director of Adult Services
Medical,Lab/Med/Hospital Equipment,Wightman & Parrish,Supplies and Services related expenditure,09/04/2020,43.95,Director of Adult Services
Medical,Lab/Med/Hospital Equipment,Wightman & Parrish,Supplies and Services related expenditure,09/04/2020,8.89,Director of Adult Services
Hotels And Motels,Travelodge,Travelodge Gb0000,Agency and Third Party Payments related expenditure,09/04/2020,-57.75,"Director of Housing, Neighbourhood and Building Services"
Hotels And Motels,Travelodge,Travelodge Gb0000,Agency and Third Party Payments related expenditure,09/04/2020,-630.08,"Director of Housing, Neighbourhood and Building Services"
Hotels And Motels,Travelodge,Travelodge Gb0000,Agency and Third Party Payments related expenditure,09/04/2020,-57.75,"Director of Housing, Neighbourhood and Building Services"
Hotels And Motels,Travelodge,Travelodge Gb0000,Agency and Third Party Payments related expenditure,09/04/2020,-734.58,"Director of Housing, Neighbourhood and Building Services"
Hotels And Motels,Travelodge,Travelodge Gb0000,Agency and Third Party Payments related expenditure,09/04/2020,-115.5,"Director of Housing, Neighbourhood and Building Services"
Hotels And Motels,Travelodge,Travelodge Gb0000,Agency and Third Party Payments related expenditure,09/04/2020,-814.53,"Director of Housing, Neighbourhood and Building Services"
Hotels And Motels,Travelodge,Travelodge Gb0000,Agency and Third Party Payments related expenditure,09/04/2020,-126,"Director of Housing, Neighbourhood and Building Services"
Hotels And Motels,Travelodge,Travelodge Gb0000,Agency and Third Party Payments related expenditure,09/04/2020,-868.36,"Director of Housing, Neighbourhood and Building Services"
Other Supplies,Misc Speciality Retail,Amz*free & Fast UK Shi,Supplies and Services related expenditure,09/04/2020,-5,Director of Children's Services and Education
Business To Business Services,Information Retrieval Services,Www.Restore.Co.Uk,Supplies and Services related expenditure,09/04/2020,8.97,Solent LEP
Facilities/Repair Supplies,Hardware Stores,Www.Toolstation.Com,Supplies and Services related expenditure,09/04/2020,8.87,Director of Adult Services
Miscellaneous,Other Direct Marketers,Amazon.Co.Uk,Supplies and Services related expenditure,09/04/2020,28.28,Director of Children's Services and Education
Type of Retail Store,Misc Food Stores - Default,North Post Office And Spa,Supplies and Services related expenditure,09/04/2020,2.97,Director of Children's Services and Education
Type of Retail Store,Grocery Stores/Supermarkets,Lidl Gb Portsmouth,Supplies and Services related expenditure,09/04/2020,81.59,Director of Children's Services and Education
Type of Retail Store,Grocery Stores/Supermarkets,Lidl Gb Portsmouth,Supplies and Services related expenditure,09/04/2020,6.62,Director of Children's Services and Education
Business Expenses/Services,Postage Stamps,Post Office Counter,Supplies and Services related expenditure,09/04/2020,1.72,Director of Regeneration
Business To Business Eqpt/Furn,Stationery/Office Supplies,Www.Banneruk.Com,Supplies and Services related expenditure,09/04/2020,-103.24,Director of Adult Services
Miscellaneous,Continuity/Subscription Mercht,Zoom.Gbp,Supplies and Services related expenditure,09/04/2020,11.99,Director of Regeneration
Business Services,Business Services - Default,Vivid Housing Ltd,Supplies and Services related expenditure,09/04/2020,26.36,Director of Children's Services and Education
Other Supplies,Discount Stores,Argos Ltd,Supplies and Services related expenditure,09/04/2020,111.21,Director of Children's Services and Education
Other Supplies,Discount Stores,Argos Ltd,Supplies and Services related expenditure,09/04/2020,235.79,Director of Children's Services and Education
Other Supplies,Misc Speciality Retail,Value Products Ltd,Supplies and Services related expenditure,09/04/2020,13.2,"Director of Culture, Leisure & Regulatory Services"
Type of Retail Store,Sporting Goods Stores,Sportsdirect.Com,Supplies and Services related expenditure,09/04/2020,24.98,Director of Adult Services
Business To Business Facility/,Industrial Supplies - Def,Www.Arco.Co.Uk,Supplies and Services related expenditure,07/04/2020,60.65,"Director of Housing, Neighbourhood and Building Services"
Business To Business Facility/,Industrial Supplies - Def,Www.Arco.Co.Uk,Supplies and Services related expenditure,08/04/2020,27.6,"Director of Housing, Neighbourhood and Building Services"
Business To Business Facility/,Industrial Supplies - Def,Www.Arco.Co.Uk,Supplies and Services related expenditure,08/04/2020,102.04,"Director of Housing, Neighbourhood and Building Services"
Personal Service Provider,Computer Program/Sys Design,Browserstack.Com,Supplies and Services related expenditure,10/04/2020,32.34,Director of Corporate Services
Type of Retail Store,Grocery Stores/Supermarkets,Tesco Stores 4579,Supplies and Services related expenditure,10/04/2020,8.33,Director of Children's Services and Education
Type of Retail Store,Grocery Stores/Supermarkets,Tesco Stores 4579,Supplies and Services related expenditure,10/04/2020,5,Director of Children's Services and Education
Type of Retail Store,Grocery Stores/Supermarkets,Tesco Stores 4579,Supplies and Services related expenditure,10/04/2020,0.59,Director of Children's Services and Education
Type of Retail Store,Grocery Stores/Supermarkets,Tesco Stores 4579,Supplies and Services related expenditure,10/04/2020,182.5,Director of Children's Services and Education
Automobile Services & Supplies,Service Stations,Shell Fratton 178,Premises related expenditure,10/04/2020,57.96,Director of Regeneration
Facilities/Repair Supplies,Home Supply Warehouse Stores,Screwfix Direct,Premises related expenditure,10/04/2020,28.28,Director of Children's Services and Education
Type of Retail Store,Freezer/Meat Lockers,Dennis Edwards Food Serv,Supplies and Services related expenditure,10/04/2020,132.35,"Director of Housing, Neighbourhood and Building Services"
Type of Retail Store,Freezer/Meat Lockers,Dennis Edwards Food Serv,Supplies and Services related expenditure,10/04/2020,2032.86,"Director of Housing, Neighbourhood and Building Services"
Eating And Drinking Places,Pkg Stores/Beer/Wine/Liquor,New Kwikimart,Supplies and Services related expenditure,10/04/2020,6.91,Director of Children's Services and Education
Other Supplies,Misc Speciality Retail,Amznmktplace,Premises related expenditure,10/04/2020,24.99,Director of Children's Services and Education
Type of Retail Store,Grocery Stores/Supermarkets,Sainsburys S/mkt,Premises related expenditure,10/04/2020,0.83,Director of Children's Services and Education
Type of Retail Store,Grocery Stores/Supermarkets,Sainsburys S/mkt,Supplies and Services related expenditure,10/04/2020,8.75,Director of Children's Services and Education
Type of Retail Store,Grocery Stores/Supermarkets,Sainsburys S/mkt,Supplies and Services related expenditure,10/04/2020,61.1,Director of Children's Services and Education
Type of Retail Store,Grocery Stores/Supermarkets,Sainsburys S/mkt,Supplies and Services related expenditure,10/04/2020,5.8,"Director of Housing, Neighbourhood and Building Services"
Miscellaneous,Fines,Hmcourts-Svs.Gov.U,Supplies and Services related expenditure,10/04/2020,83.33,Director of Children's Services and Education
Other Supplies,Discount Stores,Argos Ltd,Supplies and Services related expenditure,10/04/2020,135.79,Director of Children's Services and Education
Miscellaneous,Other Direct Marketers,Amazon.Co.Uk,Premises related expenditure,10/04/2020,142.42,Director of Corporate Services
Business Services,Business Services - Default,Cs* Tesco Stores Gc,Supplies and Services related expenditure,10/04/2020,60,Director of Children's Services and Education
Business Expenses/Services,Postage Stamps,Royal Mail Online Shop,Supplies and Services related expenditure,10/04/2020,209.5,Director of Children's Services and Education
Type of Retail Store,Grocery Stores/Supermarkets,Lidl Gb Portsmouth,Supplies and Services related expenditure,10/04/2020,9.96,Director of Children's Services and Education
Digital Goods,Digital Goods - Games,Epc*fortnite,Agency and Third Party Payments related expenditure,10/04/2020,7.99,Director of Children's Services and Education
Type of Retail Store,Grocery Stores/Supermarkets,Wm Morrisons Store,Supplies and Services related expenditure,10/04/2020,7.5,Director of Children's Services and Education
Type of Retail Store,Grocery Stores/Supermarkets,Wm Morrisons Store,Supplies and Services related expenditure,10/04/2020,10.42,Director of Children's Services and Education
Type of Retail Store,Grocery Stores/Supermarkets,Wm Morrisons Store,Supplies and Services related expenditure,10/04/2020,9.17,Director of Children's Services and Education
Type of Retail Store,Grocery Stores/Supermarkets,Wm Morrisons Store,Premises related expenditure,10/04/2020,10,Director of Children's Services and Education
Type of Retail Store,Grocery Stores/Supermarkets,Wm Morrisons Store,Supplies and Services related expenditure,10/04/2020,1.24,Director of Children's Services and Education
Type of Retail Store,Grocery Stores/Supermarkets,Wm Morrisons Store,Supplies and Services related expenditure,10/04/2020,76.45,Director of Children's Services and Education
Automobile Services & Supplies,Service Stations,Sainsburys Petrol,Transport related expenditure,11/04/2020,47.06,Director of Regeneration
Facilities/Repair Supplies,Home Supply Warehouse Stores,B&q Direct,Premises related expenditure,11/04/2020,45,Director of Children's Services and Education
Facilities/Repair Supplies,Home Supply Warehouse Stores,Screwfix Direct,Premises related expenditure,11/04/2020,14.9,Director of Children's Services and Education
Type of Retail Store,Grocery Stores/Supermarkets,Tesco Stores 4579,Supplies and Services related expenditure,11/04/2020,4.24,Director of Children's Services and Education
Type of Retail Store,Grocery Stores/Supermarkets,Tesco Stores 4579,Supplies and Services related expenditure,11/04/2020,33.64,Director of Children's Services and Education
Type of Retail Store,Grocery Stores/Supermarkets,Spar 31106175,Supplies and Services related expenditure,11/04/2020,9.08,"Director of Housing, Neighbourhood and Building Services"
Transportation Conveyor,Passenger Railways,Southern Railway Web,Transport related expenditure,11/04/2020,11.2,"Director of Housing, Neighbourhood and Building Services"
Type of Retail Store,Grocery Stores/Supermarkets,Tesco Stores 4579,Premises related expenditure,11/04/2020,26.79,Director of Children's Services and Education
Miscellaneous,Other Direct Marketers,Amazon.Co.Uk,Supplies and Services related expenditure,11/04/2020,171.65,Director of Finance & Resources
Miscellaneous,Other Direct Marketers,Amazon.Co.Uk,Supplies and Services related expenditure,12/04/2020,6.24,Director of Children's Services and Education
Type of Retail Store,Grocery Stores/Supermarkets,Tesco-Stores 6607,Supplies and Services related expenditure,12/04/2020,3.09,Director of Children's Services and Education
Type of Retail Store,Grocery Stores/Supermarkets,Southern Co-Op 0127,Supplies and Services related expenditure,12/04/2020,7.59,Director of Children's Services and Education
Type of Retail Store,Grocery Stores/Supermarkets,Southern Co-Op 0127,Supplies and Services related expenditure,12/04/2020,14.7,Director of Children's Services and Education
Personal Service Provider,Computer Program/Sys Design,Squarespace Inc.,Supplies and Services related expenditure,12/04/2020,16.59,Director of Children's Services and Education
Transportation Conveyor,Passenger Railways,Sw Railway App,Transport related expenditure,12/04/2020,-29.9,Director of Children's Services and Education
Other Supplies,Misc Speciality Retail,Amznmktplace,Supplies and Services related expenditure,12/04/2020,146.2,Director of Children's Services and Education
Business To Business Services,Misc Publishing & Printing,Buffer Publish Pro Mo,Supplies and Services related expenditure,12/04/2020,12.44,Chief Exec
Other Supplies,Misc Speciality Retail,Amznmktplace Amazon.Co.Uk,Supplies and Services related expenditure,12/04/2020,123.96,"Director of Housing, Neighbourhood and Building Services"
Type of Retail Store,Artist/Craft Shops,Baker Ross,Supplies and Services related expenditure,12/04/2020,68.25,"Director of Housing, Neighbourhood and Building Services"
Miscellaneous,Continuity/Subscription Mercht,Amazon Prime,Supplies and Services related expenditure,12/04/2020,7.99,Director of Children's Services and Education
Other Supplies,Misc Speciality Retail,Amznmktplace Amazon.Co.Uk,Agency and Third Party Payments related expenditure,12/04/2020,16.23,Director of Children's Services and Education
Other Supplies,Department Stores,The Range,Premises related expenditure,13/04/2020,45.7,Director of Children's Services and Education
Business To Business Eqpt/Furn,Computers/Peripherals/Software,Hotjar,Supplies and Services related expenditure,13/04/2020,26.28,Director of Corporate Services
Automobile Services & Supplies,Service Stations,Shell Fratton 178,Transport related expenditure,13/04/2020,40.55,Director of Regeneration
Other Supplies,Department Stores,Southern Co-Op 0009,Supplies and Services related expenditure,13/04/2020,5.75,Director of Children's Services and Education
Type of Retail Store,Grocery Stores/Supermarkets,Tesco Stores 4579,Premises related expenditure,13/04/2020,18.33,Director of Children's Services and Education
Type of Retail Store,Grocery Stores/Supermarkets,Tesco Stores 4579,Supplies and Services related expenditure,13/04/2020,5.94,Director of Children's Services and Education
Miscellaneous,Other Direct Marketers,Amazon.Co.Uk,Supplies and Services related expenditure,13/04/2020,17.48,"Director of Housing, Neighbourhood and Building Services"
Miscellaneous,Other Direct Marketers,Amazon.Co.Uk,Premises related expenditure,13/04/2020,18.74,Director of Children's Services and Education
Other Supplies,Misc Speciality Retail,Amznmktplace,Supplies and Services related expenditure,13/04/2020,21.82,Director of Portsmouth International Port
Other Supplies,Misc Speciality Retail,Amznmktplace,Supplies and Services related expenditure,13/04/2020,21.83,Director of Portsmouth International Port
Other Supplies,Misc Speciality Retail,Amznmktplace,Supplies and Services related expenditure,13/04/2020,21.83,Director of Portsmouth International Port
Other Supplies,Misc Speciality Retail,Amznmktplace Amazon.Co.Uk,Supplies and Services related expenditure,13/04/2020,3.3,"Director of Housing, Neighbourhood and Building Services"
Other Supplies,Misc Speciality Retail,Amznmktplace Amazon.Co.Uk,Supplies and Services related expenditure,13/04/2020,19.82,"Director of Housing, Neighbourhood and Building Services"
Other Supplies,Misc Speciality Retail,Amznmktplace Amazon.Co.Uk,Supplies and Services related expenditure,13/04/2020,22.28,"Director of Housing, Neighbourhood and Building Services"
Other Supplies,Misc Speciality Retail,Amznmktplace Amazon.Co.Uk,Supplies and Services related expenditure,13/04/2020,106.94,"Director of Housing, Neighbourhood and Building Services"
Miscellaneous,Other Direct Marketers,Amazon.Co.Uk,Supplies and Services related expenditure,13/04/2020,29.08,Director of Finance & Resources
Miscellaneous,Continuity/Subscription Mercht,Zoom.Gbp,Supplies and Services related expenditure,13/04/2020,11.99,Director of Public Health
Transportation Conveyor,Passenger Railways,Southern Railway Web,Transport related expenditure,13/04/2020,11.2,"Director of Housing, Neighbourhood and Building Services"
Other Supplies,Discount Stores,B&m Retail,Agency and Third Party Payments related expenditure,13/04/2020,8.33,Director of Children's Services and Education
Type of Retail Store,Grocery Stores/Supermarkets,Tesco Stores 6679,Transport related expenditure,13/04/2020,11,Director of Children's Services and Education
Miscellaneous,Other Direct Marketers,Amazon.Co.Uk,Supplies and Services related expenditure,13/04/2020,17.56,"Director of Culture, Leisure & Regulatory Services"
Type of Retail Store,Grocery Stores/Supermarkets,Wm Morrisons Store,Supplies and Services related expenditure,13/04/2020,33.68,Director of Children's Services and Education
Other Supplies,Misc Speciality Retail,Amznmktplace,Agency and Third Party Payments related expenditure,13/04/2020,2.99,Director of Children's Services and Education
Type of Retail Store,Grocery Stores/Supermarkets,Wm Morrisons Store,Supplies and Services related expenditure,13/04/2020,1.1,Director of Children's Services and Education
Type of Retail Store,Grocery Stores/Supermarkets,Wm Morrisons Store,Supplies and Services related expenditure,13/04/2020,1.88,Director of Children's Services and Education
Other Supplies,Misc Speciality Retail,Amznmktplace,Supplies and Services related expenditure,13/04/2020,158.28,Director of Children's Services and Education
Business Services,Business Services - Default,Cisco Systems,Supplies and Services related expenditure,13/04/2020,1360.25,Director of Corporate Services
Business Services,Business Services - Default,Cisco Systems,Supplies and Services related expenditure,13/04/2020,1360.25,"Director of Culture, Leisure & Regulatory Services"
Business To Business Facility/,Industrial Supplies - Def,Www.Arco.Co.Uk,Supplies and Services related expenditure,09/04/2020,462.15,Director of Adult Services
Business To Business Facility/,Industrial Supplies - Def,Www.Arco.Co.Uk,Supplies and Services related expenditure,09/04/2020,1468.61,Director of Adult Services
Type of Retail Store,Drug Stores & Pharmacies,Lloyds Pharmacy,Supplies and Services related expenditure,14/04/2020,33.32,Director of Adult Services
Other Supplies,Misc Speciality Retail,Amznmktplace,Supplies and Services related expenditure,14/04/2020,17.92,"Director of Housing, Neighbourhood and Building Services"
Other Supplies,Misc Speciality Retail,Amznmktplace,Supplies and Services related expenditure,14/04/2020,26.9,"Director of Housing, Neighbourhood and Building Services"
Other Supplies,Misc Speciality Retail,Amznmktplace,Supplies and Services related expenditure,14/04/2020,41.79,"Director of Housing, Neighbourhood and Building Services"
Miscellaneous,Agricultural Co-Operativ,Www.Nomixenviro.Co.Uk,Supplies and Services related expenditure,14/04/2020,148,"Director of Housing, Neighbourhood and Building Services"
Medical,Lab/Med/Hospital Equipment,Wightman & Parrish Ltd,Premises related expenditure,14/04/2020,200.79,"Director of Housing, Neighbourhood and Building Services"
Miscellaneous,Continuity/Subscription Mercht,Zoom.Gbp,Supplies and Services related expenditure,14/04/2020,14.39,Director of Portsmouth International Port
Other Supplies,Discount Stores,Argos Ltd,Supplies and Services related expenditure,14/04/2020,229.99,Director of Children's Services and Education
Government Service,Colleges/Univ/Jc/Profession,Www.Educare.Co.Uk,Supplies and Services related expenditure,14/04/2020,68.4,Director of Children's Services and Education
Facilities/Repair Supplies,Lawn/Garden Supply/Nursery,Rigby Taylor Limited,Supplies and Services related expenditure,14/04/2020,77,"Director of Culture, Leisure & Regulatory Services"
Facilities/Repair Supplies,Lawn/Garden Supply/Nursery,Rigby Taylor Limited,Supplies and Services related expenditure,14/04/2020,241.5,"Director of Culture, Leisure & Regulatory Services"
Medical,Lab/Med/Hospital Equipment,Wightman & Parrish Ltd,Premises related expenditure,14/04/2020,69.84,"Director of Housing, Neighbourhood and Building Services"
Other Supplies,Discount Stores,Poundland Ltd,Supplies and Services related expenditure,14/04/2020,6.75,Director of Children's Services and Education
Auto/Vehicle Expenses,Auto Service Shops/Non Dealer,Boarhunt Group-Vt,Transport related expenditure,14/04/2020,96,Director of Adult Services
Auto/Vehicle Expenses,Auto Service Shops/Non Dealer,Boarhunt Group-Vt,Transport related expenditure,14/04/2020,96,Director of Adult Services
Hotels And Motels,Travelodge,Travelodge Gb0000,Agency and Third Party Payments related expenditure,14/04/2020,-211.09,"Director of Housing, Neighbourhood and Building Services"
Government Service,Govt Serv - Default,Isle Of Wight Council,Supplies and Services related expenditure,14/04/2020,134,"Director of Culture, Leisure & Regulatory Services"
Business To Business Other Sup,Piece Goods/Notions/Dry Goods,Catering24,Supplies and Services related expenditure,14/04/2020,119.46,"Director of Housing, Neighbourhood and Building Services"
Facilities/Repair Services,Small Appliance Repair Def,Hooper Services Ltd,Premises related expenditure,14/04/2020,617.15,Director of Finance & Resources
Facilities/Repair Services,Small Appliance Repair Def,Hooper Services Ltd,Premises related expenditure,14/04/2020,1095,Director of Finance & Resources
Facilities/Repair Services,Small Appliance Repair Def,Hooper Services Ltd,Premises related expenditure,14/04/2020,2838.24,Director of Finance & Resources
Type of Retail Store,Drug Stores & Pharmacies,Rowlands Pharmacy,Supplies and Services related expenditure,14/04/2020,18.3,Director of Adult Services
Transportation Conveyor,Passenger Railways,Trainline,Transport related expenditure,14/04/2020,-83.7,Director of Regeneration
Type of Retail Store,Grocery Stores/Supermarkets,Www.Iceland.Co.Uk,Supplies and Services related expenditure,14/04/2020,20.11,Director of Adult Services
Type of Retail Store,Grocery Stores/Supermarkets,Www.Iceland.Co.Uk,Supplies and Services related expenditure,14/04/2020,52.89,Director of Adult Services
Type of Retail Store,Grocery Stores/Supermarkets,Fruit Basket Ltd,Premises related expenditure,14/04/2020,137.86,"Director of Culture, Leisure & Regulatory Services"
Government Service,Govt Serv - Default,Pcc Internet Payment,Supplies and Services related expenditure,14/04/2020,22,Director of Children's Services and Education
Type of Retail Store,Grocery Stores/Supermarkets,Sainsburys S/mkts,Supplies and Services related expenditure,14/04/2020,1.92,Director of Children's Services and Education
Type of Retail Store,Grocery Stores/Supermarkets,Sainsburys S/mkts,Supplies and Services related expenditure,14/04/2020,9,Director of Children's Services and Education
Medical,Lab/Med/Hospital Equipment,Wightman & Parrish,Premises related expenditure,14/04/2020,51.2,"Director of Housing, Neighbourhood and Building Services"
Medical,Lab/Med/Hospital Equipment,Wightman & Parrish,Premises related expenditure,14/04/2020,202.58,"Director of Housing, Neighbourhood and Building Services"
Utility,Phone Serv/Equip Utility,Mobiletopup.Co.Uk 7835044,Supplies and Services related expenditure,14/04/2020,13.33,Director of Children's Services and Education
Other Supplies,Misc Speciality Retail,Amznmktplace,Supplies and Services related expenditure,14/04/2020,534.91,Director of Adult Services
Government Service,Govt Serv - Default,Pcc Internet Payment,Supplies and Services related expenditure,14/04/2020,44,Director of Children's Services and Education
Government Service,Govt Serv - Default,Pcc Moto Payment,Supplies and Services related expenditure,14/04/2020,96,Director of Children's Services and Education
Automobile Services & Supplies,Service Stations,Shell Fratton 178,Transport related expenditure,14/04/2020,25,Director of Regeneration
Type of Retail Store,Grocery Stores/Supermarkets,Tesco Store 3055,Supplies and Services related expenditure,14/04/2020,2.79,Director of Children's Services and Education
Type of Retail Store,Grocery Stores/Supermarkets,Tesco Store 3055,Supplies and Services related expenditure,14/04/2020,19.15,Director of Children's Services and Education
Utility,Utilities/Elec/Gas/H2O/Sani,British Gas Online,Premises related expenditure,14/04/2020,99,"Director of Housing, Neighbourhood and Building Services"
Hotels And Motels,Travelodge,Travelodge Gb0000,Agency and Third Party Payments related expenditure,14/04/2020,-63,"Director of Housing, Neighbourhood and Building Services"
Hotels And Motels,Travelodge,Travelodge Gb0000,Agency and Third Party Payments related expenditure,14/04/2020,-674.4,"Director of Housing, Neighbourhood and Building Services"
Government Service,Govt Serv - Default,Www.Ico.Org.Uk,Agency and Third Party Payments related expenditure,14/04/2020,40,Director of Children's Services and Education
Utility,Utilities/Elec/Gas/H2O/Sani,Cascade Water,Supplies and Services related expenditure,14/04/2020,261.48,Director of Children's Services and Education
Government Service,Tax Payments,Dvla Vehicle Tax,Supplies and Services related expenditure,14/04/2020,222.92,"Director of Housing, Neighbourhood and Building Services"
Government Service,Tax Payments,Dvla Vehicle Tax,Transport related expenditure,14/04/2020,222.92,"Director of Housing, Neighbourhood and Building Services"
Government Service,Tax Payments,Dvla Vehicle Tax,Transport related expenditure,14/04/2020,256.25,"Director of Housing, Neighbourhood and Building Services"
Freight/Courier/Warehouse Svcs,Public Warehousing,Www.Safestore.Co.Uk,Supplies and Services related expenditure,14/04/2020,60.88,Director of Adult Services
Type of Retail Store,Grocery Stores/Supermarkets,Waitrose 170,Supplies and Services related expenditure,14/04/2020,1.75,Director of Children's Services and Education
Type of Retail Store,Grocery Stores/Supermarkets,Waitrose 170,Supplies and Services related expenditure,14/04/2020,16.85,Director of Children's Services and Education
Type of Retail Store,Grocery Stores/Supermarkets,Asda Superstore,Supplies and Services related expenditure,14/04/2020,13.33,Director of Children's Services and Education
Type of Retail Store,Grocery Stores/Supermarkets,Asda Superstore,Premises related expenditure,14/04/2020,6.25,Director of Children's Services and Education
Type of Retail Store,Grocery Stores/Supermarkets,Asda Superstore,Supplies and Services related expenditure,14/04/2020,5,Director of Children's Services and Education
Type of Retail Store,Grocery Stores/Supermarkets,Asda Superstore,Supplies and Services related expenditure,14/04/2020,16.67,Director of Children's Services and Education
Type of Retail Store,Grocery Stores/Supermarkets,Asda Superstore,Supplies and Services related expenditure,14/04/2020,5,Director of Children's Services and Education
Type of Retail Store,Grocery Stores/Supermarkets,Asda Superstore,Supplies and Services related expenditure,14/04/2020,39.2,Director of Children's Services and Education
Other Supplies,Wholesale Clubs,Makro Self Service Fareha,Premises related expenditure,14/04/2020,107.26,Director of Children's Services and Education
Other Supplies,Wholesale Clubs,Makro Self Service Fareha,Supplies and Services related expenditure,14/04/2020,11.99,Director of Children's Services and Education
Other Supplies,Wholesale Clubs,Makro Self Service Fareha,Supplies and Services related expenditure,14/04/2020,21.27,Director of Children's Services and Education
Business To Business Eqpt/Furn,Stationery/Office Supplies,Www.Banneruk.Com,Supplies and Services related expenditure,14/04/2020,192.81,Director of Corporate Services
Other Supplies,Department Stores,Safetysuppl,Supplies and Services related expenditure,14/04/2020,43.6,Director of Regeneration
Other Supplies,Misc Speciality Retail,Amznmktplace Amazon.Co.Uk,Supplies and Services related expenditure,14/04/2020,9.27,"Director of Housing, Neighbourhood and Building Services"
Other Supplies,Misc Speciality Retail,Amznmktplace Amazon.Co.Uk,Supplies and Services related expenditure,14/04/2020,44.52,"Director of Housing, Neighbourhood and Building Services"
Utility,Cable/Pay Tv Services,Sky Subscription,Supplies and Services related expenditure,14/04/2020,69,Director of Children's Services and Education
Miscellaneous,Fines,Combined Court Cen,Supplies and Services related expenditure,15/04/2020,121,"Director of Housing, Neighbourhood and Building Services"
Facilities/Repair Supplies,Hardware Stores,Www.Toolstation.Com,Supplies and Services related expenditure,15/04/2020,29.98,Director of Adult Services
Other Supplies,Misc Speciality Retail,Amznmktplace Amazon.Co.Uk,Supplies and Services related expenditure,15/04/2020,5.14,"Director of Housing, Neighbourhood and Building Services"
Equipment And Furniture,Household Appliance Stores,Tlc Southern,Supplies and Services related expenditure,15/04/2020,29.95,"Director of Housing, Neighbourhood and Building Services"
Freight/Courier/Warehouse Svcs,Public Warehousing,Www.Safestore.Co.Uk,Premises related expenditure,15/04/2020,27.28,"Director of Housing, Neighbourhood and Building Services"
Freight/Courier/Warehouse Svcs,Public Warehousing,Www.Safestore.Co.Uk,Premises related expenditure,15/04/2020,93.46,"Director of Housing, Neighbourhood and Building Services"
Freight/Courier/Warehouse Svcs,Public Warehousing,Www.Safestore.Co.Uk,Premises related expenditure,15/04/2020,74.4,"Director of Housing, Neighbourhood and Building Services"
Freight/Courier/Warehouse Svcs,Public Warehousing,Www.Safestore.Co.Uk,Premises related expenditure,15/04/2020,223.32,"Director of Housing, Neighbourhood and Building Services"
Freight/Courier/Warehouse Svcs,Public Warehousing,Lok N Store,Premises related expenditure,15/04/2020,52,"Director of Housing, Neighbourhood and Building Services"
Freight/Courier/Warehouse Svcs,Public Warehousing,Lok N Store,Premises related expenditure,15/04/2020,253.33,"Director of Housing, Neighbourhood and Building Services"
Other Supplies,Misc Speciality Retail,Amznmktplace,Supplies and Services related expenditure,15/04/2020,4.79,Director of Portsmouth International Port
Miscellaneous,Continuity/Subscription Mercht,Audible Uk,Supplies and Services related expenditure,15/04/2020,0.99,Director of Children's Services and Education
Type of Retail Store,Grocery Stores/Supermarkets,Tesco Stores 6002,Supplies and Services related expenditure,15/04/2020,7.8,Director of Children's Services and Education
Type of Retail Store,Grocery Stores/Supermarkets,Tesco Stores 6002,Supplies and Services related expenditure,15/04/2020,25,Director of Children's Services and Education
Type of Retail Store,Grocery Stores/Supermarkets,Tesco Stores 6002,Supplies and Services related expenditure,15/04/2020,39.22,Director of Children's Services and Education
Business Expenses/Services,Books/Periodicals/Newspapers,The Mj/Hemming Group L,Supplies and Services related expenditure,15/04/2020,196,Chief Exec
Medical,Lab/Med/Hospital Equipment,Wightman & Parrish,Premises related expenditure,15/04/2020,87.45,"Director of Housing, Neighbourhood and Building Services"
Hotels And Motels,Travelodge,Travelodge Gb0000,Agency and Third Party Payments related expenditure,15/04/2020,-89.25,"Director of Housing, Neighbourhood and Building Services"
Hotels And Motels,Travelodge,Travelodge Gb0000,Agency and Third Party Payments related expenditure,15/04/2020,-951.44,"Director of Housing, Neighbourhood and Building Services"
Hotels And Motels,Travelodge,Travelodge Gb0000,Agency and Third Party Payments related expenditure,15/04/2020,-164.13,"Director of Housing, Neighbourhood and Building Services"
Business To Business Services,Misc Publishing & Printing,Lytham Embroidery,Supplies and Services related expenditure,15/04/2020,1403.32,Director of Corporate Services
Business To Business Eqpt/Furn,Stationery/Office Supplies,Www.Banneruk.Com,Premises related expenditure,15/04/2020,39.36,"Director of Housing, Neighbourhood and Building Services"
Business To Business Other Sup,Piece Goods/Notions/Dry Goods,Catering24,Supplies and Services related expenditure,15/04/2020,205.55,"Director of Housing, Neighbourhood and Building Services"
Type of Retail Store,Grocery Stores/Supermarkets,Wm Morrisons Store,Supplies and Services related expenditure,15/04/2020,25.37,"Director of Housing, Neighbourhood and Building Services"
Miscellaneous,Continuity/Subscription Mercht,Google,Supplies and Services related expenditure,15/04/2020,500,Director of Children's Services and Education
Facilities/Repair Services,Small Appliance Repair Def,Hooper Services Ltd,Premises related expenditure,15/04/2020,38.4,Director of Adult Services
Business To Business Facility/,Industrial Supplies - Def,Cromwell (Head Office),Premises related expenditure,15/04/2020,408.29,Director of Portsmouth International Port
Business To Business Eqpt/Furn,Stationery/Office Supplies,Www.Banneruk.Com,Supplies and Services related expenditure,15/04/2020,49.68,Director of Finance & Resources
Miscellaneous,Continuity/Subscription Mercht,Zoom.Gbp,Supplies and Services related expenditure,15/04/2020,11.99,Director of Regeneration
Other Supplies,Misc Speciality Retail,Amznmktplace,Supplies and Services related expenditure,15/04/2020,34.48,Director of Children's Services and Education
Type of Retail Store,Grocery Stores/Supermarkets,Tesco Store 3048,Supplies and Services related expenditure,15/04/2020,50,Director of Children's Services and Education
Type of Retail Store,Grocery Stores/Supermarkets,Tesco Store 3048,Supplies and Services related expenditure,15/04/2020,40,Director of Children's Services and Education
Type of Retail Store,Grocery Stores/Supermarkets,Tesco Store 3048,Supplies and Services related expenditure,15/04/2020,20,Director of Children's Services and Education
Type of Retail Store,Grocery Stores/Supermarkets,Tesco Store 3048,Supplies and Services related expenditure,15/04/2020,20,Director of Children's Services and Education
Type of Retail Store,Grocery Stores/Supermarkets,Tesco Store 3048,Supplies and Services related expenditure,15/04/2020,20,Director of Children's Services and Education
Business Expenses/Services,Postage Stamps,Post Office Counter,Supplies and Services related expenditure,15/04/2020,50,Director of Children's Services and Education
Business Expenses/Services,Postage Stamps,Post Office Counter,Supplies and Services related expenditure,15/04/2020,50,Director of Children's Services and Education
Business Expenses/Services,Postage Stamps,Post Office Counter,Supplies and Services related expenditure,15/04/2020,50,Director of Children's Services and Education
Business Expenses/Services,Postage Stamps,Post Office Counter,Supplies and Services related expenditure,15/04/2020,50,Director of Children's Services and Education
Business Expenses/Services,Postage Stamps,Post Office Counter,Supplies and Services related expenditure,15/04/2020,120,Director of Children's Services and Education
Business Expenses/Services,Postage Stamps,Post Office Counter,Supplies and Services related expenditure,15/04/2020,50,Director of Children's Services and Education
Type of Retail Store,Grocery Stores/Supermarkets,Sainsburys S/mkts,Supplies and Services related expenditure,15/04/2020,3.21,Director of Children's Services and Education
Type of Retail Store,Grocery Stores/Supermarkets,Sainsburys S/mkts,Supplies and Services related expenditure,15/04/2020,23.25,Director of Children's Services and Education
Business Expenses/Services,Postage Stamps,The Post Office,Supplies and Services related expenditure,15/04/2020,24.28,"Director of Housing, Neighbourhood and Building Services"
Other Supplies,Misc Speciality Retail,Amznmktplace,Premises related expenditure,15/04/2020,89.99,Director of Children's Services and Education
Type of Retail Store,Grocery Stores/Supermarkets,Tesco Stores 4579,Supplies and Services related expenditure,15/04/2020,17.62,Director of Children's Services and Education
Type of Retail Store,Grocery Stores/Supermarkets,Tesco Stores 4579,Premises related expenditure,15/04/2020,17.17,Director of Children's Services and Education
Type of Retail Store,Grocery Stores/Supermarkets,Tesco Stores 4579,Supplies and Services related expenditure,15/04/2020,14,Director of Children's Services and Education
Type of Retail Store,Grocery Stores/Supermarkets,Tesco Stores 4579,Supplies and Services related expenditure,15/04/2020,8.54,Director of Children's Services and Education
Type of Retail Store,Grocery Stores/Supermarkets,Tesco Stores 4579,Supplies and Services related expenditure,15/04/2020,173.67,Director of Children's Services and Education
Type of Retail Store,Grocery Stores/Supermarkets,Farmfoods 750,Supplies and Services related expenditure,15/04/2020,8.17,Director of Adult Services
Other Supplies,Misc Speciality Retail,Tesco Online,Supplies and Services related expenditure,15/04/2020,13.33,Director of Children's Services and Education
Automobile Rental,Automobile Rental Agency,Southern Motor Contrac,Transport related expenditure,15/04/2020,3579,Director of Regeneration
Other Supplies,Misc Speciality Retail,Amznmktplace Amazon.Co.Uk,Supplies and Services related expenditure,15/04/2020,63.71,Director of Corporate Services
Personal Service Provider,Computer Program/Sys Design,Avica UK Noble Express,Premises related expenditure,15/04/2020,51.39,Director of Adult Services
Other Supplies,Misc Gen Merchandise - Def,Www.Hotel-Ware.Co.Uk,Supplies and Services related expenditure,15/04/2020,70.8,Director of Adult Services
Other Supplies,Misc Gen Merchandise - Def,Www.Hotel-Ware.Co.Uk,Premises related expenditure,15/04/2020,7.2,Director of Adult Services
Type of Retail Store,Drug Stores & Pharmacies,Lloyds Pharmacy,Supplies and Services related expenditure,15/04/2020,-83.33,Director of Adult Services
Type of Retail Store,Drug Stores & Pharmacies,Lloyds Pharmacy,Supplies and Services related expenditure,15/04/2020,83.33,Director of Adult Services
Medical,Lab/Med/Hospital Equipment,Wightman & Parrish Ltd,Premises related expenditure,15/04/2020,57,"Director of Housing, Neighbourhood and Building Services"
Medical,Lab/Med/Hospital Equipment,Wightman & Parrish Ltd,Premises related expenditure,15/04/2020,139.68,"Director of Housing, Neighbourhood and Building Services"
Type of Retail Store,Drug Stores & Pharmacies,Lloyds At Sainsbur,Supplies and Services related expenditure,15/04/2020,4.98,Director of Adult Services
Personal Service Provider,Computer Program/Sys Design,Buchanancomputing.Net,Employees related expenditure,15/04/2020,585,Director of Regeneration
Business To Business Eqpt/Furn,Stationery/Office Supplies,Www.Banneruk.Com,Supplies and Services related expenditure,15/04/2020,23.63,Director of Adult Services
Other Supplies,Misc Speciality Retail,Amznmktplace Amazon.Co.Uk,Supplies and Services related expenditure,15/04/2020,60.02,"Director of Culture, Leisure & Regulatory Services"
Medical,Lab/Med/Hospital Equipment,Incchoice,Supplies and Services related expenditure,15/04/2020,98,Director of Adult Services
Business To Business Facility/,Industrial Supplies - Def,Www.Arco.Co.Uk,Supplies and Services related expenditure,09/04/2020,31.2,"Director of Housing, Neighbourhood and Building Services"
Business To Business Facility/,Industrial Supplies - Def,Www.Arco.Co.Uk,Supplies and Services related expenditure,14/04/2020,66.75,"Director of Housing, Neighbourhood and Building Services"
Other Supplies,Misc Speciality Retail,Amznmktplace Amazon.Co.Uk,Supplies and Services related expenditure,15/04/2020,24.99,Director of Children's Services and Education
Other Supplies,Discount Stores,Argos Ltd,Supplies and Services related expenditure,15/04/2020,90.39,Director of Children's Services and Education
Other Supplies,Discount Stores,Argos Ltd,Supplies and Services related expenditure,15/04/2020,127.89,Director of Children's Services and Education
Personal Service Provider,Mgmt/Consult/Public Rel Ser,Tvlicensing.Co.Uk,Supplies and Services related expenditure,15/04/2020,157.5,"Director of Housing, Neighbourhood and Building Services"
Other Supplies,Discount Stores,Argos Ltd,Premises related expenditure,15/04/2020,30,Director of Children's Services and Education
Business To Business Eqpt/Furn,Stationery/Office Supplies,Www.Banneruk.Com,Supplies and Services related expenditure,16/04/2020,143.64,"Director of Housing, Neighbourhood and Building Services"
Other Supplies,Misc Speciality Retail,Amznmktplace Amazon.Co.Uk,Supplies and Services related expenditure,16/04/2020,8.13,"Director of Housing, Neighbourhood and Building Services"
Equipment And Furniture,Household Appliance Stores,Www.Germstaruk.Com,Supplies and Services related expenditure,16/04/2020,105,"Director of Housing, Neighbourhood and Building Services"
Transportation Conveyor,Passenger Railways,Trainline,Transport related expenditure,16/04/2020,5.54,"Director of Housing, Neighbourhood and Building Services"
Other Supplies,Misc Speciality Retail,Amznmktplace,Supplies and Services related expenditure,16/04/2020,19.98,Director of Portsmouth International Port
Other Supplies,Misc Speciality Retail,Amznmktplace,Supplies and Services related expenditure,16/04/2020,21.84,Director of Portsmouth International Port
Other Supplies,Misc Speciality Retail,Amznmktplace,Supplies and Services related expenditure,16/04/2020,59.93,Director of Portsmouth International Port
Type of Retail Store,Drug Stores & Pharmacies,Lalys Chemist,Supplies and Services related expenditure,16/04/2020,32.95,Director of Adult Services
Miscellaneous,Fines,Combined Court Cen,Supplies and Services related expenditure,16/04/2020,50,Director of Children's Services and Education
Facilities/Repair Supplies,Lawn/Garden Supply/Nursery,Wwwtudorenvironmentalcou,Supplies and Services related expenditure,16/04/2020,265,"Director of Culture, Leisure & Regulatory Services"
Facilities/Repair Supplies,Lawn/Garden Supply/Nursery,Wwwtudorenvironmentalcou,Supplies and Services related expenditure,16/04/2020,400.04,"Director of Culture, Leisure & Regulatory Services"
Automobiles and Vehicles,Trailer Camper Dealer,Blenworth Tyres Ltd,Supplies and Services related expenditure,16/04/2020,23.95,"Director of Housing, Neighbourhood and Building Services"
Facilities/Repair Supplies,Hardware Stores,Www.Lsengineers.Co.Uk,Supplies and Services related expenditure,16/04/2020,129.6,"Director of Housing, Neighbourhood and Building Services"
Type of Retail Store,Grocery Stores/Supermarkets,Tesco Store 3048,Supplies and Services related expenditure,16/04/2020,10,Director of Children's Services and Education
Type of Retail Store,Grocery Stores/Supermarkets,Tesco Store 3048,Supplies and Services related expenditure,16/04/2020,10,Director of Children's Services and Education
Type of Retail Store,Grocery Stores/Supermarkets,Tesco Store 3048,Supplies and Services related expenditure,16/04/2020,10,Director of Children's Services and Education
Type of Retail Store,Grocery Stores/Supermarkets,Tesco Store 3048,Supplies and Services related expenditure,16/04/2020,10,Director of Children's Services and Education
Type of Retail Store,Grocery Stores/Supermarkets,Tesco Store 3048,Supplies and Services related expenditure,16/04/2020,17.08,Director of Children's Services and Education
Government Service,Vocational/Trade Schools,Www.Centralcare.Net,Employees related expenditure,16/04/2020,-125,Director of Adult Services
Business To Business Facility/,Industrial Supplies - Def,Www.Arco.Co.Uk,Supplies and Services related expenditure,16/04/2020,42.7,"Director of Housing, Neighbourhood and Building Services"
Medical,Lab/Med/Hospital Equipment,Wightman & Parrish,Premises related expenditure,16/04/2020,474.4,"Director of Housing, Neighbourhood and Building Services"
Other Supplies,Discount Stores,Argos Ltd,Supplies and Services related expenditure,16/04/2020,59.99,Director of Children's Services and Education
Facilities/Repair Supplies,Lawn/Garden Supply/Nursery,M & S Enterprises,Supplies and Services related expenditure,16/04/2020,164.16,"Director of Housing, Neighbourhood and Building Services"
Business To Business Eqpt/Furn,Stationery/Office Supplies,Www.Banneruk.Com,Supplies and Services related expenditure,16/04/2020,254.7,"Director of Housing, Neighbourhood and Building Services"
Hotels And Motels,Lodging/Hotels/Motels/Resorts,Portsmouth Inns,Supplies and Services related expenditure,16/04/2020,435,Director of Children's Services and Education
Hotels And Motels,Lodging/Hotels/Motels/Resorts,Portsmouth Inns,Supplies and Services related expenditure,16/04/2020,435,Director of Children's Services and Education
Type of Retail Store,Drug Stores & Pharmacies,Bobat Pharmacy,Supplies and Services related expenditure,16/04/2020,2.4,Director of Children's Services and Education
Facilities/Repair Supplies,Lawn/Garden Supply/Nursery,Paypal,Premises related expenditure,16/04/2020,8.99,Director of Children's Services and Education
Other Supplies,Misc Speciality Retail,Paypal,Premises related expenditure,16/04/2020,9.97,Director of Children's Services and Education
Facilities/Repair Supplies,Lawn/Garden Supply/Nursery,Paypal,Premises related expenditure,16/04/2020,9.99,Director of Children's Services and Education
Business Expenses/Services,Florists,Paypal,Premises related expenditure,16/04/2020,12.83,Director of Children's Services and Education
Type of Retail Store,Grocery Stores/Supermarkets,Wm Morrisons Store,Supplies and Services related expenditure,16/04/2020,29.83,Director of Children's Services and Education
Type of Retail Store,Grocery Stores/Supermarkets,Wm Morrisons Store,Supplies and Services related expenditure,16/04/2020,72.56,Director of Children's Services and Education
Other Supplies,Discount Stores,Argos Ltd,Supplies and Services related expenditure,16/04/2020,38,Director of Children's Services and Education
Hotels And Motels,Lodging/Hotels/Motels/Resorts,Portsmouth Inns,Supplies and Services related expenditure,16/04/2020,329.17,Director of Children's Services and Education
Automobile Services & Supplies,Service Stations,Shell Fratton 178,Transport related expenditure,16/04/2020,58.58,Director of Regeneration
Business To Business Facility/,Electrical Parts/Equipment,Webuy.Com,Supplies and Services related expenditure,16/04/2020,-3.25,Director of Children's Services and Education
Business To Business Facility/,Electrical Parts/Equipment,Webuy.Com,Supplies and Services related expenditure,16/04/2020,-18.29,Director of Children's Services and Education
Business To Business Facility/,Electrical Parts/Equipment,Webuy.Com,Supplies and Services related expenditure,16/04/2020,52.42,Director of Children's Services and Education
Business To Business Facility/,Electrical Parts/Equipment,Webuy.Com,Supplies and Services related expenditure,16/04/2020,52.42,Director of Children's Services and Education
Business To Business Facility/,Electrical Parts/Equipment,Webuy.Com,Supplies and Services related expenditure,16/04/2020,-211.67,Director of Children's Services and Education
Business To Business Facility/,Electrical Parts/Equipment,Webuy.Com,Supplies and Services related expenditure,16/04/2020,233.21,Director of Children's Services and Education
Caterers Food,Caterers,Booker Limited Portsmouth,Supplies and Services related expenditure,16/04/2020,7.99,"Director of Housing, Neighbourhood and Building Services"
Caterers Food,Caterers,Booker Limited Portsmouth,Supplies and Services related expenditure,16/04/2020,177.86,"Director of Housing, Neighbourhood and Building Services"
Facilities Maintenance,Clean/Maint/Janitoral Serv,Initial Washroom,Premises related expenditure,16/04/2020,74.28,Director of Regeneration
Type of Retail Store,Grocery Stores/Supermarkets,Tesco Store 3186,Supplies and Services related expenditure,16/04/2020,1.8,Director of Children's Services and Education
Type of Retail Store,Grocery Stores/Supermarkets,Sainsburys S/mkts,Supplies and Services related expenditure,16/04/2020,2.25,Director of Children's Services and Education
Type of Retail Store,Grocery Stores/Supermarkets,Tesco Store 3186,Supplies and Services related expenditure,16/04/2020,4.5,Director of Children's Services and Education
Medical,Lab/Med/Hospital Equipment,Wightman & Parrish,Premises related expenditure,16/04/2020,49.4,"Director of Housing, Neighbourhood and Building Services"
Medical,Lab/Med/Hospital Equipment,Wightman & Parrish,Premises related expenditure,16/04/2020,47.86,"Director of Housing, Neighbourhood and Building Services"
Other Supplies,Misc Speciality Retail,Tesco Online,Supplies and Services related expenditure,16/04/2020,45.83,Director of Children's Services and Education
Type of Retail Store,Drug Stores & Pharmacies,Lalys Chemist,Supplies and Services related expenditure,16/04/2020,5.98,Director of Adult Services
Other Supplies,Misc Speciality Retail,Amznmktplace,Supplies and Services related expenditure,16/04/2020,23.31,Director of Adult Services
Type of Retail Store,Grocery Stores/Supermarkets,Wm Morrisons Store,Supplies and Services related expenditure,16/04/2020,54.4,Director of Adult Services
Other Supplies,Discount Stores,Argos Ltd,Supplies and Services related expenditure,16/04/2020,-91,Director of Children's Services and Education
Other Supplies,Discount Stores,Argos Ltd,Supplies and Services related expenditure,16/04/2020,94.95,Director of Children's Services and Education
Auto/Vehicle Expenses,Auto Service Shops/Non Dealer,Boarhunt Group-Vt,Transport related expenditure,16/04/2020,332.02,"Director of Housing, Neighbourhood and Building Services"
Other Supplies,Misc Speciality Retail,Amznmktplace Amazon.Co.Uk,Supplies and Services related expenditure,16/04/2020,67.18,Director of Children's Services and Education
Other Supplies,Misc Speciality Retail,Amznmktplace,Supplies and Services related expenditure,16/04/2020,119.98,Director of Children's Services and Education
Other Supplies,Misc Speciality Retail,Amznmktplace,Supplies and Services related expenditure,16/04/2020,249.96,Director of Children's Services and Education
Other Supplies,Misc Speciality Retail,Amznmktplace Amazon.Co.Uk,Supplies and Services related expenditure,16/04/2020,319.83,Director of Corporate Services
Business To Business Eqpt/Furn,Computer Software Stores,Buyitdirect Co Uk,Supplies and Services related expenditure,16/04/2020,513.28,Director of Corporate Services
Business To Business Eqpt/Furn,Stationery/Office Supplies,Www.Banneruk.Com,Supplies and Services related expenditure,16/04/2020,66.21,Director of Adult Services
Other Supplies,Misc Gen Merchandise - Def,Www.Hotel-Ware.Co.Uk,Supplies and Services related expenditure,16/04/2020,-70.8,Director of Adult Services
Other Supplies,Misc Gen Merchandise - Def,Www.Hotel-Ware.Co.Uk,Premises related expenditure,16/04/2020,-7.2,Director of Adult Services
Medical,Lab/Med/Hospital Equipment,Wightman & Parrish,Premises related expenditure,16/04/2020,60.48,"Director of Housing, Neighbourhood and Building Services"
Caterers Food,Caterers,Elior @ Boe Roehampton,Supplies and Services related expenditure,16/04/2020,108.75,Solent LEP
Facilities/Repair Supplies,Lawn/Garden Supply/Nursery,M & S Enterprises,Premises related expenditure,16/04/2020,77.78,"Director of Housing, Neighbourhood and Building Services"
Other Supplies,Discount Stores,B And M Retail,Supplies and Services related expenditure,16/04/2020,33.33,Director of Adult Services
Miscellaneous,Member Organizations - Def,Bc.*highrise 2580826,Supplies and Services related expenditure,16/04/2020,19.92,Director of Portsmouth International Port
Type of Retail Store,Grocery Stores/Supermarkets,Marks&spencer Plc Sf,Supplies and Services related expenditure,16/04/2020,7.08,Director of Children's Services and Education
Type of Retail Store,Grocery Stores/Supermarkets,Sainsburys S/mkt,Supplies and Services related expenditure,16/04/2020,20.63,Director of Children's Services and Education
Type of Retail Store,Grocery Stores/Supermarkets,Sainsburys S/mkt,Supplies and Services related expenditure,16/04/2020,74.12,Director of Children's Services and Education
Business To Business Eqpt/Furn,Stationery/Office Supplies,Schools Direct Supplie,Supplies and Services related expenditure,16/04/2020,50.94,Director of Adult Services
Clothing Services,Misc Apparel/Access Shops,Www.Cclsouthmapton.Co.,Premises related expenditure,16/04/2020,1324,Director of Finance & Resources
Business To Business Facility/,Electrical Parts/Equipment,Rs Components,Supplies and Services related expenditure,16/04/2020,12.43,"Director of Housing, Neighbourhood and Building Services"
Other Supplies,Misc Speciality Retail,Amznmktplace Amazon.Co.Uk,Supplies and Services related expenditure,16/04/2020,16.66,"Director of Housing, Neighbourhood and Building Services"
Other Supplies,Misc Speciality Retail,Amznmktplace Amazon.Co.Uk,Supplies and Services related expenditure,16/04/2020,11.2,Director of Portsmouth International Port
Personal Service Provider,Mgmt/Consult/Public Rel Ser,Tvlicensing.Co.Uk,Supplies and Services related expenditure,16/04/2020,157.5,Director of Children's Services and Education
Other Supplies,Misc Speciality Retail,Www.Sofmilitary.Co.Uk,Supplies and Services related expenditure,16/04/2020,4.17,"Director of Culture, Leisure & Regulatory Services"
Personal Service Provider,Mgmt/Consult/Public Rel Ser,Tvlicensing.Co.Uk,Supplies and Services related expenditure,16/04/2020,157.5,Director of Children's Services and Education
Personal Service Provider,Mgmt/Consult/Public Rel Ser,Tvlicensing.Co.Uk,Supplies and Services related expenditure,16/04/2020,157.5,Director of Children's Services and Education
Business To Business Facility/,Industrial Supplies - Def,Www.Arco.Co.Uk,Supplies and Services related expenditure,16/04/2020,49.83,"Director of Housing, Neighbourhood and Building Services"
Personal Service Provider,Computer Program/Sys Design,Formlets Small Bus,Supplies and Services related expenditure,17/04/2020,14.94,"Director of Housing, Neighbourhood and Building Services"
Transportation Conveyor,Passenger Railways,Thetrainline.Com,Transport related expenditure,17/04/2020,5.44,"Director of Housing, Neighbourhood and Building Services"
Type of Retail Store,Grocery Stores/Supermarkets,Lidl Gb Portchester,Supplies and Services related expenditure,17/04/2020,6.2,"Director of Housing, Neighbourhood and Building Services"
Auto/Vehicle Expenses,Automated Fuel Dispensers,Asda Petrol 4583,Transport related expenditure,17/04/2020,38.72,Director of Regeneration
Type of Retail Store,Grocery Stores/Supermarkets,Mediterranean Supermarket,Supplies and Services related expenditure,17/04/2020,13.34,Director of Children's Services and Education
Type of Retail Store,Electronics Sales,Currys Online,Supplies and Services related expenditure,17/04/2020,199.17,Director of Children's Services and Education
Auto/Vehicle Expenses,Tire Retread/Repair Shops,Setyres,Transport related expenditure,17/04/2020,16.66,"Director of Culture, Leisure & Regulatory Services"
Other Supplies,Wholesale Clubs,Germinal Gb Limited,Supplies and Services related expenditure,17/04/2020,2092.5,"Director of Culture, Leisure & Regulatory Services"
Business To Business Facility/,Industrial Supplies - Def,Www.Arco.Co.Uk,Supplies and Services related expenditure,17/04/2020,79.09,"Director of Housing, Neighbourhood and Building Services"
Type of Retail Store,Misc Food Stores - Default,Gilletts Tangiers,Premises related expenditure,17/04/2020,81.67,Director of Children's Services and Education
Type of Retail Store,Hobby/Toy/Game Stores,Smythstoys.Com,Supplies and Services related expenditure,17/04/2020,208.33,Director of Children's Services and Education
Other Supplies,Misc Speciality Retail,Amznmktplace Amazon.Co.Uk,Supplies and Services related expenditure,17/04/2020,79.99,Director of Adult Services
Clothing Services,Men/Boys Clothing/Acc Stores,Www.,Supplies and Services related expenditure,17/04/2020,278.63,Director of Regeneration
Facilities/Repair Supplies,Bicycle Shops/Sales/Service,Bicycle Recycling Sout,Supplies and Services related expenditure,17/04/2020,666.67,"Director of Culture, Leisure & Regulatory Services"
Other Supplies,Wholesale Clubs,Germinal Gb Limited,Supplies and Services related expenditure,17/04/2020,4185,"Director of Culture, Leisure & Regulatory Services"
Business Services,Advertising Services,Facebk Vfwcxts8z2,Supplies and Services related expenditure,17/04/2020,10.93,Director of Corporate Services
Business Services,Advertising Services,Facebk Vfwcxts8z2,Supplies and Services related expenditure,17/04/2020,289.07,Director of Corporate Services
Type of Retail Store,Electronics Sales,Currys Online,Supplies and Services related expenditure,17/04/2020,249,Director of Children's Services and Education
Type of Retail Store,Grocery Stores/Supermarkets,Tesco Stores 4611,Supplies and Services related expenditure,17/04/2020,20,Director of Children's Services and Education
Type of Retail Store,Grocery Stores/Supermarkets,Tesco Stores 4611,Supplies and Services related expenditure,17/04/2020,25,Director of Children's Services and Education
Medical,Lab/Med/Hospital Equipment,Wightman & Parrish,Premises related expenditure,17/04/2020,25.6,Director of Finance & Resources
Other Supplies,Misc Speciality Retail,Amznmktplace Amazon.Co.Uk,Supplies and Services related expenditure,17/04/2020,107.42,Director of Finance & Resources
Business To Business Other Sup,Piece Goods/Notions/Dry Goods,Catering24,Supplies and Services related expenditure,17/04/2020,111.55,"Director of Housing, Neighbourhood and Building Services"
Business To Business Eqpt/Furn,Stationery/Office Supplies,Www.Banneruk.Com,Supplies and Services related expenditure,17/04/2020,438.5,Director of Finance & Resources
Facilities/Repair Supplies,Drapery & Upholstery Stores,Fabric Land,Supplies and Services related expenditure,17/04/2020,7.5,"Director of Housing, Neighbourhood and Building Services"
Medical,Lab/Med/Hospital Equipment,Incchoice,Supplies and Services related expenditure,17/04/2020,52.59,Director of Adult Services
Miscellaneous,Charitable/Soc Service Orgs,Inst Of Lic,Supplies and Services related expenditure,17/04/2020,465,"Director of Culture, Leisure & Regulatory Services"
Type of Retail Store,Cigar Stores/Stands,Totally Wicked,Supplies and Services related expenditure,17/04/2020,366.67,Director of Public Health
Medical,Lab/Med/Hospital Equipment,Wightman & Parrish Ltd,Premises related expenditure,17/04/2020,57.6,Director of Adult Services
Medical,Lab/Med/Hospital Equipment,Wightman & Parrish Ltd,Supplies and Services related expenditure,17/04/2020,39.98,Director of Adult Services
Medical,Lab/Med/Hospital Equipment,Wightman & Parrish Ltd,Supplies and Services related expenditure,17/04/2020,94.59,Director of Adult Services
Medical,Lab/Med/Hospital Equipment,Wightman & Parrish Ltd,Supplies and Services related expenditure,17/04/2020,33.8,Director of Adult Services
Medical,Lab/Med/Hospital Equipment,Wightman & Parrish Ltd,Premises related expenditure,17/04/2020,61.79,Director of Adult Services
Type of Retail Store,Grocery Stores/Supermarkets,Www.Iceland.Co.Uk,Supplies and Services related expenditure,17/04/2020,86.5,Director of Adult Services
Business To Business Eqpt/Furn,Computer Software Stores,Engage Software,Supplies and Services related expenditure,17/04/2020,60,Capital - Resources
Business Services,Advertising Services,Facebk *lu556t6ql2,Supplies and Services related expenditure,17/04/2020,235.25,"Director of Culture, Leisure & Regulatory Services"
Business To Business Eqpt/Furn,Stationery/Office Supplies,Www.Banneruk.Com,Supplies and Services related expenditure,17/04/2020,7.08,"Director of Housing, Neighbourhood and Building Services"
Other Supplies,Misc Speciality Retail,Amznmktplace Amazon.Co.Uk,Supplies and Services related expenditure,17/04/2020,3.33,"Director of Housing, Neighbourhood and Building Services"
Caterers Food,Caterers,Booker Limited Portsmouth,Supplies and Services related expenditure,17/04/2020,3.99,"Director of Housing, Neighbourhood and Building Services"
Caterers Food,Caterers,Booker Limited Portsmouth,Supplies and Services related expenditure,17/04/2020,71.94,"Director of Housing, Neighbourhood and Building Services"
Other Supplies,Discount Stores,Argos Ltd,Supplies and Services related expenditure,17/04/2020,203.94,Director of Children's Services and Education
Medical,Lab/Med/Hospital Equipment,Wightman & Parrish Ltd,Supplies and Services related expenditure,17/04/2020,-28.16,Director of Adult Services
Medical,Lab/Med/Hospital Equipment,Wightman & Parrish,Premises related expenditure,17/04/2020,34.7,"Director of Housing, Neighbourhood and Building Services"
Business To Business Facility/,Industrial Supplies - Def,Www.Arco.Co.Uk,Supplies and Services related expenditure,17/04/2020,12.64,"Director of Housing, Neighbourhood and Building Services"
Type of Retail Store,Grocery Stores/Supermarkets,Tesco Stores 2325,Supplies and Services related expenditure,17/04/2020,5.35,Director of Children's Services and Education
Other Supplies,Discount Stores,Argos Ltd,Supplies and Services related expenditure,17/04/2020,-3.95,Director of Children's Services and Education
Personal Service Provider,Legal Services Attorneys,Warner Goodman Llp,Supplies and Services related expenditure,17/04/2020,105.14,Director of Children's Services and Education
Auto/Vehicle Expenses,Auto Service Shops/Non Dealer,Boarhunt Group-Vt,Supplies and Services related expenditure,17/04/2020,676.1,Director of Children's Services and Education
Type of Retail Store,Grocery Stores/Supermarkets,Tesco Stores 4579,Supplies and Services related expenditure,17/04/2020,19.16,Director of Children's Services and Education
Other Supplies,Misc Gen Merchandise - Def,Supreme Wipes,Premises related expenditure,17/04/2020,139.04,"Director of Culture, Leisure & Regulatory Services"
Other Supplies,Misc Speciality Retail,Amznmktplace,Supplies and Services related expenditure,17/04/2020,316.58,Director of Corporate Services
Freight/Courier/Warehouse Svcs,Public Warehousing,Big Yellow S S Portsmout,Premises related expenditure,17/04/2020,69,"Director of Housing, Neighbourhood and Building Services"
Freight/Courier/Warehouse Svcs,Public Warehousing,Big Yellow S S Portsmout,Premises related expenditure,17/04/2020,109,"Director of Housing, Neighbourhood and Building Services"
Freight/Courier/Warehouse Svcs,Public Warehousing,Big Yellow S S Portsmout,Agency and Third Party Payments related expenditure,17/04/2020,152.7,"Director of Housing, Neighbourhood and Building Services"
Freight/Courier/Warehouse Svcs,Public Warehousing,Big Yellow S S Portsmout,Agency and Third Party Payments related expenditure,17/04/2020,221.17,"Director of Housing, Neighbourhood and Building Services"
Business Expenses/Services,Postage Stamps,Royal Mail Online Shop,Supplies and Services related expenditure,17/04/2020,336,Director of Children's Services and Education
Other Supplies,Misc Speciality Retail,Amznmktplace Amazon.Co.Uk,Supplies and Services related expenditure,17/04/2020,37.48,"Director of Culture, Leisure & Regulatory Services"
Medical,Lab/Med/Hospital Equipment,Wightman & Parrish Ltd,Premises related expenditure,17/04/2020,238.63,"Director of Housing, Neighbourhood and Building Services"
Type of Retail Store,Grocery Stores/Supermarkets,Asda Stores,Premises related expenditure,17/04/2020,5.78,"Director of Housing, Neighbourhood and Building Services"
Digital Goods,Digital Goods - Games,G2a.Com,Agency and Third Party Payments related expenditure,17/04/2020,13.1,Director of Children's Services and Education
Digital Goods,Digital Goods - Games,Epc*fortnite,Agency and Third Party Payments related expenditure,17/04/2020,19.99,Director of Children's Services and Education
Clothing Services,Misc Apparel/Access Shops,Www.Cclsouthmapton.Co.,Supplies and Services related expenditure,17/04/2020,474,Director of Finance & Resources
Type of Retail Store,Grocery Stores/Supermarkets,Tesco Stores 4579,Supplies and Services related expenditure,18/04/2020,15,Director of Children's Services and Education
Type of Retail Store,Grocery Stores/Supermarkets,Sainsburys S/mkt,Supplies and Services related expenditure,18/04/2020,26.29,Director of Children's Services and Education
Type of Retail Store,Grocery Stores/Supermarkets,Sainsburys S/mkt,Supplies and Services related expenditure,18/04/2020,34.45,Director of Children's Services and Education
Type of Retail Store,Grocery Stores/Supermarkets,Tesco Stores 4579,Supplies and Services related expenditure,18/04/2020,34.17,Director of Children's Services and Education
Type of Retail Store,Grocery Stores/Supermarkets,Tesco Stores 4579,Supplies and Services related expenditure,18/04/2020,4.08,Director of Children's Services and Education
Type of Retail Store,Grocery Stores/Supermarkets,Tesco Stores 4579,Supplies and Services related expenditure,18/04/2020,19.35,Director of Children's Services and Education
Type of Retail Store,Grocery Stores/Supermarkets,Tesco Stores 4579,Supplies and Services related expenditure,18/04/2020,15,Director of Children's Services and Education
Type of Retail Store,Grocery Stores/Supermarkets,Tesco Stores 4579,Supplies and Services related expenditure,18/04/2020,5.5,Director of Children's Services and Education
Type of Retail Store,Grocery Stores/Supermarkets,Tesco Stores 4579,Agency and Third Party Payments related expenditure,18/04/2020,12.5,Director of Children's Services and Education
Digital Goods,"Digital Goods - Media, Books, Movies, Music",Disney Plus,Supplies and Services related expenditure,18/04/2020,5.99,Director of Children's Services and Education
Other Supplies,Misc Speciality Retail,Amznmktplace Amazon.Co.Uk,Supplies and Services related expenditure,18/04/2020,12.77,"Director of Housing, Neighbourhood and Building Services"
Type of Retail Store,Grocery Stores/Supermarkets,Asda Stores,Supplies and Services related expenditure,18/04/2020,3.33,"Director of Housing, Neighbourhood and Building Services"
Transportation Conveyor,Passenger Railways,Southern Railway Web,Transport related expenditure,18/04/2020,11.2,"Director of Housing, Neighbourhood and Building Services"
Type of Retail Store,Grocery Stores/Supermarkets,Tesco Stores 4579,Supplies and Services related expenditure,18/04/2020,10.29,Director of Children's Services and Education
Type of Retail Store,Grocery Stores/Supermarkets,Tesco Stores 4579,Supplies and Services related expenditure,18/04/2020,12.4,Director of Children's Services and Education
Type of Retail Store,Grocery Stores/Supermarkets,Tesco Stores 4579,Supplies and Services related expenditure,18/04/2020,13.56,Director of Children's Services and Education
Type of Retail Store,Grocery Stores/Supermarkets,Tesco Stores 4579,Supplies and Services related expenditure,18/04/2020,7.13,Director of Children's Services and Education
Type of Retail Store,Grocery Stores/Supermarkets,Tesco Stores 4579,Supplies and Services related expenditure,18/04/2020,5.18,Director of Children's Services and Education
Type of Retail Store,Grocery Stores/Supermarkets,Tesco Stores 4579,Supplies and Services related expenditure,18/04/2020,0.08,Director of Children's Services and Education
Type of Retail Store,Grocery Stores/Supermarkets,Tesco Stores 4579,Supplies and Services related expenditure,18/04/2020,16.33,Director of Children's Services and Education
Type of Retail Store,Grocery Stores/Supermarkets,Tesco Stores 4579,Supplies and Services related expenditure,18/04/2020,18.86,Director of Children's Services and Education
Type of Retail Store,Grocery Stores/Supermarkets,Tesco Stores 4579,Supplies and Services related expenditure,18/04/2020,3.75,Director of Children's Services and Education
Type of Retail Store,Grocery Stores/Supermarkets,Tesco Stores 4579,Supplies and Services related expenditure,18/04/2020,17.05,Director of Children's Services and Education
Type of Retail Store,Grocery Stores/Supermarkets,Tesco Stores 4579,Supplies and Services related expenditure,18/04/2020,31.65,Director of Children's Services and Education
Type of Retail Store,Grocery Stores/Supermarkets,Tesco Stores 4579,Supplies and Services related expenditure,18/04/2020,0.74,Director of Children's Services and Education
Type of Retail Store,Grocery Stores/Supermarkets,Tesco Stores 4579,Supplies and Services related expenditure,18/04/2020,35.13,Director of Children's Services and Education
Digital Goods,Digital Goods - Games,Epc*fortnite,Agency and Third Party Payments related expenditure,18/04/2020,29.99,Director of Children's Services and Education
Type of Retail Store,Hobby/Toy/Game Stores,Smythstoys.Com,Agency and Third Party Payments related expenditure,18/04/2020,52.98,Director of Children's Services and Education
Miscellaneous,Other Direct Marketers,Amazon.Co.Uk,Supplies and Services related expenditure,18/04/2020,7.16,Director of Children's Services and Education
Miscellaneous,Other Direct Marketers,Amazon.Co.Uk,Supplies and Services related expenditure,18/04/2020,7.47,Director of Children's Services and Education
Transportation Conveyor,Passenger Railways,Trainline,Transport related expenditure,19/04/2020,-33.9,Director of Children's Services and Education
Other Supplies,Misc Speciality Retail,Amznmktplace,Supplies and Services related expenditure,19/04/2020,3.08,Director of Portsmouth International Port
Facilities/Repair Supplies,Home Supply Warehouse Stores,B&q Direct,Premises related expenditure,19/04/2020,40.83,Director of Children's Services and Education
Automobile Services & Supplies,Service Stations,Shell Fratton 178,Transport related expenditure,19/04/2020,41.1,Director of Regeneration
Other Supplies,Misc Speciality Retail,Amazon.Co.Uk,Premises related expenditure,19/04/2020,40,"Director of Housing, Neighbourhood and Building Services"
Other Supplies,Misc Speciality Retail,Amazon.Co.Uk,Supplies and Services related expenditure,19/04/2020,55.99,Director of Regeneration
Miscellaneous,Other Direct Marketers,Amazon.Co.Uk,Supplies and Services related expenditure,19/04/2020,62.91,Director of Regeneration
Business Services,Business Services - Default,Hoo*hootsuite Inc,Supplies and Services related expenditure,19/04/2020,150,"Director of Culture, Leisure & Regulatory Services"
Type of Retail Store,Grocery Stores/Supermarkets,Www.Iceland.Co.Uk,Supplies and Services related expenditure,19/04/2020,25.28,Director of Adult Services
Type of Retail Store,Grocery Stores/Supermarkets,Www.Iceland.Co.Uk,Supplies and Services related expenditure,19/04/2020,70.5,Director of Adult Services
Caterers Food,Caterers,Bookerecomm,Supplies and Services related expenditure,19/04/2020,17.99,"Director of Housing, Neighbourhood and Building Services"
Caterers Food,Caterers,Bookerecomm,Supplies and Services related expenditure,19/04/2020,251.56,"Director of Housing, Neighbourhood and Building Services"
Other Supplies,Department Stores,Southern Co-Op 0008,Premises related expenditure,19/04/2020,0.42,Director of Children's Services and Education
Other Supplies,Department Stores,Southern Co-Op 0008,Supplies and Services related expenditure,19/04/2020,4.8,Director of Children's Services and Education
Amusement/Entertainment,Theatrical Producers,Jpimedia,Supplies and Services related expenditure,19/04/2020,1,Director of Corporate Services
Type of Retail Store,Used Merchandise Stores,Paypal,Supplies and Services related expenditure,17/04/2020,233.21,Director of Children's Services and Education
Personal Service Provider,Mgmt/Consult/Public Rel Ser,Tvlicensing.Co.Uk,Supplies and Services related expenditure,17/04/2020,157.5,Director of Children's Services and Education
Personal Service Provider,Mgmt/Consult/Public Rel Ser,Tvlicensing.Co.Uk,Supplies and Services related expenditure,18/04/2020,157.5,Director of Children's Services and Education
Other Supplies,Misc Speciality Retail,Amznmktplace Amazon.Co.Uk,Supplies and Services related expenditure,19/04/2020,59.52,"Director of Housing, Neighbourhood and Building Services"
Medical,Lab/Med/Hospital Equipment,Wightman & Parrish Ltd,Supplies and Services related expenditure,20/04/2020,139.68,"Director of Housing, Neighbourhood and Building Services"
Miscellaneous,Fines,Combined Court Cen,Supplies and Services related expenditure,20/04/2020,455,Director of Children's Services and Education
Equipment And Furniture,Equip/Furn Rent/Lease Serv,South East Water,Supplies and Services related expenditure,20/04/2020,550,"Director of Culture, Leisure & Regulatory Services"
Other Supplies,Department Stores,The Range,Premises related expenditure,20/04/2020,47.44,Director of Children's Services and Education
Type of Retail Store,Sporting Goods Stores,Www.Sportandleisur,Supplies and Services related expenditure,20/04/2020,299.99,Director of Children's Services and Education
Equipment And Furniture,Phone Serv/Equip Non-Util,South West Comm Grp Ltd,Supplies and Services related expenditure,20/04/2020,145.5,Director of Children's Services and Education
Type of Retail Store,Pet Stores/Food & Supply,Jollyes The Pet Supers,Supplies and Services related expenditure,20/04/2020,14.3,Director of Children's Services and Education
Business Expenses/Services,Books/Periodicals/Newspapers,Www.Wheelersbooks.Co.N,Supplies and Services related expenditure,20/04/2020,350.83,"Director of Culture, Leisure & Regulatory Services"
Business Expenses/Services,Books/Periodicals/Newspapers,Www.Wheelersbooks.Co.N,Supplies and Services related expenditure,20/04/2020,454.47,"Director of Culture, Leisure & Regulatory Services"
Business To Business Eqpt/Furn,Stationery/Office Supplies,Www.Banneruk.Com,Premises related expenditure,20/04/2020,1.94,"Director of Housing, Neighbourhood and Building Services"
Business To Business Eqpt/Furn,Stationery/Office Supplies,Www.Banneruk.Com,Supplies and Services related expenditure,20/04/2020,64.31,"Director of Housing, Neighbourhood and Building Services"
Business To Business Eqpt/Furn,Stationery/Office Supplies,Www.Banneruk.Com,Supplies and Services related expenditure,20/04/2020,199.4,Director of Finance & Resources
Business To Business Eqpt/Furn,Stationery/Office Supplies,Www.Banneruk.Com,Supplies and Services related expenditure,20/04/2020,896.42,Director of Finance & Resources
Type of Retail Store,Grocery Stores/Supermarkets,Sainsburys S/mkt,Supplies and Services related expenditure,20/04/2020,15.79,Director of Children's Services and Education
Type of Retail Store,Grocery Stores/Supermarkets,Sainsburys S/mkt,Supplies and Services related expenditure,20/04/2020,155.28,Director of Children's Services and Education
Type of Retail Store,Grocery Stores/Supermarkets,Sainsburys S/mkt,Premises related expenditure,20/04/2020,1.63,Director of Children's Services and Education
Type of Retail Store,Grocery Stores/Supermarkets,Sainsburys S/mkt,Supplies and Services related expenditure,20/04/2020,7.92,Director of Children's Services and Education
Type of Retail Store,Grocery Stores/Supermarkets,Sainsburys S/mkt,Supplies and Services related expenditure,20/04/2020,24.17,Director of Children's Services and Education
Utility,Phone Serv/Equip Utility,Virgin Media Pymts,Supplies and Services related expenditure,20/04/2020,163,Director of Children's Services and Education
Business To Business Facility/,Industrial Supplies - Def,Www.Arco.Co.Uk,Supplies and Services related expenditure,20/04/2020,25.24,"Director of Housing, Neighbourhood and Building Services"
Type of Retail Store,Grocery Stores/Supermarkets,Spar 31106175,Supplies and Services related expenditure,20/04/2020,11.9,"Director of Housing, Neighbourhood and Building Services"
Type of Retail Store,Grocery Stores/Supermarkets,Fruit Basket Ltd,Premises related expenditure,20/04/2020,50.25,"Director of Culture, Leisure & Regulatory Services"
Business Expenses/Services,Postage Stamps,The Post Office,Supplies and Services related expenditure,20/04/2020,24.55,"Director of Housing, Neighbourhood and Building Services"
Business Services,Employment/Temp Help Agen,Www.Reed.Co.Uk,Employees related expenditure,20/04/2020,29.17,Director of Children's Services and Education
Utility,Computer Network/Info Svcs,Godaddy.Com Europe,Capital related expenditure,20/04/2020,26.99,Director of Regeneration
Business To Business Facility/,Industrial Supplies - Def,Www.Arco.Co.Uk,Supplies and Services related expenditure,20/04/2020,16.6,"Director of Housing, Neighbourhood and Building Services"
Other Supplies,Department Stores,One4all,Supplies and Services related expenditure,20/04/2020,41.67,Director of Children's Services and Education
Business To Business Eqpt/Furn,Stationery/Office Supplies,Www.Banneruk.Com,Supplies and Services related expenditure,20/04/2020,22,"Director of Housing, Neighbourhood and Building Services"
Auto/Vehicle Expenses,Auto Service Shops/Non Dealer,Boarhunt Group-Vt,Supplies and Services related expenditure,20/04/2020,277.02,Director of Children's Services and Education
Government Service,Schools - Default,Www.Train-Aid.Co.Uk,Employees related expenditure,20/04/2020,350,Director of Children's Services and Education
Transportation Conveyor,Taxicabs/Limousines,Aqua Cars,Transport related expenditure,20/04/2020,75.5,"Director of Housing, Neighbourhood and Building Services"
Other Supplies,Discount Stores,Argos Ltd,Supplies and Services related expenditure,20/04/2020,74.99,"Director of Culture, Leisure & Regulatory Services"
Type of Retail Store,Drug Stores & Pharmacies,Greywell Pharmacy,Supplies and Services related expenditure,20/04/2020,7.92,"Director of Housing, Neighbourhood and Building Services"
Business To Business Eqpt/Furn,Stationery/Office Supplies,Www.Banneruk.Com,Supplies and Services related expenditure,20/04/2020,64.94,"Director of Housing, Neighbourhood and Building Services"
Facilities/Repair Supplies,Home Supply Warehouse Stores,Screwfix Direct,Supplies and Services related expenditure,20/04/2020,14.05,Director of Adult Services
Type of Retail Store,Electronics Sales,Currys Online,Supplies and Services related expenditure,20/04/2020,174.99,Director of Adult Services
Caterers Food,Caterers,Booker Limited Portsmouth,Supplies and Services related expenditure,20/04/2020,31.32,"Director of Housing, Neighbourhood and Building Services"
Caterers Food,Caterers,Booker Limited Portsmouth,Premises related expenditure,20/04/2020,18.98,"Director of Housing, Neighbourhood and Building Services"
Equipment And Furniture,Furniture/Equip Stores,Sp * Hoagard.Co,Premises related expenditure,20/04/2020,51.08,Director of Children's Services and Education
Facilities/Repair Supplies,Home Supply Warehouse Stores,Screwfix Direct,Premises related expenditure,20/04/2020,71.97,Director of Children's Services and Education
Facilities/Repair Supplies,Home Supply Warehouse Stores,B&q Direct,Premises related expenditure,20/04/2020,237.16,Director of Children's Services and Education
Facilities/Repair Supplies,Lawn/Garden Supply/Nursery,Wwwtudorenvironmentalcou,Premises related expenditure,20/04/2020,113.8,"Director of Housing, Neighbourhood and Building Services"
Digital Goods,Digital Goods - Games,Fintech Decision,Agency and Third Party Payments related expenditure,20/04/2020,10.71,Director of Children's Services and Education
Digital Goods,Digital Goods - Games,Epc*fortnite,Agency and Third Party Payments related expenditure,20/04/2020,19.99,Director of Children's Services and Education
Other Supplies,Misc Speciality Retail,Amznmktplace,Supplies and Services related expenditure,20/04/2020,26.9,"Director of Housing, Neighbourhood and Building Services"
Other Supplies,Misc Speciality Retail,Amznmktplace Amazon.Co.Uk,Supplies and Services related expenditure,20/04/2020,36.2,Director of Corporate Services
Personal Service Provider,Mgmt/Consult/Public Rel Ser,Tvlicensing.Co.Uk,Supplies and Services related expenditure,20/04/2020,157.5,"Director of Housing, Neighbourhood and Building Services"
Other Supplies,Misc Speciality Retail,Amznmktplace Amazon.Co.Uk,Supplies and Services related expenditure,20/04/2020,18.73,"Director of Housing, Neighbourhood and Building Services"
Facilities/Repair Supplies,Hardware Stores,Www.Toolstation.Com,Supplies and Services related expenditure,21/04/2020,5.73,Director of Adult Services
Medical,Lab/Med/Hospital Equipment,Wightman & Parrish,Premises related expenditure,21/04/2020,65.56,"Director of Housing, Neighbourhood and Building Services"
Personal Service Provider,Architectural/Eng/Survey,Hec Showman Ltd,Supplies and Services related expenditure,21/04/2020,668.49,Director of Adult Services
Medical,Lab/Med/Hospital Equipment,Wightman & Parrish Ltd,Premises related expenditure,21/04/2020,289.8,"Director of Housing, Neighbourhood and Building Services"
Auto/Vehicle Expenses,Automotive Tire Stores,Portsmouth - Protyre,Transport related expenditure,21/04/2020,20.83,"Director of Culture, Leisure & Regulatory Services"
Facilities/Repair Supplies,Lawn/Garden Supply/Nursery,Wwwtudorenvironmentalcou,Supplies and Services related expenditure,21/04/2020,29.5,"Director of Culture, Leisure & Regulatory Services"
Auto/Vehicle Expenses,Tire Retread/Repair Shops,Setyres,Transport related expenditure,21/04/2020,48.88,"Director of Culture, Leisure & Regulatory Services"
Facilities/Repair Supplies,Lawn/Garden Supply/Nursery,Www.Meadowmania.Co.Uk,Supplies and Services related expenditure,21/04/2020,62.5,"Director of Culture, Leisure & Regulatory Services"
Facilities/Repair Supplies,Lawn/Garden Supply/Nursery,Wwwtudorenvironmentalcou,Supplies and Services related expenditure,21/04/2020,-130,"Director of Culture, Leisure & Regulatory Services"
Medical,Lab/Med/Hospital Equipment,Scientificlabs.Co.,Supplies and Services related expenditure,21/04/2020,87.75,"Director of Culture, Leisure & Regulatory Services"
Medical,Lab/Med/Hospital Equipment,Scientificlabs.Co.,Supplies and Services related expenditure,21/04/2020,87.75,"Director of Culture, Leisure & Regulatory Services"
Facilities/Repair Supplies,Lawn/Garden Supply/Nursery,Wwwtudorenvironmentalcou,Supplies and Services related expenditure,21/04/2020,1682.25,"Director of Culture, Leisure & Regulatory Services"
Facilities/Repair Supplies,Lawn/Garden Supply/Nursery,Wwwtudorenvironmentalcou,Supplies and Services related expenditure,21/04/2020,43.4,"Director of Culture, Leisure & Regulatory Services"
Type of Retail Store,Electronics Sales,Currys Online,Supplies and Services related expenditure,21/04/2020,207.5,Director of Children's Services and Education
Personal Service Provider,Commercial Photo/Art/Graph,Anton Drawing Office Su,Agency and Third Party Payments related expenditure,21/04/2020,273.95,"Director of Culture, Leisure & Regulatory Services"
Hotels And Motels,Travelodge,Travelodge Gb0000,Agency and Third Party Payments related expenditure,21/04/2020,-120.75,"Director of Housing, Neighbourhood and Building Services"
Hotels And Motels,Travelodge,Travelodge Gb0000,Agency and Third Party Payments related expenditure,21/04/2020,-1148.52,"Director of Housing, Neighbourhood and Building Services"
Automobile Rental,Motor Home/Rv Rentals,Southsea Leisure Park,Agency and Third Party Payments related expenditure,21/04/2020,340.48,"Director of Housing, Neighbourhood and Building Services"
Automobile Rental,Motor Home/Rv Rentals,Southsea Leisure Park,Agency and Third Party Payments related expenditure,21/04/2020,97.86,"Director of Housing, Neighbourhood and Building Services"
Automobile Rental,Motor Home/Rv Rentals,Southsea Leisure Park,Agency and Third Party Payments related expenditure,21/04/2020,866.67,"Director of Housing, Neighbourhood and Building Services"
Automobile Rental,Motor Home/Rv Rentals,Southsea Leisure Park,Agency and Third Party Payments related expenditure,21/04/2020,303.33,"Director of Housing, Neighbourhood and Building Services"
Medical,Lab/Med/Hospital Equipment,Incchoice,Supplies and Services related expenditure,21/04/2020,46.64,Director of Adult Services
Medical,Lab/Med/Hospital Equipment,Wightman & Parrish,Premises related expenditure,21/04/2020,511.84,"Director of Housing, Neighbourhood and Building Services"
Business To Business Eqpt/Furn,Computer Software Stores,Sp * Wessex Distillery,Supplies and Services related expenditure,21/04/2020,33.33,Director of Regeneration
Medical,Lab/Med/Hospital Equipment,Zafety Supplies Ltd,Supplies and Services related expenditure,21/04/2020,159.9,Director of Regeneration
Facilities/Repair Supplies,Lawn/Garden Supply/Nursery,Rigby Taylor Limited,Supplies and Services related expenditure,21/04/2020,495,"Director of Culture, Leisure & Regulatory Services"
Facilities/Repair Supplies,Lawn/Garden Supply/Nursery,Rigby Taylor Limited,Supplies and Services related expenditure,21/04/2020,1864.25,"Director of Culture, Leisure & Regulatory Services"
Business To Business Facility/,Industrial Supplies - Def,Www.Arco.Co.Uk,Supplies and Services related expenditure,21/04/2020,83.99,"Director of Housing, Neighbourhood and Building Services"
Business To Business Facility/,Industrial Supplies - Def,Www.Arco.Co.Uk,Supplies and Services related expenditure,21/04/2020,228.31,"Director of Housing, Neighbourhood and Building Services"
Business To Business Eqpt/Furn,Book Stores,Stationery Office Book,Supplies and Services related expenditure,21/04/2020,22.65,Director of Regeneration
Business Services,Advertising Services,Facebk Ph5tzts8z2,Supplies and Services related expenditure,21/04/2020,3.76,Director of Corporate Services
Business Services,Advertising Services,Facebk Ph5tzts8z2,Supplies and Services related expenditure,21/04/2020,296.24,Director of Corporate Services
Medical,Lab/Med/Hospital Equipment,Wightman & Parrish,Premises related expenditure,21/04/2020,6.11,"Director of Housing, Neighbourhood and Building Services"
Business To Business Other Sup,Piece Goods/Notions/Dry Goods,Catering24,Supplies and Services related expenditure,21/04/2020,144.9,"Director of Housing, Neighbourhood and Building Services"
Type of Retail Store,Freezer/Meat Lockers,Dennis Edwards Food Serv,Supplies and Services related expenditure,21/04/2020,618.61,Director of Finance & Resources
Miscellaneous,Continuity/Subscription Mercht,Zoom.Gbp,Supplies and Services related expenditure,21/04/2020,11.99,Director of Children's Services and Education
Medical,Lab/Med/Hospital Equipment,Wightman & Parrish,Premises related expenditure,21/04/2020,93.3,"Director of Housing, Neighbourhood and Building Services"
Type of Retail Store,Pet Stores/Food & Supply,Pets At Home Ltd,Supplies and Services related expenditure,21/04/2020,11.25,"Director of Housing, Neighbourhood and Building Services"
Type of Retail Store,Sporting Goods Stores,Jd Sports Internet,Supplies and Services related expenditure,21/04/2020,59.99,Director of Children's Services and Education
Business Services,Business Services - Default,Eb *licensing Mastercl,Supplies and Services related expenditure,21/04/2020,20,"Director of Culture, Leisure & Regulatory Services"
Type of Retail Store,Grocery Stores/Supermarkets,Tesco Stores 6002,Premises related expenditure,21/04/2020,6,Director of Adult Services
Type of Retail Store,Grocery Stores/Supermarkets,Tesco Stores 6002,Supplies and Services related expenditure,21/04/2020,9.25,Director of Adult Services
Type of Retail Store,Grocery Stores/Supermarkets,Www.Iceland.Co.Uk,Supplies and Services related expenditure,21/04/2020,72.6,Director of Adult Services
Business To Business Services,Misc Publishing & Printing,Bonacia Ltd,Supplies and Services related expenditure,21/04/2020,228,Director of Children's Services and Education
Business Expenses/Services,Postage Stamps,Post Office Counter,Supplies and Services related expenditure,21/04/2020,2.06,Director of Children's Services and Education
Business Expenses/Services,Postage Stamps,Royal Mail Group,Supplies and Services related expenditure,21/04/2020,122.23,"Director of Housing, Neighbourhood and Building Services"
Medical,Lab/Med/Hospital Equipment,Wightman & Parrish,Premises related expenditure,21/04/2020,157.69,"Director of Housing, Neighbourhood and Building Services"
Other Supplies,Department Stores,Www.Johnlewis.Com,Transport related expenditure,21/04/2020,280.78,Director of Children's Services and Education
Business To Business Eqpt/Furn,Stationery/Office Supplies,Www.Banneruk.Com,Supplies and Services related expenditure,21/04/2020,188.09,Director of Adult Services
Business To Business Eqpt/Furn,Stationery/Office Supplies,Www.Banneruk.Com,Supplies and Services related expenditure,21/04/2020,149.89,"Director of Culture, Leisure & Regulatory Services"
Facilities/Repair Supplies,Glass/Paint/Wallpaper Store,Johnstones Dec Centre,Premises related expenditure,21/04/2020,199.96,"Director of Culture, Leisure & Regulatory Services"
Business To Business Eqpt/Furn,Computer Software Stores,Crowdfund* Crowdfunder,Supplies and Services related expenditure,21/04/2020,23,Director of Adult Services
Type of Retail Store,Grocery Stores/Supermarkets,One Stop 1339,Supplies and Services related expenditure,21/04/2020,14.2,Director of Children's Services and Education
Other Supplies,Discount Stores,Argos Ltd,Supplies and Services related expenditure,21/04/2020,289.99,Director of Children's Services and Education
Government Service,Business/Secretarial School,Pp*medicationtraining,Employees related expenditure,21/04/2020,900,Director of Children's Services and Education
Transportation Conveyor,Passenger Railways,Trainline,Transport related expenditure,21/04/2020,-87.8,Director of Regeneration
Other Supplies,Department Stores,Southern Co-Op 0328,Transport related expenditure,21/04/2020,8.52,Director of Children's Services and Education
Digital Goods,Digital Goods - Games,Epc*fortnite,Agency and Third Party Payments related expenditure,21/04/2020,19.99,Director of Children's Services and Education
Miscellaneous,Continuity/Subscription Mercht,Zoom.Gbp,Supplies and Services related expenditure,21/04/2020,11.99,Director of Regeneration
Other Supplies,Department Stores,The Range,Supplies and Services related expenditure,21/04/2020,4.99,Director of Children's Services and Education
Type of Retail Store,Misc Food Stores - Default,Bransbury Park Butchers,Supplies and Services related expenditure,21/04/2020,74.43,Director of Adult Services
Business Services,Business Services - Default,Www.Phs.Co.Uk,Premises related expenditure,21/04/2020,1090.82,Director of Adult Services
Medical,Lab/Med/Hospital Equipment,Wightman & Parrish Ltd,Premises related expenditure,21/04/2020,58.95,"Director of Housing, Neighbourhood and Building Services"
Utility,Cable/Pay Tv Services,Netflix.Com,Supplies and Services related expenditure,22/04/2020,9.99,Director of Children's Services and Education
Business To Business Eqpt/Furn,Stationery/Office Supplies,Www.Postofficeshop.Co.Uk,Supplies and Services related expenditure,20/04/2020,198.23,Director of Children's Services and Education
Personal Service Provider,Mgmt/Consult/Public Rel Ser,Tvlicensing.Co.Uk,Supplies and Services related expenditure,21/04/2020,157.5,"Director of Housing, Neighbourhood and Building Services"
Personal Service Provider,Mgmt/Consult/Public Rel Ser,Tvlicensing.Co.Uk,Supplies and Services related expenditure,21/04/2020,157.5,Director of Children's Services and Education
Other Supplies,Misc Speciality Retail,Amznmktplace Amazon.Co.Uk,Premises related expenditure,21/04/2020,77.5,"Director of Housing, Neighbourhood and Building Services"
Personal Service Provider,Mgmt/Consult/Public Rel Ser,Tvlicensing.Co.Uk,Supplies and Services related expenditure,21/04/2020,157.5,Director of Children's Services and Education
Other Supplies,Misc Speciality Retail,Amznmktplace Amazon.Co.Uk,Premises related expenditure,21/04/2020,24.58,Director of Adult Services
Other Supplies,Misc Speciality Retail,Amznmktplace Amazon.Co.Uk,Premises related expenditure,21/04/2020,21.18,Director of Adult Services
Other Supplies,Misc Speciality Retail,Amznmktplace Amazon.Co.Uk,Supplies and Services related expenditure,21/04/2020,20.4,Director of Adult Services
Other Supplies,Misc Speciality Retail,Amznmktplace Amazon.Co.Uk,Supplies and Services related expenditure,21/04/2020,5.94,Director of Adult Services
Business To Business Facility/,Industrial Supplies - Def,Www.Arco.Co.Uk,Premises related expenditure,21/04/2020,25.92,"Director of Housing, Neighbourhood and Building Services"
Business To Business Facility/,Industrial Supplies - Def,Www.Arco.Co.Uk,Supplies and Services related expenditure,22/04/2020,13.68,Director of Portsmouth International Port
Business Expenses/Services,Postage Stamps,Post Office Counter,Supplies and Services related expenditure,22/04/2020,70.92,Director of Children's Services and Education
Business To Business Eqpt/Furn,Commercial Equipment - Default,Www.Windmill-Computing,Supplies and Services related expenditure,22/04/2020,469.49,"Director of Housing, Neighbourhood and Building Services"
Type of Retail Store,Grocery Stores/Supermarkets,Asda Stores,Supplies and Services related expenditure,22/04/2020,208.33,Director of Children's Services and Education
Type of Retail Store,Grocery Stores/Supermarkets,Asda Stores,Supplies and Services related expenditure,22/04/2020,1.25,Director of Children's Services and Education
Type of Retail Store,Grocery Stores/Supermarkets,Tesco Stores 6002,Supplies and Services related expenditure,22/04/2020,13,Director of Children's Services and Education
Facilities/Repair Supplies,Lawn/Garden Supply/Nursery,Www.Meadowmania.Co.Uk,Supplies and Services related expenditure,22/04/2020,133.33,"Director of Culture, Leisure & Regulatory Services"
Facilities/Repair Services,Landscape/Horticultural Se,Alsoils + Ltd,Supplies and Services related expenditure,22/04/2020,880,"Director of Culture, Leisure & Regulatory Services"
Type of Retail Store,Freezer/Meat Lockers,Dennis Edwards Food Serv,Supplies and Services related expenditure,22/04/2020,387,Director of Finance & Resources
Business To Business Eqpt/Furn,Stationery/Office Supplies,Www.Banneruk.Com,Supplies and Services related expenditure,22/04/2020,365.82,"Director of Housing, Neighbourhood and Building Services"
Facilities/Repair Services,Small Appliance Repair Def,Hooper Services Ltd,Premises related expenditure,22/04/2020,2220,Director of Finance & Resources
Facilities/Repair Services,Small Appliance Repair Def,Hooper Services Ltd,Supplies and Services related expenditure,22/04/2020,3800,Director of Finance & Resources
Automobile Services & Supplies,Service Stations,Shell Fratton 178,Transport related expenditure,22/04/2020,11.66,"Director of Housing, Neighbourhood and Building Services"
Type of Retail Store,Grocery Stores/Supermarkets,Tesco Stores 4579,Supplies and Services related expenditure,22/04/2020,35,Director of Children's Services and Education
Eating And Drinking Places,Eating Places/Restaurants,Dominos Pizza,Supplies and Services related expenditure,22/04/2020,39.98,Director of Children's Services and Education
Type of Retail Store,Grocery Stores/Supermarkets,Tesco Stores 2322,Supplies and Services related expenditure,22/04/2020,12.5,Director of Children's Services and Education
Medical,Lab/Med/Hospital Equipment,Wightman & Parrish Ltd,Supplies and Services related expenditure,22/04/2020,34.9,Director of Adult Services
Medical,Lab/Med/Hospital Equipment,Wightman & Parrish Ltd,Premises related expenditure,22/04/2020,104.67,Director of Adult Services
Government Service,Govt Serv - Default,Hampshire County Counc,Supplies and Services related expenditure,22/04/2020,113.49,Director of Children's Services and Education
Personal Service Provider,Commercial Photo/Art/Graph,Signs Express Portsmo,Premises related expenditure,22/04/2020,420,Director of Portsmouth International Port
Type of Retail Store,Grocery Stores/Supermarkets,Fruit Basket Ltd,Premises related expenditure,22/04/2020,86.83,"Director of Culture, Leisure & Regulatory Services"
Other Supplies,Discount Stores,Argos Ltd,Supplies and Services related expenditure,22/04/2020,15,Director of Children's Services and Education
Other Supplies,Discount Stores,Argos Ltd,Supplies and Services related expenditure,22/04/2020,59.99,Director of Children's Services and Education
Other Supplies,Discount Stores,Argos Ltd,Supplies and Services related expenditure,22/04/2020,59.99,Director of Children's Services and Education
Type of Retail Store,Grocery Stores/Supermarkets,Tesco Stores 6679,Supplies and Services related expenditure,22/04/2020,32.98,Director of Children's Services and Education
Type of Retail Store,Grocery Stores/Supermarkets,Wm Morrisons Store,Supplies and Services related expenditure,22/04/2020,19.47,"Director of Housing, Neighbourhood and Building Services"
Business Expenses/Services,Postage Stamps,The Post Office,Supplies and Services related expenditure,22/04/2020,23.4,"Director of Housing, Neighbourhood and Building Services"
Business Expenses/Services,Books/Periodicals/Newspapers,Bookpoint Limited,Supplies and Services related expenditure,22/04/2020,53.5,Director of Children's Services and Education
Business To Business Eqpt/Furn,Stationery/Office Supplies,Www.Banneruk.Com,Supplies and Services related expenditure,22/04/2020,119.34,"Director of Housing, Neighbourhood and Building Services"
Business To Business Eqpt/Furn,Stationery/Office Supplies,Www.Banneruk.Com,Supplies and Services related expenditure,22/04/2020,161.65,Director of Corporate Services
Other Supplies,Misc Speciality Retail,Careshop,Supplies and Services related expenditure,22/04/2020,36.3,Director of Adult Services
Other Supplies,Misc Speciality Retail,Amznmktplace Amazon.Co.Uk,Supplies and Services related expenditure,22/04/2020,20.83,Director of Children's Services and Education
Government Service,Govt Serv - Default,Hampshire County Counc,Supplies and Services related expenditure,22/04/2020,152.24,Director of Children's Services and Education
Automobile Rental,Automobile Rental Agency,Southern Motor Contrac,Transport related expenditure,22/04/2020,2466.28,Director of Regeneration
Type of Retail Store,Grocery Stores/Supermarkets,Sainsburys S/mkts,Premises related expenditure,22/04/2020,4.17,"Director of Housing, Neighbourhood and Building Services"
Type of Retail Store,Electronics Sales,Comms Express Ltd,Supplies and Services related expenditure,22/04/2020,536.05,Director of Corporate Services
Medical,Lab/Med/Hospital Equipment,Wightman & Parrish,Supplies and Services related expenditure,22/04/2020,15.9,Director of Adult Services
Medical,Lab/Med/Hospital Equipment,Wightman & Parrish,Premises related expenditure,22/04/2020,34.92,Director of Adult Services
Medical,Lab/Med/Hospital Equipment,Wightman & Parrish,Supplies and Services related expenditure,22/04/2020,8.89,Director of Adult Services
Medical,Lab/Med/Hospital Equipment,Wightman & Parrish,Premises related expenditure,22/04/2020,74.56,"Director of Housing, Neighbourhood and Building Services"
Medical,Lab/Med/Hospital Equipment,Wightman & Parrish,Premises related expenditure,22/04/2020,240.27,"Director of Housing, Neighbourhood and Building Services"
Automobile Services & Supplies,Service Stations,Green Road Svc Stn Ltd,Transport related expenditure,22/04/2020,66.67,Director of Children's Services and Education
Facilities/Repair Supplies,Hardware Stores,Www.Toolstation.Com,Supplies and Services related expenditure,22/04/2020,7.85,Director of Adult Services
Medical,Lab/Med/Hospital Equipment,Wightman & Parrish Ltd,Supplies and Services related expenditure,22/04/2020,101.4,Director of Adult Services
Medical,Lab/Med/Hospital Equipment,Wightman & Parrish Ltd,Supplies and Services related expenditure,22/04/2020,116.4,Director of Adult Services
Type of Retail Store,Sporting Goods Stores,Www.Millets.Co.Uk,Supplies and Services related expenditure,22/04/2020,35.17,"Director of Housing, Neighbourhood and Building Services"
Type of Retail Store,Sporting Goods Stores,Www.Millets.Co.Uk,Supplies and Services related expenditure,22/04/2020,59,"Director of Housing, Neighbourhood and Building Services"
Other Supplies,Misc Speciality Retail,Careshop,Supplies and Services related expenditure,22/04/2020,43.56,Director of Adult Services
Other Supplies,Misc Speciality Retail,Amznmktplace,Supplies and Services related expenditure,22/04/2020,26.03,Director of Corporate Services
Facilities Maintenance,Specialty Cleaning/Polishing,Cjs Portsmouth Limited,Premises related expenditure,22/04/2020,5.13,"Director of Housing, Neighbourhood and Building Services"
Facilities Maintenance,Specialty Cleaning/Polishing,Cjs Portsmouth Limited,Premises related expenditure,22/04/2020,37.62,"Director of Housing, Neighbourhood and Building Services"
Medical,Lab/Med/Hospital Equipment,Wightman & Parrish Ltd,Premises related expenditure,22/04/2020,385.48,"Director of Housing, Neighbourhood and Building Services"
Digital Goods,Digital Goods - Games,Epc*fortnite,Agency and Third Party Payments related expenditure,22/04/2020,7.99,Director of Children's Services and Education
Digital Goods,Digital Goods - Games,Epc*fortnite,Agency and Third Party Payments related expenditure,22/04/2020,19.99,Director of Children's Services and Education
Digital Goods,Digital Goods - Games,Epc*fortnite,Agency and Third Party Payments related expenditure,22/04/2020,19.99,Director of Children's Services and Education
Business To Business Eqpt/Furn,Stationery/Office Supplies,Www.Banneruk.Com,Supplies and Services related expenditure,22/04/2020,46.83,Director of Adult Services
Type of Retail Store,Grocery Stores/Supermarkets,Fruit Basket Ltd,Supplies and Services related expenditure,22/04/2020,73.41,Director of Adult Services
Type of Retail Store,Freezer/Meat Lockers,Dennis Edwards Food Serv,Supplies and Services related expenditure,22/04/2020,145.71,Director of Adult Services
Business To Business Facility/,Industrial Supplies - Def,Www.Arco.Co.Uk,Supplies and Services related expenditure,21/04/2020,14.07,"Director of Housing, Neighbourhood and Building Services"
Business To Business Facility/,Industrial Supplies - Def,Www.Arco.Co.Uk,Supplies and Services related expenditure,22/04/2020,93.34,Director of Portsmouth International Port
Other Supplies,Misc Speciality Retail,Amznmktplace Amazon.Co.Uk,Supplies and Services related expenditure,22/04/2020,18.67,Director of Children's Services and Education
Other Supplies,Misc Speciality Retail,Amznmktplace Amazon.Co.Uk,Supplies and Services related expenditure,22/04/2020,253.58,"Director of Housing, Neighbourhood and Building Services"
Business To Business Facility/,Industrial Supplies - Def,Www.Arco.Co.Uk,Premises related expenditure,22/04/2020,12.02,"Director of Culture, Leisure & Regulatory Services"
Personal Service Provider,Mgmt/Consult/Public Rel Ser,Paypal,Supplies and Services related expenditure,22/04/2020,295,Director of Children's Services and Education
Personal Service Provider,Professional Services - Def,Pp*5140code,Agency and Third Party Payments related expenditure,22/04/2020,1,Director of Children's Services and Education
Medical,Lab/Med/Hospital Equipment,Wightman & Parrish,Premises related expenditure,23/04/2020,1797.6,"Director of Housing, Neighbourhood and Building Services"
Freight/Courier/Warehouse Svcs,Public Warehousing,Lok N Store,Premises related expenditure,23/04/2020,30,"Director of Housing, Neighbourhood and Building Services"
Freight/Courier/Warehouse Svcs,Public Warehousing,Lok N Store,Premises related expenditure,23/04/2020,66.67,"Director of Housing, Neighbourhood and Building Services"
Business To Business Facility/,Industrial Supplies - Def,Www.Arco.Co.Uk,Supplies and Services related expenditure,23/04/2020,43.01,"Director of Housing, Neighbourhood and Building Services"
Other Supplies,Misc Speciality Retail,Amznmktplace,Supplies and Services related expenditure,23/04/2020,2.67,Director of Portsmouth International Port
Auto/Vehicle Expenses,Automated Fuel Dispensers,Asda Petrol 4583,Transport related expenditure,23/04/2020,41.85,Director of Regeneration
Automobile Services & Supplies,Service Stations,Milton Road Servic,Supplies and Services related expenditure,23/04/2020,12.05,Director of Children's Services and Education
Automobile Services & Supplies,Service Stations,Milton Road Servic,Supplies and Services related expenditure,23/04/2020,2.96,Director of Children's Services and Education
Facilities/Repair Supplies,Hardware Stores,Www.Toolstation.Com,Premises related expenditure,23/04/2020,18.33,Director of Children's Services and Education
Other Supplies,Wholesale Clubs,Makro Self Service Fareha,Supplies and Services related expenditure,23/04/2020,65.13,Director of Portsmouth International Port
Type of Retail Store,Grocery Stores/Supermarkets,Tesco Store 3186,Supplies and Services related expenditure,23/04/2020,8.89,Director of Children's Services and Education
Digital Goods,"Digital Goods - Media, Books, Movies, Music",Disney Plus,Supplies and Services related expenditure,23/04/2020,5.99,Director of Children's Services and Education
Miscellaneous,Member Organizations - Def,Www.Cscs.Uk.Com,Supplies and Services related expenditure,23/04/2020,30,Director of Regeneration
Type of Retail Store,Grocery Stores/Supermarkets,Asda Stores,Premises related expenditure,23/04/2020,27.33,Director of Adult Services
Hotels And Motels,Travelodge,Travelodge Gb0000,Agency and Third Party Payments related expenditure,23/04/2020,-1521.67,"Director of Housing, Neighbourhood and Building Services"
Business Services,Advertising Services,Facebk Zd89dsj8z2,Supplies and Services related expenditure,23/04/2020,2.34,Director of Corporate Services
Business Services,Advertising Services,Facebk Zd89dsj8z2,Supplies and Services related expenditure,23/04/2020,297.66,Director of Corporate Services
Miscellaneous,Member Organizations - Def,Music Mark,Supplies and Services related expenditure,23/04/2020,600,Director of Children's Services and Education
Facilities/Repair Supplies,Home Supply Warehouse Stores,B & Q 1260,Premises related expenditure,23/04/2020,92.53,"Director of Housing, Neighbourhood and Building Services"
Type of Retail Store,Grocery Stores/Supermarkets,Wm Morrisons Store,Supplies and Services related expenditure,23/04/2020,23.68,"Director of Housing, Neighbourhood and Building Services"
Type of Retail Store,Grocery Stores/Supermarkets,Sainsburys S/mkt,Supplies and Services related expenditure,23/04/2020,63.17,Director of Children's Services and Education
Other Supplies,Misc Speciality Retail,Amznmktplace Amazon.Co.Uk,Supplies and Services related expenditure,23/04/2020,9.58,"Director of Housing, Neighbourhood and Building Services"
Other Supplies,Misc Speciality Retail,Amznmktplace Amazon.Co.Uk,Supplies and Services related expenditure,23/04/2020,10.03,"Director of Housing, Neighbourhood and Building Services"
Personal Service Provider,Professional Services - Def,Trace Debt Recovery Uk,Agency and Third Party Payments related expenditure,23/04/2020,160,Director of Children's Services and Education
Type of Retail Store,Hobby/Toy/Game Stores,Www.Game.Co.Uk,Supplies and Services related expenditure,23/04/2020,308.97,Director of Children's Services and Education
Facilities/Repair Services,Roofing/Siding/Sheet Metal,Aalco (Southampton),Premises related expenditure,23/04/2020,385.2,Director of Portsmouth International Port
Other Supplies,Misc Gen Merchandise - Def,Niton Equipment,Supplies and Services related expenditure,23/04/2020,59.09,Director of Regeneration
Miscellaneous,Other Direct Marketers,Amazon.Co.Uk,Supplies and Services related expenditure,23/04/2020,39.58,Director of Children's Services and Education
Type of Retail Store,Grocery Stores/Supermarkets,Spar 31106175,Supplies and Services related expenditure,23/04/2020,11.9,"Director of Housing, Neighbourhood and Building Services"
Miscellaneous,Continuity/Subscription Mercht,Zoom.Gbp,Supplies and Services related expenditure,23/04/2020,119.9,Director of Children's Services and Education
Caterers Food,Caterers,Booker Limited Portsmouth,Supplies and Services related expenditure,23/04/2020,184.03,"Director of Housing, Neighbourhood and Building Services"
Business Expenses/Services,Postage Stamps,Post Office Counter,Supplies and Services related expenditure,23/04/2020,59.2,Director of Children's Services and Education
Miscellaneous,Other Direct Marketers,Amz,Supplies and Services related expenditure,23/04/2020,-29.08,Director of Finance & Resources
Other Supplies,Discount Stores,Argos Ltd,Supplies and Services related expenditure,23/04/2020,33.94,Director of Children's Services and Education
Business To Business Eqpt/Furn,Computer Software Stores,Sp * Islamicimpression,Supplies and Services related expenditure,23/04/2020,28.31,Director of Children's Services and Education
Business To Business Eqpt/Furn,Stationery/Office Supplies,Www.Banneruk.Com,Supplies and Services related expenditure,23/04/2020,13.26,"Director of Housing, Neighbourhood and Building Services"
Business To Business Eqpt/Furn,Stationery/Office Supplies,Www.Banneruk.Com,Supplies and Services related expenditure,23/04/2020,182.65,Director of Corporate Services
Type of Retail Store,Grocery Stores/Supermarkets,Fruit Basket Ltd,Supplies and Services related expenditure,23/04/2020,2126.29,Director of Adult Services
Government Service,Colleges/Univ/Jc/Profession,Sing Up,Supplies and Services related expenditure,23/04/2020,285,Director of Children's Services and Education
Type of Retail Store,Grocery Stores/Supermarkets,Tesco Stores 2322,Supplies and Services related expenditure,23/04/2020,50,Director of Children's Services and Education
Type of Retail Store,Grocery Stores/Supermarkets,Tesco Stores 2322,Supplies and Services related expenditure,23/04/2020,50,Director of Children's Services and Education
Type of Retail Store,Grocery Stores/Supermarkets,Tesco Stores 2322,Supplies and Services related expenditure,23/04/2020,50,Director of Children's Services and Education
Type of Retail Store,Grocery Stores/Supermarkets,Tesco Stores 2322,Supplies and Services related expenditure,23/04/2020,50,Director of Children's Services and Education
Business To Business Eqpt/Furn,Computer Software Stores,Comms Warehouse,Supplies and Services related expenditure,23/04/2020,220.83,Director of Corporate Services
Business To Business Eqpt/Furn,Stationery/Office Supplies,Www.Banneruk.Com,Supplies and Services related expenditure,23/04/2020,15.43,Director of Adult Services
Business To Business Eqpt/Furn,Stationery/Office Supplies,Www.Banneruk.Com,Supplies and Services related expenditure,23/04/2020,77.71,Director of Finance & Resources
Business To Business Eqpt/Furn,Stationery/Office Supplies,Www.Banneruk.Com,Supplies and Services related expenditure,23/04/2020,110,Director of Children's Services and Education
Other Supplies,Misc Speciality Retail,Amznmktplace Amazon.Co.Uk,Supplies and Services related expenditure,23/04/2020,19.98,Director of Children's Services and Education
Business Services,Business Services - Default,Zebra Waste,Premises related expenditure,23/04/2020,240,Director of Adult Services
Miscellaneous,Continuity/Subscription Mercht,Zoom.Gbp,Supplies and Services related expenditure,23/04/2020,11.99,Director of Children's Services and Education
Other Supplies,Misc Speciality Retail,Amznmktplace,Supplies and Services related expenditure,23/04/2020,8.25,"Director of Culture, Leisure & Regulatory Services"
Type of Retail Store,Grocery Stores/Supermarkets,Tesco Stores 4579,Supplies and Services related expenditure,23/04/2020,25,Director of Children's Services and Education
Government Service,Schools - Default,Leadership Matters,Supplies and Services related expenditure,23/04/2020,295,Director of Children's Services and Education
Clothing Services,Misc Apparel/Access Shops,Www.Cclsouthmapton.Co.,Supplies and Services related expenditure,23/04/2020,1369,Director of Finance & Resources
Clothing Services,Misc Apparel/Access Shops,Www.Cclsouthmapton.Co.,Supplies and Services related expenditure,23/04/2020,15900,Director of Adult Services
Type of Retail Store,Drug Stores & Pharmacies,Savers Health & Beauty,Premises related expenditure,23/04/2020,3.23,"Director of Housing, Neighbourhood and Building Services"
Hotels And Motels,Lodging/Hotels/Motels/Resorts,Polygon Guest House,Agency and Third Party Payments related expenditure,23/04/2020,670.83,"Director of Housing, Neighbourhood and Building Services"
Business To Business Facility/,Electrical Parts/Equipment,Newey & Eyre,Supplies and Services related expenditure,23/04/2020,750,"Director of Housing, Neighbourhood and Building Services"
Type of Retail Store,Grocery Stores/Supermarkets,Eat Fresh,Supplies and Services related expenditure,23/04/2020,35,Director of Children's Services and Education
Other Supplies,Misc Speciality Retail,Amznmktplace Amazon.Co.Uk,Supplies and Services related expenditure,23/04/2020,20.82,"Director of Housing, Neighbourhood and Building Services"
Business To Business Facility/,Electrical Parts/Equipment,Newey & Eyre,Supplies and Services related expenditure,23/04/2020,375,"Director of Housing, Neighbourhood and Building Services"
Other Supplies,Discount Stores,Argos Ltd,Supplies and Services related expenditure,23/04/2020,208.33,Director of Children's Services and Education
